Directorate,Department,Expenditure Type,Ref.Doc.1,Vendor Name,Expenditure Amount (exc VAT),Payment Date
Assurance,Assurance,Advertising,60075577,TMP (UK) LTD,221.76,23/03/2017
Assurance,Assurance,Employee Expenses,60075213,GOLDSMITH CONSULTING & MEDIATION LTD,225.00,23/03/2017
Assurance,Assurance,Equipment and Materials Purcha,80009409,HD PRODUCTIONS LIMITED,75.00,28/03/2017
Assurance,Assurance,Equipment and Materials Purcha,60076049,WAGSTAFF INTERIORS GROUP,358.06,31/03/2017
Assurance,Assurance,Fees and Charges,80009279,GREATER LONDON AUTHORITY,"18,298.82",30/03/2017
Assurance,Assurance,General Office Expenses,40001963,OFFICE DEPOT UK LTD,2.48,28/03/2017
Assurance,Assurance,General Office Expenses,40002006,OFFICE DEPOT UK LTD,2.76,28/03/2017
Assurance,Assurance,General Office Expenses,40002111,OFFICE DEPOT UK LTD,1.02,28/03/2017
Assurance,Assurance,General Office Expenses,40002113,OFFICE DEPOT UK LTD,8.82,28/03/2017
Assurance,Assurance,General Office Expenses,40002218,OFFICE DEPOT UK LTD,2.72,28/03/2017
Assurance,Assurance,General Office Expenses,40002224,OFFICE DEPOT UK LTD,4.64,28/03/2017
Assurance,Assurance,Legal and Court Fees,60074471,PRICEWATERHOUSE COOPERS,"7,500.00",30/03/2017
Assurance,Assurance,Other Indirect Employee Expens,80009201,LONDON BOROUGH OF HAVERING,120.00,28/03/2017
Assurance,Assurance,Other Indirect Employee Expens,80009345,MAYOR'S CHARITY,130.00,28/03/2017
Assurance,Assurance,Other Indirect Employee Expens,80008784,MAYOR'S CHARITY APPEAL,30.00,03/03/2017
Assurance,Assurance,Other Indirect Employee Expens,80009332,THE MAYOR'S CHARITY,130.00,28/03/2017
Assurance,Assurance,Postage,60075193,ROYAL MAIL GROUP LIMITED,672.09,17/03/2017
Assurance,Assurance,Printing-Contract,60072095,ELECTORAL REFORM SERVICES,"1,131.98",01/03/2017
Assurance,Assurance,Printing-Contract,60074967,ELECTORAL REFORM SERVICES,774.62,29/03/2017
Assurance,Assurance,Printing-Contract,40001957,OFFICE DEPOT UK LTD,6.21,28/03/2017
Assurance,Assurance,Printing-Contract,40002010,OFFICE DEPOT UK LTD,21.04,28/03/2017
Assurance,Assurance,Printing-Contract,40002035,OFFICE DEPOT UK LTD,1.44,28/03/2017
Assurance,Assurance,Printing-Contract,40002058,OFFICE DEPOT UK LTD,1.58,28/03/2017
Assurance,Assurance,Printing-Contract,40002092,OFFICE DEPOT UK LTD,6.21,28/03/2017
Assurance,Assurance,Printing-Contract,40002153,OFFICE DEPOT UK LTD,1.48,28/03/2017
Assurance,Assurance,Printing-Contract,40002170,OFFICE DEPOT UK LTD,217.30,28/03/2017
Assurance,Assurance,Printing-Contract,40002176,OFFICE DEPOT UK LTD,38.94,28/03/2017
Assurance,Assurance,Professional Services,60074092,CIPFA BUSINESS LIMITED,125.00,23/03/2017
Assurance,Assurance,Professional Services,10013659,ELECTORAL REFORM SERVICES,"4,140.57",02/03/2017
Assurance,Assurance,Professional Services,60075174,ELECTORAL REFORM SERVICES,931.61,16/03/2017
Assurance,Assurance,Professional Services,60071895,PRICEWATERHOUSE COOPERS,"37,849.43",07/03/2017
Assurance,Assurance,Rents,80008960,AKG EVENT LTD,420.00,13/03/2017
Assurance,Assurance,Rents,60073934,AVENUE HOUSE SERVICES LTD,280.00,03/03/2017
Assurance,Assurance,Stationery,40001993,OFFICE DEPOT UK LTD,13.83,28/03/2017
Assurance,Assurance,Stationery,40002015,OFFICE DEPOT UK LTD,95.55,28/03/2017
Assurance,Assurance,Stationery,40002023,OFFICE DEPOT UK LTD,1.40,28/03/2017
Assurance,Assurance,Subscriptions,60073850,CIPFA BUSINESS LIMITED,125.00,23/03/2017
Assurance,Assurance,Subscriptions,60075228,COMPANIES HOUSE,4.00,22/03/2017
Assurance,Assurance,Training,60074529,LEE HECHT HARRISON PENNA LTD,"1,400.00",16/03/2017
Assurance,Assurance,Translation Exp / Interpret,60074244,PRIME PRODUCTION LTD,39.50,06/03/2017
Assurance,Assurance,Translation Exp / Interpret,60074478,PRIME PRODUCTION LTD,39.50,08/03/2017
Assurance,Assurance,Translation Exp / Interpret,60075567,PRIME PRODUCTION LTD,39.50,23/03/2017
Assurance,Assurance,Ttl IT & Comms,60075215,BRITISH TELECOM PLC,"5,643.22",17/03/2017
Central Expenses,Central Expenses,Audit Fee,60071360,BDO LLP,"85,012.50",08/03/2017
Central Expenses,Central Expenses,Insurance Claims,80008781,ADMIRAL LAW,602.70,08/03/2017
Central Expenses,Central Expenses,Insurance Claims,80008646,AUXILLIS SERVICES LTD,"9,234.42",01/03/2017
Central Expenses,Central Expenses,Insurance Claims,80008743,BERRYMANS LACE MAWER LLP,655.50,08/03/2017
Central Expenses,Central Expenses,Insurance Claims,80009400,BROWNE JACOBSON SOLS.,"15,000.00",28/03/2017
Central Expenses,Central Expenses,Insurance Claims,80009401,BROWNE JACOBSON SOLS.,"12,600.00",30/03/2017
Central Expenses,Central Expenses,Insurance Claims,80009402,BROWNE JACOBSON SOLS.,"3,000.00",30/03/2017
Central Expenses,Central Expenses,Insurance Claims,80009417,CENTENARY SOLICITORS,"13,291.22",29/03/2017
Central Expenses,Central Expenses,Insurance Claims,80008945,CLARKE BARNES SOLICITORS,360.00,13/03/2017
Central Expenses,Central Expenses,Insurance Claims,80009006,CLARKE BARNES SOLICITORS,"1,309.90",15/03/2017
Central Expenses,Central Expenses,Insurance Claims,80009335,CLARKE BARNES SOLICITORS,135.00,28/03/2017
Central Expenses,Central Expenses,Insurance Claims,60073969,CLYDE & CO LLP,"1,470.00",02/03/2017
Central Expenses,Central Expenses,Insurance Claims,60074075,CLYDE & CO LLP,"4,035.00",03/03/2017
Central Expenses,Central Expenses,Insurance Claims,80009505,COMPENSATION SOLICITORS ONLINE,"1,250.00",31/03/2017
Central Expenses,Central Expenses,Insurance Claims,80009422,DAC BEACHCROFT CLAIMS CLIENT,100.00,30/03/2017
Central Expenses,Central Expenses,Insurance Claims,80008678,DAC BEACHCROFT LLP,"11,000.00",01/03/2017
Central Expenses,Central Expenses,Insurance Claims,80009278,DUNNE & GRAY SOLICITORS,"22,489.12",27/03/2017
Central Expenses,Central Expenses,Insurance Claims,80008728,DWP COMPENSATION RECOVERY UNIT,459.49,03/03/2017
Central Expenses,Central Expenses,Insurance Claims,80008793,DWP COMPENSATION RECOVERY UNIT,647.00,08/03/2017
Central Expenses,Central Expenses,Insurance Claims,80008829,DWP COMPENSATION RECOVERY UNIT,665.00,08/03/2017
Central Expenses,Central Expenses,Insurance Claims,80008934,DWP COMPENSATION RECOVERY UNIT,665.00,27/03/2017
Central Expenses,Central Expenses,Insurance Claims,80008981,DWP COMPENSATION RECOVERY UNIT,627.00,27/03/2017
Central Expenses,Central Expenses,Insurance Claims,80009008,DWP COMPENSATION RECOVERY UNIT,647.00,15/03/2017
Central Expenses,Central Expenses,Insurance Claims,80009265,DWP COMPENSATION RECOVERY UNIT,637.00,30/03/2017
Central Expenses,Central Expenses,Insurance Claims,80009382,DWP COMPENSATION RECOVERY UNIT,637.00,30/03/2017
Central Expenses,Central Expenses,Insurance Claims,80009398,DWP COMPENSATION RECOVERY UNIT,627.00,30/03/2017
Central Expenses,Central Expenses,Insurance Claims,80009419,DWP COMPENSATION RECOVERY UNIT,647.00,30/03/2017
Central Expenses,Central Expenses,Insurance Claims,80009447,DWP COMPENSATION RECOVERY UNIT,647.00,30/03/2017
Central Expenses,Central Expenses,Insurance Claims,80009000,ESURE,"10,000.00",15/03/2017
Central Expenses,Central Expenses,Insurance Claims,60073503,GLENDALE COUNTRYSIDE LTD,672.58,16/03/2017
Central Expenses,Central Expenses,Insurance Claims,60073528,GLENDALE COUNTRYSIDE LTD,493.12,16/03/2017
Central Expenses,Central Expenses,Insurance Claims,80008643,HELPHIRE LTD,"1,732.43",01/03/2017
Central Expenses,Central Expenses,Insurance Claims,80008790,IRWIN MITCHELL,"6,689.00",08/03/2017
Central Expenses,Central Expenses,Insurance Claims,80008791,IRWIN MITCHELL,720.00,08/03/2017
Central Expenses,Central Expenses,Insurance Claims,80008929,IRWIN MITCHELL,"16,644.00",13/03/2017
Central Expenses,Central Expenses,Insurance Claims,80008956,KINDERTONS ACCIDENT MANAGEMENT,"2,651.01",13/03/2017
Central Expenses,Central Expenses,Insurance Claims,60074077,LEGAL COSTS NEGOTIATORS,621.71,03/03/2017
Central Expenses,Central Expenses,Insurance Claims,80008525,M & K SOLICITORS,240.00,27/03/2017
Central Expenses,Central Expenses,Insurance Claims,80009063,M & K SOLICITORS,"3,660.00",16/03/2017
Central Expenses,Central Expenses,Insurance Claims,80009065,M & K SOLICITORS,"3,960.00",16/03/2017
Central Expenses,Central Expenses,Insurance Claims,80009399,MOTOR INSURERS BUREAU,800.00,28/03/2017
Central Expenses,Central Expenses,Insurance Claims,80008942,OCTAGON INSURANCE,203.92,10/03/2017
Central Expenses,Central Expenses,Insurance Claims,80009420,PLEXUS LAW LTD,"13,100.00",30/03/2017
Central Expenses,Central Expenses,Insurance Claims,80008423,PRIVILEGE MOTORS CLAIMS,"2,139.06",07/03/2017
Central Expenses,Central Expenses,Insurance Claims,80009383,RSA CLAIMS,"1,321.89",28/03/2017
Central Expenses,Central Expenses,Insurance Claims,80008811,RUSSELL WORTH LIMITED,"4,000.00",08/03/2017
Central Expenses,Central Expenses,Insurance Claims,80009381,RUSSELL WORTH LIMITED,"8,746.00",28/03/2017
Central Expenses,Central Expenses,Insurance Claims,80008979,SHOOSMITHS SOLICITORS,"7,000.00",27/03/2017
Central Expenses,Central Expenses,Insurance Claims,80009393,SLATER GORDON SOLUTIONS,"22,634.50",28/03/2017
Central Expenses,Central Expenses,Insurance Claims,60073890,THE BARNETGROUP LIMITED,"12,213.04",02/03/2017
Central Expenses,Central Expenses,Insurance Claims,80009396,THOMPSON SOLICITORS,"4,360.60",30/03/2017
Central Expenses,Central Expenses,Insurance Claims,80009445,THOMPSONS SOLICITORS,"3,350.00",30/03/2017
Central Expenses,Central Expenses,Insurance Claims,80008939,TRUE SOLICITORS LLP,216.00,10/03/2017
Central Expenses,Central Expenses,Insurance Claims,80008742,UNITED SYNAGOGUE,634.80,03/03/2017
Central Expenses,Central Expenses,Insurance Claims,60071470,WEIGHTMANS LLP,"2,115.00",30/03/2017
Central Expenses,Central Expenses,Insurance Claims,60071485,WEIGHTMANS LLP,"1,300.00",30/03/2017
Central Expenses,Central Expenses,Insurance Claims,60075705,WEIGHTMANS LLP,400.00,31/03/2017
Central Expenses,Central Expenses,Insurance Claims,60075711,WEIGHTMANS LLP,196.60,31/03/2017
Central Expenses,Central Expenses,Insurance Claims,60075720,WEIGHTMANS LLP,925.00,31/03/2017
Central Expenses,Central Expenses,Insurance Claims,60075855,WEIGHTMANS LLP,"1,706.00",30/03/2017
Central Expenses,Central Expenses,Insurance Claims,60075858,WEIGHTMANS LLP,"1,562.00",30/03/2017
Central Expenses,Central Expenses,Insurance Claims,60075925,WEIGHTMANS LLP,"1,500.00",30/03/2017
Central Expenses,Central Expenses,Insurance Claims,60075950,WEIGHTMANS LLP,375.00,30/03/2017
Central Expenses,Central Expenses,Insurance Claims,60075965,WEIGHTMANS LLP,263.30,30/03/2017
Central Expenses,Central Expenses,Insurance Claims,60075990,WEIGHTMANS LLP,600.00,30/03/2017
Central Expenses,Central Expenses,Insurance Claims,60076002,WEIGHTMANS LLP,351.20,30/03/2017
Central Expenses,Central Expenses,Insurance Claims,60076026,WEIGHTMANS LLP,"1,000.00",31/03/2017
Central Expenses,Central Expenses,Joint Authorities - Third Part,60066517,LONDON BOROUGH OF HARINGEY,"66,841.08",14/03/2017
Central Expenses,Central Expenses,Joint Authorities - Third Part,60071334,LONDON BOROUGH OF HARINGEY,"66,841.08",14/03/2017
Central Expenses,Central Expenses,Other Establishments - Third P,EBX0160542,LEE VALLEY REGIONAL PARK AUTH.,"32,219.58",06/03/2017
Central Expenses,Central Expenses,Other Establishments - Third P,EBX0160537,LONDON PENSIONS FUND AUTHORITY,"49,627.80",06/03/2017
Commercial,Births Deaths & Marriages,Cleaning and domestic material,60069721,CHURCHILL CONTRACT SERVICES,624.26,01/03/2017
Commercial,Births Deaths & Marriages,Cleaning and domestic material,60071452,CHURCHILL CONTRACT SERVICES,664.48,02/03/2017
Commercial,Births Deaths & Marriages,Cleaning and domestic material,60071476,CHURCHILL CONTRACT SERVICES,624.26,02/03/2017
Commercial,Births Deaths & Marriages,Cleaning and domestic material,60074174,CHURCHILL CONTRACT SERVICES,38.12,30/03/2017
Commercial,Births Deaths & Marriages,Cleaning and domestic material,60074232,CHURCHILL CONTRACT SERVICES,664.48,30/03/2017
Commercial,Births Deaths & Marriages,Other Services,80009305,LEE SECURITY LIMITED,82.00,30/03/2017
Commercial,Births Deaths & Marriages,Other Services,80009308,LEE SECURITY LIMITED,45.42,30/03/2017
Commercial,Births Deaths & Marriages,Other Services,80009284,LEE SECURITY LTD,144.86,30/03/2017
Commercial,Customer Support Group,Books-CDs-Audio-Video,60072162,SM ELECTRICAL SERVICES,370.00,20/03/2017
Commercial,Customer Support Group,Books-CDs-Audio-Video,60072220,SM ELECTRICAL SERVICES,250.00,01/03/2017
Commercial,Customer Support Group,Books-CDs-Audio-Video,60072811,SM ELECTRICAL SERVICES,100.00,14/03/2017
Commercial,Customer Support Group,Books-CDs-Audio-Video,60073582,SM ELECTRICAL SERVICES,150.00,16/03/2017
Commercial,Customer Support Group,Books-CDs-Audio-Video,60075079,SM ELECTRICAL SERVICES,150.00,22/03/2017
Commercial,Customer Support Group,Building Repairs & Maintenance,60074969,ADAMS ENVIRONMENTAL LTD,"1,100.00",14/03/2017
Commercial,Customer Support Group,Building Repairs & Maintenance,60072577,AJS LTD,329.28,09/03/2017
Commercial,Customer Support Group,Building Repairs & Maintenance,60073738,AJS LTD,30.00,01/03/2017
Commercial,Customer Support Group,Building Repairs & Maintenance,60073828,AJS LTD,635.04,01/03/2017
Commercial,Customer Support Group,Building Repairs & Maintenance,60073837,AJS LTD,296.87,01/03/2017
Commercial,Customer Support Group,Building Repairs & Maintenance,60073849,AJS LTD,384.16,01/03/2017
Commercial,Customer Support Group,Building Repairs & Maintenance,60073913,AJS LTD,759.00,02/03/2017
Commercial,Customer Support Group,Building Repairs & Maintenance,60074509,AJS LTD,296.87,09/03/2017
Commercial,Customer Support Group,Building Repairs & Maintenance,60075089,AJS LTD,125.44,16/03/2017
Commercial,Customer Support Group,Building Repairs & Maintenance,60075141,AJS LTD,78.40,16/03/2017
Commercial,Customer Support Group,Building Repairs & Maintenance,60075152,AJS LTD,85.89,31/03/2017
Commercial,Customer Support Group,Building Repairs & Maintenance,60075243,AJS LTD,86.24,20/03/2017
Commercial,Customer Support Group,Building Repairs & Maintenance,60075272,AJS LTD,133.28,20/03/2017
Commercial,Customer Support Group,Building Repairs & Maintenance,60075286,AJS LTD,15.68,20/03/2017
Commercial,Customer Support Group,Building Repairs & Maintenance,60075313,AJS LTD,47.04,20/03/2017
Commercial,Customer Support Group,Building Repairs & Maintenance,60074011,AUDITEL SYSTEMS,623.00,06/03/2017
Commercial,Customer Support Group,Building Repairs & Maintenance,60073722,CHARLES WILSON ENGINEERS LTD,"1,590.00",01/03/2017
Commercial,Customer Support Group,Building Repairs & Maintenance,60073725,CHARLES WILSON ENGINEERS LTD,242.00,01/03/2017
Commercial,Customer Support Group,Building Repairs & Maintenance,60073770,CHARLES WILSON ENGINEERS LTD,"1,421.90",23/03/2017
Commercial,Customer Support Group,Building Repairs & Maintenance,60072924,D LONG (CONSTRUCTION) LTD,480.00,16/03/2017
Commercial,Customer Support Group,Building Repairs & Maintenance,60074064,DOORWAY-MAINTENANCE CO.,250.00,09/03/2017
Commercial,Customer Support Group,Building Repairs & Maintenance,60074126,DOORWAY-MAINTENANCE CO.,220.00,13/03/2017
Commercial,Customer Support Group,Building Repairs & Maintenance,60074192,DOORWAY-MAINTENANCE CO.,"2,593.10",13/03/2017
Commercial,Customer Support Group,Building Repairs & Maintenance,60074578,EARLSWOOD INDUSTRIAL SVCS LTD,574.00,29/03/2017
Commercial,Customer Support Group,Building Repairs & Maintenance,60048762,HERTEL (UK) LTD,40.83,27/03/2017
Commercial,Customer Support Group,Building Repairs & Maintenance,60073128,HERTEL (UK) LTD,34.91,10/03/2017
Commercial,Customer Support Group,Building Repairs & Maintenance,60073129,HERTEL (UK) LTD,34.91,10/03/2017
Commercial,Customer Support Group,Building Repairs & Maintenance,60073130,HERTEL (UK) LTD,34.91,10/03/2017
Commercial,Customer Support Group,Building Repairs & Maintenance,60073133,HERTEL (UK) LTD,34.91,16/03/2017
Commercial,Customer Support Group,Building Repairs & Maintenance,60073134,HERTEL (UK) LTD,34.91,10/03/2017
Commercial,Customer Support Group,Building Repairs & Maintenance,60073135,HERTEL (UK) LTD,34.91,16/03/2017
Commercial,Customer Support Group,Building Repairs & Maintenance,60073136,HERTEL (UK) LTD,34.91,10/03/2017
Commercial,Customer Support Group,Building Repairs & Maintenance,60073137,HERTEL (UK) LTD,34.91,13/03/2017
Commercial,Customer Support Group,Building Repairs & Maintenance,60073138,HERTEL (UK) LTD,34.91,16/03/2017
Commercial,Customer Support Group,Building Repairs & Maintenance,60073139,HERTEL (UK) LTD,24.94,16/03/2017
Commercial,Customer Support Group,Building Repairs & Maintenance,60073140,HERTEL (UK) LTD,34.91,10/03/2017
Commercial,Customer Support Group,Building Repairs & Maintenance,60073141,HERTEL (UK) LTD,34.91,10/03/2017
Commercial,Customer Support Group,Building Repairs & Maintenance,60073142,HERTEL (UK) LTD,34.91,10/03/2017
Commercial,Customer Support Group,Building Repairs & Maintenance,60073143,HERTEL (UK) LTD,34.91,10/03/2017
Commercial,Customer Support Group,Building Repairs & Maintenance,60073144,HERTEL (UK) LTD,34.91,16/03/2017
Commercial,Customer Support Group,Building Repairs & Maintenance,60073145,HERTEL (UK) LTD,24.94,16/03/2017
Commercial,Customer Support Group,Building Repairs & Maintenance,60073147,HERTEL (UK) LTD,34.91,10/03/2017
Commercial,Customer Support Group,Building Repairs & Maintenance,60073148,HERTEL (UK) LTD,34.91,10/03/2017
Commercial,Customer Support Group,Building Repairs & Maintenance,60073150,HERTEL (UK) LTD,34.91,10/03/2017
Commercial,Customer Support Group,Building Repairs & Maintenance,60073151,HERTEL (UK) LTD,34.91,10/03/2017
Commercial,Customer Support Group,Building Repairs & Maintenance,60073154,HERTEL (UK) LTD,34.91,10/03/2017
Commercial,Customer Support Group,Building Repairs & Maintenance,60073155,HERTEL (UK) LTD,34.91,10/03/2017
Commercial,Customer Support Group,Building Repairs & Maintenance,60073156,HERTEL (UK) LTD,34.91,10/03/2017
Commercial,Customer Support Group,Building Repairs & Maintenance,60073157,HERTEL (UK) LTD,34.91,16/03/2017
Commercial,Customer Support Group,Building Repairs & Maintenance,60073158,HERTEL (UK) LTD,24.94,16/03/2017
Commercial,Customer Support Group,Building Repairs & Maintenance,60073159,HERTEL (UK) LTD,34.91,16/03/2017
Commercial,Customer Support Group,Building Repairs & Maintenance,60073160,HERTEL (UK) LTD,34.91,10/03/2017
Commercial,Customer Support Group,Building Repairs & Maintenance,60073161,HERTEL (UK) LTD,34.91,10/03/2017
Commercial,Customer Support Group,Building Repairs & Maintenance,60073162,HERTEL (UK) LTD,34.91,16/03/2017
Commercial,Customer Support Group,Building Repairs & Maintenance,60073163,HERTEL (UK) LTD,34.91,10/03/2017
Commercial,Customer Support Group,Building Repairs & Maintenance,60073164,HERTEL (UK) LTD,34.91,10/03/2017
Commercial,Customer Support Group,Building Repairs & Maintenance,60073165,HERTEL (UK) LTD,34.91,10/03/2017
Commercial,Customer Support Group,Building Repairs & Maintenance,60073167,HERTEL (UK) LTD,34.91,16/03/2017
Commercial,Customer Support Group,Building Repairs & Maintenance,60073168,HERTEL (UK) LTD,34.91,16/03/2017
Commercial,Customer Support Group,Building Repairs & Maintenance,60073170,HERTEL (UK) LTD,34.91,16/03/2017
Commercial,Customer Support Group,Building Repairs & Maintenance,60073171,HERTEL (UK) LTD,34.91,16/03/2017
Commercial,Customer Support Group,Building Repairs & Maintenance,60073172,HERTEL (UK) LTD,34.91,10/03/2017
Commercial,Customer Support Group,Building Repairs & Maintenance,60073173,HERTEL (UK) LTD,34.91,10/03/2017
Commercial,Customer Support Group,Building Repairs & Maintenance,60073175,HERTEL (UK) LTD,34.91,10/03/2017
Commercial,Customer Support Group,Building Repairs & Maintenance,60073176,HERTEL (UK) LTD,34.91,10/03/2017
Commercial,Customer Support Group,Building Repairs & Maintenance,60073177,HERTEL (UK) LTD,34.91,10/03/2017
Commercial,Customer Support Group,Building Repairs & Maintenance,60073178,HERTEL (UK) LTD,34.91,10/03/2017
Commercial,Customer Support Group,Building Repairs & Maintenance,60073179,HERTEL (UK) LTD,34.91,10/03/2017
Commercial,Customer Support Group,Building Repairs & Maintenance,60073180,HERTEL (UK) LTD,34.91,10/03/2017
Commercial,Customer Support Group,Building Repairs & Maintenance,60073182,HERTEL (UK) LTD,24.94,16/03/2017
Commercial,Customer Support Group,Building Repairs & Maintenance,60073183,HERTEL (UK) LTD,34.91,10/03/2017
Commercial,Customer Support Group,Building Repairs & Maintenance,60073184,HERTEL (UK) LTD,34.91,16/03/2017
Commercial,Customer Support Group,Building Repairs & Maintenance,60073185,HERTEL (UK) LTD,24.94,16/03/2017
Commercial,Customer Support Group,Building Repairs & Maintenance,60073188,HERTEL (UK) LTD,34.91,10/03/2017
Commercial,Customer Support Group,Building Repairs & Maintenance,60073189,HERTEL (UK) LTD,24.94,16/03/2017
Commercial,Customer Support Group,Building Repairs & Maintenance,60073190,HERTEL (UK) LTD,34.91,10/03/2017
Commercial,Customer Support Group,Building Repairs & Maintenance,60073191,HERTEL (UK) LTD,34.91,10/03/2017
Commercial,Customer Support Group,Building Repairs & Maintenance,60073192,HERTEL (UK) LTD,24.94,16/03/2017
Commercial,Customer Support Group,Building Repairs & Maintenance,60073193,HERTEL (UK) LTD,34.91,10/03/2017
Commercial,Customer Support Group,Building Repairs & Maintenance,60073194,HERTEL (UK) LTD,34.91,16/03/2017
Commercial,Customer Support Group,Building Repairs & Maintenance,60073195,HERTEL (UK) LTD,34.91,10/03/2017
Commercial,Customer Support Group,Building Repairs & Maintenance,60073196,HERTEL (UK) LTD,34.91,10/03/2017
Commercial,Customer Support Group,Building Repairs & Maintenance,60073197,HERTEL (UK) LTD,34.91,16/03/2017
Commercial,Customer Support Group,Building Repairs & Maintenance,60073198,HERTEL (UK) LTD,34.91,10/03/2017
Commercial,Customer Support Group,Building Repairs & Maintenance,60073199,HERTEL (UK) LTD,34.91,16/03/2017
Commercial,Customer Support Group,Building Repairs & Maintenance,60073200,HERTEL (UK) LTD,34.91,10/03/2017
Commercial,Customer Support Group,Building Repairs & Maintenance,60073201,HERTEL (UK) LTD,34.91,16/03/2017
Commercial,Customer Support Group,Building Repairs & Maintenance,60073202,HERTEL (UK) LTD,34.91,10/03/2017
Commercial,Customer Support Group,Building Repairs & Maintenance,60073204,HERTEL (UK) LTD,34.91,10/03/2017
Commercial,Customer Support Group,Building Repairs & Maintenance,60073205,HERTEL (UK) LTD,34.91,10/03/2017
Commercial,Customer Support Group,Building Repairs & Maintenance,60073206,HERTEL (UK) LTD,34.91,10/03/2017
Commercial,Customer Support Group,Building Repairs & Maintenance,60073207,HERTEL (UK) LTD,34.91,10/03/2017
Commercial,Customer Support Group,Building Repairs & Maintenance,60073208,HERTEL (UK) LTD,34.91,10/03/2017
Commercial,Customer Support Group,Building Repairs & Maintenance,60073209,HERTEL (UK) LTD,34.91,10/03/2017
Commercial,Customer Support Group,Building Repairs & Maintenance,60073210,HERTEL (UK) LTD,34.91,10/03/2017
Commercial,Customer Support Group,Building Repairs & Maintenance,60073211,HERTEL (UK) LTD,34.91,10/03/2017
Commercial,Customer Support Group,Building Repairs & Maintenance,60073212,HERTEL (UK) LTD,34.91,16/03/2017
Commercial,Customer Support Group,Building Repairs & Maintenance,60073213,HERTEL (UK) LTD,34.91,10/03/2017
Commercial,Customer Support Group,Building Repairs & Maintenance,60073214,HERTEL (UK) LTD,34.91,10/03/2017
Commercial,Customer Support Group,Building Repairs & Maintenance,60073215,HERTEL (UK) LTD,34.91,10/03/2017
Commercial,Customer Support Group,Building Repairs & Maintenance,60073217,HERTEL (UK) LTD,34.91,16/03/2017
Commercial,Customer Support Group,Building Repairs & Maintenance,60073218,HERTEL (UK) LTD,24.94,16/03/2017
Commercial,Customer Support Group,Building Repairs & Maintenance,60073219,HERTEL (UK) LTD,34.91,16/03/2017
Commercial,Customer Support Group,Building Repairs & Maintenance,60073220,HERTEL (UK) LTD,34.91,10/03/2017
Commercial,Customer Support Group,Building Repairs & Maintenance,60073221,HERTEL (UK) LTD,34.91,10/03/2017
Commercial,Customer Support Group,Building Repairs & Maintenance,60073222,HERTEL (UK) LTD,34.91,10/03/2017
Commercial,Customer Support Group,Building Repairs & Maintenance,60073223,HERTEL (UK) LTD,24.94,16/03/2017
Commercial,Customer Support Group,Building Repairs & Maintenance,60073224,HERTEL (UK) LTD,34.91,10/03/2017
Commercial,Customer Support Group,Building Repairs & Maintenance,60073226,HERTEL (UK) LTD,34.91,16/03/2017
Commercial,Customer Support Group,Building Repairs & Maintenance,60073227,HERTEL (UK) LTD,34.91,16/03/2017
Commercial,Customer Support Group,Building Repairs & Maintenance,60073228,HERTEL (UK) LTD,34.91,10/03/2017
Commercial,Customer Support Group,Building Repairs & Maintenance,60073231,HERTEL (UK) LTD,34.91,10/03/2017
Commercial,Customer Support Group,Building Repairs & Maintenance,60073232,HERTEL (UK) LTD,34.91,10/03/2017
Commercial,Customer Support Group,Building Repairs & Maintenance,60073233,HERTEL (UK) LTD,34.91,16/03/2017
Commercial,Customer Support Group,Building Repairs & Maintenance,60073235,HERTEL (UK) LTD,34.91,16/03/2017
Commercial,Customer Support Group,Building Repairs & Maintenance,60073236,HERTEL (UK) LTD,24.94,16/03/2017
Commercial,Customer Support Group,Building Repairs & Maintenance,60073237,HERTEL (UK) LTD,34.91,10/03/2017
Commercial,Customer Support Group,Building Repairs & Maintenance,60073238,HERTEL (UK) LTD,34.91,10/03/2017
Commercial,Customer Support Group,Building Repairs & Maintenance,60073239,HERTEL (UK) LTD,24.94,16/03/2017
Commercial,Customer Support Group,Building Repairs & Maintenance,60073241,HERTEL (UK) LTD,34.91,10/03/2017
Commercial,Customer Support Group,Building Repairs & Maintenance,60073242,HERTEL (UK) LTD,34.91,10/03/2017
Commercial,Customer Support Group,Building Repairs & Maintenance,60073243,HERTEL (UK) LTD,34.91,16/03/2017
Commercial,Customer Support Group,Building Repairs & Maintenance,60073244,HERTEL (UK) LTD,34.91,10/03/2017
Commercial,Customer Support Group,Building Repairs & Maintenance,60073247,HERTEL (UK) LTD,34.91,10/03/2017
Commercial,Customer Support Group,Building Repairs & Maintenance,60073248,HERTEL (UK) LTD,34.91,10/03/2017
Commercial,Customer Support Group,Building Repairs & Maintenance,60073249,HERTEL (UK) LTD,34.91,10/03/2017
Commercial,Customer Support Group,Building Repairs & Maintenance,60073251,HERTEL (UK) LTD,34.91,16/03/2017
Commercial,Customer Support Group,Building Repairs & Maintenance,60073252,HERTEL (UK) LTD,34.91,10/03/2017
Commercial,Customer Support Group,Building Repairs & Maintenance,60073253,HERTEL (UK) LTD,34.91,10/03/2017
Commercial,Customer Support Group,Building Repairs & Maintenance,60073254,HERTEL (UK) LTD,34.91,16/03/2017
Commercial,Customer Support Group,Building Repairs & Maintenance,60073255,HERTEL (UK) LTD,34.91,10/03/2017
Commercial,Customer Support Group,Building Repairs & Maintenance,60073256,HERTEL (UK) LTD,34.91,10/03/2017
Commercial,Customer Support Group,Building Repairs & Maintenance,60073257,HERTEL (UK) LTD,34.91,16/03/2017
Commercial,Customer Support Group,Building Repairs & Maintenance,60073258,HERTEL (UK) LTD,34.91,10/03/2017
Commercial,Customer Support Group,Building Repairs & Maintenance,60073260,HERTEL (UK) LTD,34.91,10/03/2017
Commercial,Customer Support Group,Building Repairs & Maintenance,60073261,HERTEL (UK) LTD,34.91,10/03/2017
Commercial,Customer Support Group,Building Repairs & Maintenance,60073262,HERTEL (UK) LTD,24.94,16/03/2017
Commercial,Customer Support Group,Building Repairs & Maintenance,60073264,HERTEL (UK) LTD,34.91,10/03/2017
Commercial,Customer Support Group,Building Repairs & Maintenance,60073266,HERTEL (UK) LTD,34.91,10/03/2017
Commercial,Customer Support Group,Building Repairs & Maintenance,60073267,HERTEL (UK) LTD,34.91,10/03/2017
Commercial,Customer Support Group,Building Repairs & Maintenance,60073268,HERTEL (UK) LTD,34.91,10/03/2017
Commercial,Customer Support Group,Building Repairs & Maintenance,60073269,HERTEL (UK) LTD,34.91,10/03/2017
Commercial,Customer Support Group,Building Repairs & Maintenance,60073270,HERTEL (UK) LTD,34.91,10/03/2017
Commercial,Customer Support Group,Building Repairs & Maintenance,60073271,HERTEL (UK) LTD,34.91,10/03/2017
Commercial,Customer Support Group,Building Repairs & Maintenance,60073272,HERTEL (UK) LTD,34.91,10/03/2017
Commercial,Customer Support Group,Building Repairs & Maintenance,60073273,HERTEL (UK) LTD,34.91,10/03/2017
Commercial,Customer Support Group,Building Repairs & Maintenance,60073274,HERTEL (UK) LTD,34.91,10/03/2017
Commercial,Customer Support Group,Building Repairs & Maintenance,60073277,HERTEL (UK) LTD,34.91,10/03/2017
Commercial,Customer Support Group,Building Repairs & Maintenance,60073280,HERTEL (UK) LTD,34.91,10/03/2017
Commercial,Customer Support Group,Building Repairs & Maintenance,60073287,HERTEL (UK) LTD,24.94,16/03/2017
Commercial,Customer Support Group,Building Repairs & Maintenance,60073289,HERTEL (UK) LTD,34.91,16/03/2017
Commercial,Customer Support Group,Building Repairs & Maintenance,60073290,HERTEL (UK) LTD,34.91,16/03/2017
Commercial,Customer Support Group,Building Repairs & Maintenance,60073296,HERTEL (UK) LTD,34.91,10/03/2017
Commercial,Customer Support Group,Building Repairs & Maintenance,60073302,HERTEL (UK) LTD,34.91,10/03/2017
Commercial,Customer Support Group,Building Repairs & Maintenance,60073304,HERTEL (UK) LTD,34.91,10/03/2017
Commercial,Customer Support Group,Building Repairs & Maintenance,60073308,HERTEL (UK) LTD,24.94,16/03/2017
Commercial,Customer Support Group,Building Repairs & Maintenance,60073310,HERTEL (UK) LTD,34.91,10/03/2017
Commercial,Customer Support Group,Building Repairs & Maintenance,60073315,HERTEL (UK) LTD,34.91,10/03/2017
Commercial,Customer Support Group,Building Repairs & Maintenance,60073321,HERTEL (UK) LTD,34.91,10/03/2017
Commercial,Customer Support Group,Building Repairs & Maintenance,60073323,HERTEL (UK) LTD,34.91,10/03/2017
Commercial,Customer Support Group,Building Repairs & Maintenance,60073326,HERTEL (UK) LTD,24.94,16/03/2017
Commercial,Customer Support Group,Building Repairs & Maintenance,60073327,HERTEL (UK) LTD,34.91,10/03/2017
Commercial,Customer Support Group,Building Repairs & Maintenance,60073328,HERTEL (UK) LTD,34.91,10/03/2017
Commercial,Customer Support Group,Building Repairs & Maintenance,60073329,HERTEL (UK) LTD,34.91,10/03/2017
Commercial,Customer Support Group,Building Repairs & Maintenance,60073331,HERTEL (UK) LTD,34.91,10/03/2017
Commercial,Customer Support Group,Building Repairs & Maintenance,60073335,HERTEL (UK) LTD,34.91,16/03/2017
Commercial,Customer Support Group,Building Repairs & Maintenance,60073339,HERTEL (UK) LTD,34.91,10/03/2017
Commercial,Customer Support Group,Building Repairs & Maintenance,60073342,HERTEL (UK) LTD,34.91,10/03/2017
Commercial,Customer Support Group,Building Repairs & Maintenance,60073344,HERTEL (UK) LTD,34.91,10/03/2017
Commercial,Customer Support Group,Building Repairs & Maintenance,60073348,HERTEL (UK) LTD,34.91,10/03/2017
Commercial,Customer Support Group,Building Repairs & Maintenance,60073349,HERTEL (UK) LTD,34.91,10/03/2017
Commercial,Customer Support Group,Building Repairs & Maintenance,60073354,HERTEL (UK) LTD,34.91,10/03/2017
Commercial,Customer Support Group,Building Repairs & Maintenance,60073355,HERTEL (UK) LTD,34.91,10/03/2017
Commercial,Customer Support Group,Building Repairs & Maintenance,60073358,HERTEL (UK) LTD,34.91,10/03/2017
Commercial,Customer Support Group,Building Repairs & Maintenance,60073361,HERTEL (UK) LTD,34.91,10/03/2017
Commercial,Customer Support Group,Building Repairs & Maintenance,60073362,HERTEL (UK) LTD,34.91,10/03/2017
Commercial,Customer Support Group,Building Repairs & Maintenance,60073363,HERTEL (UK) LTD,34.91,10/03/2017
Commercial,Customer Support Group,Building Repairs & Maintenance,60073365,HERTEL (UK) LTD,34.91,10/03/2017
Commercial,Customer Support Group,Building Repairs & Maintenance,60073366,HERTEL (UK) LTD,34.91,10/03/2017
Commercial,Customer Support Group,Building Repairs & Maintenance,60073372,HERTEL (UK) LTD,34.91,16/03/2017
Commercial,Customer Support Group,Building Repairs & Maintenance,60073373,HERTEL (UK) LTD,34.91,16/03/2017
Commercial,Customer Support Group,Building Repairs & Maintenance,60073379,HERTEL (UK) LTD,34.91,10/03/2017
Commercial,Customer Support Group,Building Repairs & Maintenance,60073383,HERTEL (UK) LTD,34.91,10/03/2017
Commercial,Customer Support Group,Building Repairs & Maintenance,60073385,HERTEL (UK) LTD,34.91,10/03/2017
Commercial,Customer Support Group,Building Repairs & Maintenance,60073396,HERTEL (UK) LTD,34.91,16/03/2017
Commercial,Customer Support Group,Building Repairs & Maintenance,60073397,HERTEL (UK) LTD,34.91,10/03/2017
Commercial,Customer Support Group,Building Repairs & Maintenance,60073398,HERTEL (UK) LTD,34.91,10/03/2017
Commercial,Customer Support Group,Building Repairs & Maintenance,60073400,HERTEL (UK) LTD,34.91,10/03/2017
Commercial,Customer Support Group,Building Repairs & Maintenance,60073401,HERTEL (UK) LTD,34.91,10/03/2017
Commercial,Customer Support Group,Building Repairs & Maintenance,60073406,HERTEL (UK) LTD,34.91,10/03/2017
Commercial,Customer Support Group,Building Repairs & Maintenance,60073410,HERTEL (UK) LTD,34.91,10/03/2017
Commercial,Customer Support Group,Building Repairs & Maintenance,60073412,HERTEL (UK) LTD,34.91,10/03/2017
Commercial,Customer Support Group,Building Repairs & Maintenance,60073415,HERTEL (UK) LTD,34.91,10/03/2017
Commercial,Customer Support Group,Building Repairs & Maintenance,60073416,HERTEL (UK) LTD,34.91,10/03/2017
Commercial,Customer Support Group,Building Repairs & Maintenance,60073420,HERTEL (UK) LTD,34.91,10/03/2017
Commercial,Customer Support Group,Building Repairs & Maintenance,60073422,HERTEL (UK) LTD,34.91,10/03/2017
Commercial,Customer Support Group,Building Repairs & Maintenance,60073428,HERTEL (UK) LTD,34.91,10/03/2017
Commercial,Customer Support Group,Building Repairs & Maintenance,60073430,HERTEL (UK) LTD,34.91,10/03/2017
Commercial,Customer Support Group,Building Repairs & Maintenance,60073432,HERTEL (UK) LTD,24.94,16/03/2017
Commercial,Customer Support Group,Building Repairs & Maintenance,60073436,HERTEL (UK) LTD,34.91,10/03/2017
Commercial,Customer Support Group,Building Repairs & Maintenance,60073442,HERTEL (UK) LTD,34.91,10/03/2017
Commercial,Customer Support Group,Building Repairs & Maintenance,60073443,HERTEL (UK) LTD,34.91,16/03/2017
Commercial,Customer Support Group,Building Repairs & Maintenance,60073448,HERTEL (UK) LTD,34.91,16/03/2017
Commercial,Customer Support Group,Building Repairs & Maintenance,60073450,HERTEL (UK) LTD,34.91,16/03/2017
Commercial,Customer Support Group,Building Repairs & Maintenance,60073451,HERTEL (UK) LTD,34.91,16/03/2017
Commercial,Customer Support Group,Building Repairs & Maintenance,60073452,HERTEL (UK) LTD,34.91,16/03/2017
Commercial,Customer Support Group,Building Repairs & Maintenance,60073454,HERTEL (UK) LTD,34.91,10/03/2017
Commercial,Customer Support Group,Building Repairs & Maintenance,60073465,HERTEL (UK) LTD,34.91,16/03/2017
Commercial,Customer Support Group,Building Repairs & Maintenance,60073466,HERTEL (UK) LTD,34.91,16/03/2017
Commercial,Customer Support Group,Building Repairs & Maintenance,60073470,HERTEL (UK) LTD,34.91,16/03/2017
Commercial,Customer Support Group,Building Repairs & Maintenance,60073472,HERTEL (UK) LTD,34.91,16/03/2017
Commercial,Customer Support Group,Building Repairs & Maintenance,60073475,HERTEL (UK) LTD,34.91,16/03/2017
Commercial,Customer Support Group,Building Repairs & Maintenance,60073478,HERTEL (UK) LTD,34.91,16/03/2017
Commercial,Customer Support Group,Building Repairs & Maintenance,60073481,HERTEL (UK) LTD,34.91,16/03/2017
Commercial,Customer Support Group,Building Repairs & Maintenance,60073485,HERTEL (UK) LTD,34.91,10/03/2017
Commercial,Customer Support Group,Building Repairs & Maintenance,60073487,HERTEL (UK) LTD,34.91,16/03/2017
Commercial,Customer Support Group,Building Repairs & Maintenance,60073507,HERTEL (UK) LTD,34.91,16/03/2017
Commercial,Customer Support Group,Building Repairs & Maintenance,60073512,HERTEL (UK) LTD,34.91,16/03/2017
Commercial,Customer Support Group,Building Repairs & Maintenance,60073513,HERTEL (UK) LTD,34.91,16/03/2017
Commercial,Customer Support Group,Building Repairs & Maintenance,60073519,HERTEL (UK) LTD,34.91,16/03/2017
Commercial,Customer Support Group,Building Repairs & Maintenance,60073524,HERTEL (UK) LTD,34.91,16/03/2017
Commercial,Customer Support Group,Building Repairs & Maintenance,60073541,HERTEL (UK) LTD,34.91,16/03/2017
Commercial,Customer Support Group,Building Repairs & Maintenance,60073551,HERTEL (UK) LTD,34.91,16/03/2017
Commercial,Customer Support Group,Building Repairs & Maintenance,60073558,HERTEL (UK) LTD,34.91,10/03/2017
Commercial,Customer Support Group,Building Repairs & Maintenance,60073566,HERTEL (UK) LTD,34.91,16/03/2017
Commercial,Customer Support Group,Building Repairs & Maintenance,60073577,HERTEL (UK) LTD,34.91,10/03/2017
Commercial,Customer Support Group,Building Repairs & Maintenance,60073729,HERTEL (UK) LTD,34.91,16/03/2017
Commercial,Customer Support Group,Building Repairs & Maintenance,60073778,HERTEL (UK) LTD,34.91,10/03/2017
Commercial,Customer Support Group,Building Repairs & Maintenance,60073781,HERTEL (UK) LTD,34.91,10/03/2017
Commercial,Customer Support Group,Building Repairs & Maintenance,60073801,HERTEL (UK) LTD,34.91,10/03/2017
Commercial,Customer Support Group,Building Repairs & Maintenance,60073821,HERTEL (UK) LTD,34.91,16/03/2017
Commercial,Customer Support Group,Building Repairs & Maintenance,60073823,HERTEL (UK) LTD,34.91,10/03/2017
Commercial,Customer Support Group,Building Repairs & Maintenance,60073847,HERTEL (UK) LTD,34.91,16/03/2017
Commercial,Customer Support Group,Building Repairs & Maintenance,60074409,HERTEL (UK) LTD,170.00,10/03/2017
Commercial,Customer Support Group,Building Repairs & Maintenance,60074418,HERTEL (UK) LTD,90.00,10/03/2017
Commercial,Customer Support Group,Building Repairs & Maintenance,60074426,HERTEL (UK) LTD,75.00,10/03/2017
Commercial,Customer Support Group,Building Repairs & Maintenance,60074434,HERTEL (UK) LTD,116.38,16/03/2017
Commercial,Customer Support Group,Building Repairs & Maintenance,60074435,HERTEL (UK) LTD,119.70,16/03/2017
Commercial,Customer Support Group,Building Repairs & Maintenance,60074442,HERTEL (UK) LTD,135.00,10/03/2017
Commercial,Customer Support Group,Building Repairs & Maintenance,60074444,HERTEL (UK) LTD,45.00,10/03/2017
Commercial,Customer Support Group,Building Repairs & Maintenance,60074452,HERTEL (UK) LTD,90.00,10/03/2017
Commercial,Customer Support Group,Building Repairs & Maintenance,60074457,HERTEL (UK) LTD,"2,470.00",10/03/2017
Commercial,Customer Support Group,Building Repairs & Maintenance,60074460,HERTEL (UK) LTD,75.00,10/03/2017
Commercial,Customer Support Group,Building Repairs & Maintenance,60074462,HERTEL (UK) LTD,75.00,10/03/2017
Commercial,Customer Support Group,Building Repairs & Maintenance,60074466,HERTEL (UK) LTD,200.00,10/03/2017
Commercial,Customer Support Group,Building Repairs & Maintenance,60074469,HERTEL (UK) LTD,90.00,10/03/2017
Commercial,Customer Support Group,Building Repairs & Maintenance,60074470,HERTEL (UK) LTD,200.00,10/03/2017
Commercial,Customer Support Group,Building Repairs & Maintenance,60074473,HERTEL (UK) LTD,75.00,16/03/2017
Commercial,Customer Support Group,Building Repairs & Maintenance,60074475,HERTEL (UK) LTD,45.00,10/03/2017
Commercial,Customer Support Group,Building Repairs & Maintenance,60074481,HERTEL (UK) LTD,45.00,10/03/2017
Commercial,Customer Support Group,Building Repairs & Maintenance,60074483,HERTEL (UK) LTD,90.00,10/03/2017
Commercial,Customer Support Group,Building Repairs & Maintenance,60074484,HERTEL (UK) LTD,75.00,10/03/2017
Commercial,Customer Support Group,Building Repairs & Maintenance,60074510,HERTEL (UK) LTD,45.00,10/03/2017
Commercial,Customer Support Group,Building Repairs & Maintenance,60074512,HERTEL (UK) LTD,126.00,10/03/2017
Commercial,Customer Support Group,Building Repairs & Maintenance,60074598,HERTEL (UK) LTD,150.00,10/03/2017
Commercial,Customer Support Group,Building Repairs & Maintenance,60075707,HERTEL (UK) LTD,119.70,31/03/2017
Commercial,Customer Support Group,Building Repairs & Maintenance,60075857,HERTEL (UK) LTD,119.70,31/03/2017
Commercial,Customer Support Group,Building Repairs & Maintenance,60074131,LEE SECURITY LONDON LIMITED,480.00,28/03/2017
Commercial,Customer Support Group,Building Repairs & Maintenance,60071408,LIFT & ENGINEERING SERVICES LTD,"1,676.00",01/03/2017
Commercial,Customer Support Group,Building Repairs & Maintenance,60071817,LIFT & ENGINEERING SERVICES LTD,232.00,01/03/2017
Commercial,Customer Support Group,Building Repairs & Maintenance,60073724,LIFT & ENGINEERING SERVICES LTD,89.25,10/03/2017
Commercial,Customer Support Group,Building Repairs & Maintenance,60073728,LIFT & ENGINEERING SERVICES LTD,987.50,01/03/2017
Commercial,Customer Support Group,Building Repairs & Maintenance,60073732,LIFT & ENGINEERING SERVICES LTD,44.63,23/03/2017
Commercial,Customer Support Group,Building Repairs & Maintenance,60073745,LIFT & ENGINEERING SERVICES LTD,89.25,23/03/2017
Commercial,Customer Support Group,Building Repairs & Maintenance,60073749,LIFT & ENGINEERING SERVICES LTD,44.63,23/03/2017
Commercial,Customer Support Group,Building Repairs & Maintenance,60073752,LIFT & ENGINEERING SERVICES LTD,66.94,23/03/2017
Commercial,Customer Support Group,Building Repairs & Maintenance,60073754,LIFT & ENGINEERING SERVICES LTD,44.63,23/03/2017
Commercial,Customer Support Group,Building Repairs & Maintenance,60073759,LIFT & ENGINEERING SERVICES LTD,66.94,23/03/2017
Commercial,Customer Support Group,Building Repairs & Maintenance,60073763,LIFT & ENGINEERING SERVICES LTD,89.25,10/03/2017
Commercial,Customer Support Group,Building Repairs & Maintenance,60073768,LIFT & ENGINEERING SERVICES LTD,44.63,23/03/2017
Commercial,Customer Support Group,Building Repairs & Maintenance,60073771,LIFT & ENGINEERING SERVICES LTD,66.94,23/03/2017
Commercial,Customer Support Group,Building Repairs & Maintenance,60073774,LIFT & ENGINEERING SERVICES LTD,66.94,23/03/2017
Commercial,Customer Support Group,Building Repairs & Maintenance,60073780,LIFT & ENGINEERING SERVICES LTD,66.94,23/03/2017
Commercial,Customer Support Group,Building Repairs & Maintenance,60073786,LIFT & ENGINEERING SERVICES LTD,89.25,23/03/2017
Commercial,Customer Support Group,Building Repairs & Maintenance,60073794,LIFT & ENGINEERING SERVICES LTD,89.25,23/03/2017
Commercial,Customer Support Group,Building Repairs & Maintenance,60073797,LIFT & ENGINEERING SERVICES LTD,89.25,10/03/2017
Commercial,Customer Support Group,Building Repairs & Maintenance,60073799,LIFT & ENGINEERING SERVICES LTD,89.25,23/03/2017
Commercial,Customer Support Group,Building Repairs & Maintenance,60073805,LIFT & ENGINEERING SERVICES LTD,66.94,23/03/2017
Commercial,Customer Support Group,Building Repairs & Maintenance,60073809,LIFT & ENGINEERING SERVICES LTD,44.63,23/03/2017
Commercial,Customer Support Group,Building Repairs & Maintenance,60073826,LIFT & ENGINEERING SERVICES LTD,267.75,23/03/2017
Commercial,Customer Support Group,Building Repairs & Maintenance,60073843,LIFT & ENGINEERING SERVICES LTD,66.94,23/03/2017
Commercial,Customer Support Group,Building Repairs & Maintenance,60074335,LIFT & ENGINEERING SERVICES LTD,145.00,23/03/2017
Commercial,Customer Support Group,Building Repairs & Maintenance,60074433,LIFT & ENGINEERING SERVICES LTD,89.25,30/03/2017
Commercial,Customer Support Group,Building Repairs & Maintenance,60074443,LIFT & ENGINEERING SERVICES LTD,"1,876.00",30/03/2017
Commercial,Customer Support Group,Building Repairs & Maintenance,60074474,LIFT & ENGINEERING SERVICES LTD,89.25,30/03/2017
Commercial,Customer Support Group,Building Repairs & Maintenance,60074494,LIFT & ENGINEERING SERVICES LTD,89.25,30/03/2017
Commercial,Customer Support Group,Building Repairs & Maintenance,60074553,LIFT & ENGINEERING SERVICES LTD,232.00,09/03/2017
Commercial,Customer Support Group,Building Repairs & Maintenance,60074027,NORTH LONDON CATERING EQUIPMENT,177.50,03/03/2017
Commercial,Customer Support Group,Building Repairs & Maintenance,60074796,NORTH LONDON CATERING EQUIPMENT,246.20,13/03/2017
Commercial,Customer Support Group,Building Repairs & Maintenance,60072248,OAKRAY LIMITED,65.00,01/03/2017
Commercial,Customer Support Group,Building Repairs & Maintenance,60072757,OAKRAY LIMITED,96.00,01/03/2017
Commercial,Customer Support Group,Building Repairs & Maintenance,60072761,OAKRAY LIMITED,187.95,01/03/2017
Commercial,Customer Support Group,Building Repairs & Maintenance,60072777,OAKRAY LIMITED,96.00,01/03/2017
Commercial,Customer Support Group,Building Repairs & Maintenance,60072786,OAKRAY LIMITED,88.00,01/03/2017
Commercial,Customer Support Group,Building Repairs & Maintenance,60072789,OAKRAY LIMITED,64.00,01/03/2017
Commercial,Customer Support Group,Building Repairs & Maintenance,60072798,OAKRAY LIMITED,126.80,01/03/2017
Commercial,Customer Support Group,Building Repairs & Maintenance,60072800,OAKRAY LIMITED,112.00,01/03/2017
Commercial,Customer Support Group,Building Repairs & Maintenance,60072803,OAKRAY LIMITED,64.00,01/03/2017
Commercial,Customer Support Group,Building Repairs & Maintenance,60072818,OAKRAY LIMITED,153.60,01/03/2017
Commercial,Customer Support Group,Building Repairs & Maintenance,60072820,OAKRAY LIMITED,175.89,01/03/2017
Commercial,Customer Support Group,Building Repairs & Maintenance,60072823,OAKRAY LIMITED,202.44,01/03/2017
Commercial,Customer Support Group,Building Repairs & Maintenance,60072850,OAKRAY LIMITED,80.00,01/03/2017
Commercial,Customer Support Group,Building Repairs & Maintenance,60072852,OAKRAY LIMITED,112.00,01/03/2017
Commercial,Customer Support Group,Building Repairs & Maintenance,60072853,OAKRAY LIMITED,144.00,01/03/2017
Commercial,Customer Support Group,Building Repairs & Maintenance,60072859,OAKRAY LIMITED,96.00,01/03/2017
Commercial,Customer Support Group,Building Repairs & Maintenance,60072861,OAKRAY LIMITED,88.00,01/03/2017
Commercial,Customer Support Group,Building Repairs & Maintenance,60072865,OAKRAY LIMITED,224.00,01/03/2017
Commercial,Customer Support Group,Building Repairs & Maintenance,60072867,OAKRAY LIMITED,160.00,01/03/2017
Commercial,Customer Support Group,Building Repairs & Maintenance,60072868,OAKRAY LIMITED,80.00,01/03/2017
Commercial,Customer Support Group,Building Repairs & Maintenance,60072871,OAKRAY LIMITED,80.00,01/03/2017
Commercial,Customer Support Group,Building Repairs & Maintenance,60072872,OAKRAY LIMITED,64.00,01/03/2017
Commercial,Customer Support Group,Building Repairs & Maintenance,60072874,OAKRAY LIMITED,128.00,01/03/2017
Commercial,Customer Support Group,Building Repairs & Maintenance,60072878,OAKRAY LIMITED,162.00,01/03/2017
Commercial,Customer Support Group,Building Repairs & Maintenance,60072880,OAKRAY LIMITED,240.75,01/03/2017
Commercial,Customer Support Group,Building Repairs & Maintenance,60072881,OAKRAY LIMITED,96.00,01/03/2017
Commercial,Customer Support Group,Building Repairs & Maintenance,60072884,OAKRAY LIMITED,134.93,01/03/2017
Commercial,Customer Support Group,Building Repairs & Maintenance,60072885,OAKRAY LIMITED,72.00,01/03/2017
Commercial,Customer Support Group,Building Repairs & Maintenance,60072888,OAKRAY LIMITED,128.00,01/03/2017
Commercial,Customer Support Group,Building Repairs & Maintenance,60072889,OAKRAY LIMITED,64.00,01/03/2017
Commercial,Customer Support Group,Building Repairs & Maintenance,60072890,OAKRAY LIMITED,96.00,01/03/2017
Commercial,Customer Support Group,Building Repairs & Maintenance,60072895,OAKRAY LIMITED,80.00,01/03/2017
Commercial,Customer Support Group,Building Repairs & Maintenance,60072896,OAKRAY LIMITED,80.00,10/03/2017
Commercial,Customer Support Group,Building Repairs & Maintenance,60072899,OAKRAY LIMITED,88.00,01/03/2017
Commercial,Customer Support Group,Building Repairs & Maintenance,60072900,OAKRAY LIMITED,112.00,01/03/2017
Commercial,Customer Support Group,Building Repairs & Maintenance,60072904,OAKRAY LIMITED,64.00,01/03/2017
Commercial,Customer Support Group,Building Repairs & Maintenance,60072905,OAKRAY LIMITED,64.00,01/03/2017
Commercial,Customer Support Group,Building Repairs & Maintenance,60072906,OAKRAY LIMITED,88.00,10/03/2017
Commercial,Customer Support Group,Building Repairs & Maintenance,60072907,OAKRAY LIMITED,96.00,01/03/2017
Commercial,Customer Support Group,Building Repairs & Maintenance,60072912,OAKRAY LIMITED,112.00,01/03/2017
Commercial,Customer Support Group,Building Repairs & Maintenance,60072913,OAKRAY LIMITED,96.00,01/03/2017
Commercial,Customer Support Group,Building Repairs & Maintenance,60072914,OAKRAY LIMITED,136.00,01/03/2017
Commercial,Customer Support Group,Building Repairs & Maintenance,60072917,OAKRAY LIMITED,72.00,01/03/2017
Commercial,Customer Support Group,Building Repairs & Maintenance,60072918,OAKRAY LIMITED,72.00,17/03/2017
Commercial,Customer Support Group,Building Repairs & Maintenance,60072920,OAKRAY LIMITED,72.00,01/03/2017
Commercial,Customer Support Group,Building Repairs & Maintenance,60072923,OAKRAY LIMITED,80.00,01/03/2017
Commercial,Customer Support Group,Building Repairs & Maintenance,60072925,OAKRAY LIMITED,96.00,01/03/2017
Commercial,Customer Support Group,Building Repairs & Maintenance,60072927,OAKRAY LIMITED,64.00,01/03/2017
Commercial,Customer Support Group,Building Repairs & Maintenance,60072932,OAKRAY LIMITED,64.00,01/03/2017
Commercial,Customer Support Group,Building Repairs & Maintenance,60072933,OAKRAY LIMITED,96.00,01/03/2017
Commercial,Customer Support Group,Building Repairs & Maintenance,60072934,OAKRAY LIMITED,64.00,01/03/2017
Commercial,Customer Support Group,Building Repairs & Maintenance,60072935,OAKRAY LIMITED,108.19,01/03/2017
Commercial,Customer Support Group,Building Repairs & Maintenance,60072938,OAKRAY LIMITED,64.00,01/03/2017
Commercial,Customer Support Group,Building Repairs & Maintenance,60072939,OAKRAY LIMITED,88.00,10/03/2017
Commercial,Customer Support Group,Building Repairs & Maintenance,60072940,OAKRAY LIMITED,80.00,01/03/2017
Commercial,Customer Support Group,Building Repairs & Maintenance,60072943,OAKRAY LIMITED,64.00,01/03/2017
Commercial,Customer Support Group,Building Repairs & Maintenance,60072944,OAKRAY LIMITED,80.00,01/03/2017
Commercial,Customer Support Group,Building Repairs & Maintenance,60072949,OAKRAY LIMITED,80.00,01/03/2017
Commercial,Customer Support Group,Building Repairs & Maintenance,60072950,OAKRAY LIMITED,64.00,01/03/2017
Commercial,Customer Support Group,Building Repairs & Maintenance,60072951,OAKRAY LIMITED,64.00,01/03/2017
Commercial,Customer Support Group,Building Repairs & Maintenance,60072955,OAKRAY LIMITED,80.00,01/03/2017
Commercial,Customer Support Group,Building Repairs & Maintenance,60072956,OAKRAY LIMITED,80.00,01/03/2017
Commercial,Customer Support Group,Building Repairs & Maintenance,60072964,OAKRAY LIMITED,220.35,01/03/2017
Commercial,Customer Support Group,Building Repairs & Maintenance,60072970,OAKRAY LIMITED,80.00,01/03/2017
Commercial,Customer Support Group,Building Repairs & Maintenance,60072972,OAKRAY LIMITED,127.77,01/03/2017
Commercial,Customer Support Group,Building Repairs & Maintenance,60072976,OAKRAY LIMITED,80.00,01/03/2017
Commercial,Customer Support Group,Building Repairs & Maintenance,60072977,OAKRAY LIMITED,80.00,01/03/2017
Commercial,Customer Support Group,Building Repairs & Maintenance,60072979,OAKRAY LIMITED,132.00,01/03/2017
Commercial,Customer Support Group,Building Repairs & Maintenance,60072980,OAKRAY LIMITED,88.00,01/03/2017
Commercial,Customer Support Group,Building Repairs & Maintenance,60072981,OAKRAY LIMITED,64.00,01/03/2017
Commercial,Customer Support Group,Building Repairs & Maintenance,60072982,OAKRAY LIMITED,96.00,01/03/2017
Commercial,Customer Support Group,Building Repairs & Maintenance,60072983,OAKRAY LIMITED,112.00,10/03/2017
Commercial,Customer Support Group,Building Repairs & Maintenance,60072986,OAKRAY LIMITED,96.00,01/03/2017
Commercial,Customer Support Group,Building Repairs & Maintenance,60072987,OAKRAY LIMITED,96.00,01/03/2017
Commercial,Customer Support Group,Building Repairs & Maintenance,60072990,OAKRAY LIMITED,64.00,01/03/2017
Commercial,Customer Support Group,Building Repairs & Maintenance,60072991,OAKRAY LIMITED,144.00,01/03/2017
Commercial,Customer Support Group,Building Repairs & Maintenance,60072993,OAKRAY LIMITED,80.00,01/03/2017
Commercial,Customer Support Group,Building Repairs & Maintenance,60073001,OAKRAY LIMITED,208.00,01/03/2017
Commercial,Customer Support Group,Building Repairs & Maintenance,60073016,OAKRAY LIMITED,88.00,01/03/2017
Commercial,Customer Support Group,Building Repairs & Maintenance,60073018,OAKRAY LIMITED,80.00,01/03/2017
Commercial,Customer Support Group,Building Repairs & Maintenance,60073019,OAKRAY LIMITED,64.00,01/03/2017
Commercial,Customer Support Group,Building Repairs & Maintenance,60073032,OAKRAY LIMITED,179.83,01/03/2017
Commercial,Customer Support Group,Building Repairs & Maintenance,60073033,OAKRAY LIMITED,96.00,01/03/2017
Commercial,Customer Support Group,Building Repairs & Maintenance,60073034,OAKRAY LIMITED,80.00,01/03/2017
Commercial,Customer Support Group,Building Repairs & Maintenance,60073036,OAKRAY LIMITED,80.00,01/03/2017
Commercial,Customer Support Group,Building Repairs & Maintenance,60073038,OAKRAY LIMITED,72.00,01/03/2017
Commercial,Customer Support Group,Building Repairs & Maintenance,60073040,OAKRAY LIMITED,128.00,01/03/2017
Commercial,Customer Support Group,Building Repairs & Maintenance,60073053,OAKRAY LIMITED,80.00,01/03/2017
Commercial,Customer Support Group,Building Repairs & Maintenance,60073055,OAKRAY LIMITED,64.00,01/03/2017
Commercial,Customer Support Group,Building Repairs & Maintenance,60073061,OAKRAY LIMITED,80.00,01/03/2017
Commercial,Customer Support Group,Building Repairs & Maintenance,60073063,OAKRAY LIMITED,80.00,01/03/2017
Commercial,Customer Support Group,Building Repairs & Maintenance,60073077,OAKRAY LIMITED,80.00,01/03/2017
Commercial,Customer Support Group,Building Repairs & Maintenance,60073083,OAKRAY LIMITED,64.00,01/03/2017
Commercial,Customer Support Group,Building Repairs & Maintenance,60073090,OAKRAY LIMITED,64.00,01/03/2017
Commercial,Customer Support Group,Building Repairs & Maintenance,60073092,OAKRAY LIMITED,120.00,01/03/2017
Commercial,Customer Support Group,Building Repairs & Maintenance,60073099,OAKRAY LIMITED,96.00,01/03/2017
Commercial,Customer Support Group,Building Repairs & Maintenance,60073103,OAKRAY LIMITED,64.00,01/03/2017
Commercial,Customer Support Group,Building Repairs & Maintenance,60073106,OAKRAY LIMITED,96.00,01/03/2017
Commercial,Customer Support Group,Building Repairs & Maintenance,60073108,OAKRAY LIMITED,112.00,01/03/2017
Commercial,Customer Support Group,Building Repairs & Maintenance,60073115,OAKRAY LIMITED,96.00,01/03/2017
Commercial,Customer Support Group,Building Repairs & Maintenance,60073120,OAKRAY LIMITED,96.00,01/03/2017
Commercial,Customer Support Group,Building Repairs & Maintenance,60073125,OAKRAY LIMITED,96.00,01/03/2017
Commercial,Customer Support Group,Building Repairs & Maintenance,60073181,OAKRAY LIMITED,128.00,01/03/2017
Commercial,Customer Support Group,Building Repairs & Maintenance,60073203,OAKRAY LIMITED,64.00,01/03/2017
Commercial,Customer Support Group,Building Repairs & Maintenance,60073234,OAKRAY LIMITED,96.00,01/03/2017
Commercial,Customer Support Group,Building Repairs & Maintenance,60073240,OAKRAY LIMITED,123.84,01/03/2017
Commercial,Customer Support Group,Building Repairs & Maintenance,60073246,OAKRAY LIMITED,80.00,01/03/2017
Commercial,Customer Support Group,Building Repairs & Maintenance,60073319,OAKRAY LIMITED,258.95,01/03/2017
Commercial,Customer Support Group,Building Repairs & Maintenance,60073721,OAKRAY LIMITED,306.86,01/03/2017
Commercial,Customer Support Group,Building Repairs & Maintenance,60073723,OAKRAY LIMITED,317.87,01/03/2017
Commercial,Customer Support Group,Building Repairs & Maintenance,60073727,OAKRAY LIMITED,668.63,01/03/2017
Commercial,Customer Support Group,Building Repairs & Maintenance,60073743,OAKRAY LIMITED,933.63,01/03/2017
Commercial,Customer Support Group,Building Repairs & Maintenance,60073744,OAKRAY LIMITED,473.68,01/03/2017
Commercial,Customer Support Group,Building Repairs & Maintenance,60073758,OAKRAY LIMITED,401.39,01/03/2017
Commercial,Customer Support Group,Building Repairs & Maintenance,60073764,OAKRAY LIMITED,288.00,01/03/2017
Commercial,Customer Support Group,Building Repairs & Maintenance,60073772,OAKRAY LIMITED,"1,813.12",01/03/2017
Commercial,Customer Support Group,Building Repairs & Maintenance,60073773,OAKRAY LIMITED,"1,288.13",01/03/2017
Commercial,Customer Support Group,Building Repairs & Maintenance,60073777,OAKRAY LIMITED,408.34,01/03/2017
Commercial,Customer Support Group,Building Repairs & Maintenance,60073782,OAKRAY LIMITED,335.54,01/03/2017
Commercial,Customer Support Group,Building Repairs & Maintenance,60073787,OAKRAY LIMITED,"1,012.23",01/03/2017
Commercial,Customer Support Group,Building Repairs & Maintenance,60073789,OAKRAY LIMITED,"5,291.23",01/03/2017
Commercial,Customer Support Group,Building Repairs & Maintenance,60073791,OAKRAY LIMITED,379.95,01/03/2017
Commercial,Customer Support Group,Building Repairs & Maintenance,60073796,OAKRAY LIMITED,240.00,01/03/2017
Commercial,Customer Support Group,Building Repairs & Maintenance,60073813,OAKRAY LIMITED,972.00,01/03/2017
Commercial,Customer Support Group,Building Repairs & Maintenance,60073817,OAKRAY LIMITED,"1,033.63",01/03/2017
Commercial,Customer Support Group,Building Repairs & Maintenance,60073819,OAKRAY LIMITED,"1,270.97",01/03/2017
Commercial,Customer Support Group,Building Repairs & Maintenance,60073822,OAKRAY LIMITED,415.20,01/03/2017
Commercial,Customer Support Group,Building Repairs & Maintenance,60073835,OAKRAY LIMITED,379.55,01/03/2017
Commercial,Customer Support Group,Building Repairs & Maintenance,60073839,OAKRAY LIMITED,402.40,01/03/2017
Commercial,Customer Support Group,Building Repairs & Maintenance,60073886,OAKRAY LIMITED,666.56,02/03/2017
Commercial,Customer Support Group,Building Repairs & Maintenance,60074402,OAKRAY LIMITED,616.31,08/03/2017
Commercial,Customer Support Group,Building Repairs & Maintenance,60074420,OAKRAY LIMITED,473.81,08/03/2017
Commercial,Customer Support Group,Building Repairs & Maintenance,60074421,OAKRAY LIMITED,436.00,08/03/2017
Commercial,Customer Support Group,Building Repairs & Maintenance,60074423,OAKRAY LIMITED,"1,005.00",08/03/2017
Commercial,Customer Support Group,Building Repairs & Maintenance,60074427,OAKRAY LIMITED,457.42,08/03/2017
Commercial,Customer Support Group,Building Repairs & Maintenance,60074429,OAKRAY LIMITED,103.31,08/03/2017
Commercial,Customer Support Group,Building Repairs & Maintenance,60074437,OAKRAY LIMITED,883.50,08/03/2017
Commercial,Customer Support Group,Building Repairs & Maintenance,60074447,OAKRAY LIMITED,468.75,08/03/2017
Commercial,Customer Support Group,Building Repairs & Maintenance,60074448,OAKRAY LIMITED,487.35,08/03/2017
Commercial,Customer Support Group,Building Repairs & Maintenance,60074449,OAKRAY LIMITED,285.00,08/03/2017
Commercial,Customer Support Group,Building Repairs & Maintenance,60074454,OAKRAY LIMITED,324.18,08/03/2017
Commercial,Customer Support Group,Building Repairs & Maintenance,60074467,OAKRAY LIMITED,393.30,08/03/2017
Commercial,Customer Support Group,Building Repairs & Maintenance,60074472,OAKRAY LIMITED,64.12,08/03/2017
Commercial,Customer Support Group,Building Repairs & Maintenance,60074476,OAKRAY LIMITED,93.75,08/03/2017
Commercial,Customer Support Group,Building Repairs & Maintenance,60074480,OAKRAY LIMITED,"1,058.00",08/03/2017
Commercial,Customer Support Group,Building Repairs & Maintenance,60074496,OAKRAY LIMITED,171.00,08/03/2017
Commercial,Customer Support Group,Building Repairs & Maintenance,60074497,OAKRAY LIMITED,580.68,08/03/2017
Commercial,Customer Support Group,Building Repairs & Maintenance,60074511,OAKRAY LIMITED,647.66,08/03/2017
Commercial,Customer Support Group,Building Repairs & Maintenance,60074560,OAKRAY LIMITED,"8,027.00",09/03/2017
Commercial,Customer Support Group,Building Repairs & Maintenance,60074606,OAKRAY LIMITED,488.86,09/03/2017
Commercial,Customer Support Group,Building Repairs & Maintenance,60074640,OAKRAY LIMITED,"2,829.32",09/03/2017
Commercial,Customer Support Group,Building Repairs & Maintenance,40001781,OFFICE DEPOT UK LTD,69.70,28/03/2017
Commercial,Customer Support Group,Building Repairs & Maintenance,60071911,RGE SERVICES,93.00,01/03/2017
Commercial,Customer Support Group,Building Repairs & Maintenance,60073265,RGE SERVICES,459.93,03/03/2017
Commercial,Customer Support Group,Building Repairs & Maintenance,60073276,RGE SERVICES,138.81,10/03/2017
Commercial,Customer Support Group,Building Repairs & Maintenance,60073279,RGE SERVICES,62.00,10/03/2017
Commercial,Customer Support Group,Building Repairs & Maintenance,60073281,RGE SERVICES,240.50,14/03/2017
Commercial,Customer Support Group,Building Repairs & Maintenance,60073283,RGE SERVICES,125.19,10/03/2017
Commercial,Customer Support Group,Building Repairs & Maintenance,60073285,RGE SERVICES,62.00,10/03/2017
Commercial,Customer Support Group,Building Repairs & Maintenance,60073291,RGE SERVICES,697.19,14/03/2017
Commercial,Customer Support Group,Building Repairs & Maintenance,60073292,RGE SERVICES,62.00,14/03/2017
Commercial,Customer Support Group,Building Repairs & Maintenance,60073293,RGE SERVICES,56.65,03/03/2017
Commercial,Customer Support Group,Building Repairs & Maintenance,60073298,RGE SERVICES,72.48,14/03/2017
Commercial,Customer Support Group,Building Repairs & Maintenance,60073299,RGE SERVICES,178.46,10/03/2017
Commercial,Customer Support Group,Building Repairs & Maintenance,60073300,RGE SERVICES,79.40,10/03/2017
Commercial,Customer Support Group,Building Repairs & Maintenance,60073301,RGE SERVICES,"2,391.61",14/03/2017
Commercial,Customer Support Group,Building Repairs & Maintenance,60073305,RGE SERVICES,238.35,10/03/2017
Commercial,Customer Support Group,Building Repairs & Maintenance,60073312,RGE SERVICES,149.74,10/03/2017
Commercial,Customer Support Group,Building Repairs & Maintenance,60073313,RGE SERVICES,62.00,10/03/2017
Commercial,Customer Support Group,Building Repairs & Maintenance,60073317,RGE SERVICES,312.15,03/03/2017
Commercial,Customer Support Group,Building Repairs & Maintenance,60073318,RGE SERVICES,62.00,14/03/2017
Commercial,Customer Support Group,Building Repairs & Maintenance,60073322,RGE SERVICES,"1,402.20",14/03/2017
Commercial,Customer Support Group,Building Repairs & Maintenance,60073324,RGE SERVICES,183.03,10/03/2017
Commercial,Customer Support Group,Building Repairs & Maintenance,60073330,RGE SERVICES,887.11,10/03/2017
Commercial,Customer Support Group,Building Repairs & Maintenance,60073337,RGE SERVICES,91.66,10/03/2017
Commercial,Customer Support Group,Building Repairs & Maintenance,60073338,RGE SERVICES,460.25,10/03/2017
Commercial,Customer Support Group,Building Repairs & Maintenance,60073340,RGE SERVICES,31.00,03/03/2017
Commercial,Customer Support Group,Building Repairs & Maintenance,60073346,RGE SERVICES,93.00,10/03/2017
Commercial,Customer Support Group,Building Repairs & Maintenance,60073347,RGE SERVICES,117.86,10/03/2017
Commercial,Customer Support Group,Building Repairs & Maintenance,60073352,RGE SERVICES,62.00,10/03/2017
Commercial,Customer Support Group,Building Repairs & Maintenance,60073356,RGE SERVICES,192.36,14/03/2017
Commercial,Customer Support Group,Building Repairs & Maintenance,60073367,RGE SERVICES,127.41,03/03/2017
Commercial,Customer Support Group,Building Repairs & Maintenance,60073370,RGE SERVICES,90.82,10/03/2017
Commercial,Customer Support Group,Building Repairs & Maintenance,60073371,RGE SERVICES,62.00,10/03/2017
Commercial,Customer Support Group,Building Repairs & Maintenance,60073375,RGE SERVICES,170.63,10/03/2017
Commercial,Customer Support Group,Building Repairs & Maintenance,60073376,RGE SERVICES,62.00,10/03/2017
Commercial,Customer Support Group,Building Repairs & Maintenance,60073387,RGE SERVICES,62.00,10/03/2017
Commercial,Customer Support Group,Building Repairs & Maintenance,60073389,RGE SERVICES,73.78,10/03/2017
Commercial,Customer Support Group,Building Repairs & Maintenance,60073391,RGE SERVICES,168.19,10/03/2017
Commercial,Customer Support Group,Building Repairs & Maintenance,60073393,RGE SERVICES,155.00,10/03/2017
Commercial,Customer Support Group,Building Repairs & Maintenance,60073395,RGE SERVICES,62.00,10/03/2017
Commercial,Customer Support Group,Building Repairs & Maintenance,60073399,RGE SERVICES,118.50,03/03/2017
Commercial,Customer Support Group,Building Repairs & Maintenance,60073407,RGE SERVICES,155.82,14/03/2017
Commercial,Customer Support Group,Building Repairs & Maintenance,60073408,RGE SERVICES,60.97,10/03/2017
Commercial,Customer Support Group,Building Repairs & Maintenance,60073409,RGE SERVICES,326.99,10/03/2017
Commercial,Customer Support Group,Building Repairs & Maintenance,60073417,RGE SERVICES,85.50,03/03/2017
Commercial,Customer Support Group,Building Repairs & Maintenance,60073421,RGE SERVICES,172.86,15/03/2017
Commercial,Customer Support Group,Building Repairs & Maintenance,60073424,RGE SERVICES,141.40,10/03/2017
Commercial,Customer Support Group,Building Repairs & Maintenance,60073425,RGE SERVICES,182.36,10/03/2017
Commercial,Customer Support Group,Building Repairs & Maintenance,60073426,RGE SERVICES,176.48,14/03/2017
Commercial,Customer Support Group,Building Repairs & Maintenance,60073427,RGE SERVICES,145.72,14/03/2017
Commercial,Customer Support Group,Building Repairs & Maintenance,60073431,RGE SERVICES,47.03,03/03/2017
Commercial,Customer Support Group,Building Repairs & Maintenance,60073435,RGE SERVICES,236.04,10/03/2017
Commercial,Customer Support Group,Building Repairs & Maintenance,60073440,RGE SERVICES,186.42,14/03/2017
Commercial,Customer Support Group,Building Repairs & Maintenance,60073441,RGE SERVICES,55.90,10/03/2017
Commercial,Customer Support Group,Building Repairs & Maintenance,60073447,RGE SERVICES,68.62,07/03/2017
Commercial,Customer Support Group,Building Repairs & Maintenance,60073449,RGE SERVICES,47.03,03/03/2017
Commercial,Customer Support Group,Building Repairs & Maintenance,60073457,RGE SERVICES,197.51,28/03/2017
Commercial,Customer Support Group,Building Repairs & Maintenance,60073463,RGE SERVICES,106.88,03/03/2017
Commercial,Customer Support Group,Building Repairs & Maintenance,60073488,RGE SERVICES,37.86,03/03/2017
Commercial,Customer Support Group,Building Repairs & Maintenance,60073499,RGE SERVICES,675.45,03/03/2017
Commercial,Customer Support Group,Building Repairs & Maintenance,60073505,RGE SERVICES,812.60,10/03/2017
Commercial,Customer Support Group,Building Repairs & Maintenance,60073509,RGE SERVICES,319.78,03/03/2017
Commercial,Customer Support Group,Building Repairs & Maintenance,60073517,RGE SERVICES,94.05,03/03/2017
Commercial,Customer Support Group,Building Repairs & Maintenance,60073518,RGE SERVICES,72.70,06/03/2017
Commercial,Customer Support Group,Building Repairs & Maintenance,60073527,RGE SERVICES,243.78,10/03/2017
Commercial,Customer Support Group,Building Repairs & Maintenance,60073542,RGE SERVICES,349.68,03/03/2017
Commercial,Customer Support Group,Building Repairs & Maintenance,60073544,RGE SERVICES,257.52,14/03/2017
Commercial,Customer Support Group,Building Repairs & Maintenance,60073547,RGE SERVICES,624.17,03/03/2017
Commercial,Customer Support Group,Building Repairs & Maintenance,60073550,RGE SERVICES,44.68,03/03/2017
Commercial,Customer Support Group,Building Repairs & Maintenance,60073557,RGE SERVICES,624.97,03/03/2017
Commercial,Customer Support Group,Building Repairs & Maintenance,60073565,RGE SERVICES,107.74,03/03/2017
Commercial,Customer Support Group,Building Repairs & Maintenance,60073783,RGE SERVICES,341.36,10/03/2017
Commercial,Customer Support Group,Building Repairs & Maintenance,60073846,RGE SERVICES,31.00,03/03/2017
Commercial,Customer Support Group,Building Repairs & Maintenance,60074410,RGE SERVICES,53.91,21/03/2017
Commercial,Customer Support Group,Building Repairs & Maintenance,60074415,RGE SERVICES,47.03,22/03/2017
Commercial,Customer Support Group,Building Repairs & Maintenance,60074430,RGE SERVICES,247.95,21/03/2017
Commercial,Customer Support Group,Building Repairs & Maintenance,60074440,RGE SERVICES,94.05,21/03/2017
Commercial,Customer Support Group,Building Repairs & Maintenance,60074445,RGE SERVICES,235.13,23/03/2017
Commercial,Customer Support Group,Building Repairs & Maintenance,60074458,RGE SERVICES,28.22,22/03/2017
Commercial,Customer Support Group,Building Repairs & Maintenance,60074468,RGE SERVICES,75.31,21/03/2017
Commercial,Customer Support Group,Building Repairs & Maintenance,60074486,RGE SERVICES,185.13,23/03/2017
Commercial,Customer Support Group,Building Repairs & Maintenance,60074487,RGE SERVICES,436.10,21/03/2017
Commercial,Customer Support Group,Building Repairs & Maintenance,60074493,RGE SERVICES,241.39,23/03/2017
Commercial,Customer Support Group,Building Repairs & Maintenance,60074498,RGE SERVICES,166.73,21/03/2017
Commercial,Customer Support Group,Building Repairs & Maintenance,60074499,RGE SERVICES,284.39,21/03/2017
Commercial,Customer Support Group,Building Repairs & Maintenance,60074502,RGE SERVICES,47.03,21/03/2017
Commercial,Customer Support Group,Building Repairs & Maintenance,60074504,RGE SERVICES,303.37,23/03/2017
Commercial,Customer Support Group,Building Repairs & Maintenance,60074514,RGE SERVICES,80.56,23/03/2017
Commercial,Customer Support Group,Building Repairs & Maintenance,60074515,RGE SERVICES,94.05,23/03/2017
Commercial,Customer Support Group,Building Repairs & Maintenance,60074517,RGE SERVICES,81.25,23/03/2017
Commercial,Customer Support Group,Building Repairs & Maintenance,60074525,RGE SERVICES,267.35,29/03/2017
Commercial,Customer Support Group,Building Repairs & Maintenance,60074530,RGE SERVICES,128.25,23/03/2017
Commercial,Customer Support Group,Building Repairs & Maintenance,60074533,RGE SERVICES,34.42,21/03/2017
Commercial,Customer Support Group,Building Repairs & Maintenance,60074538,RGE SERVICES,140.29,23/03/2017
Commercial,Customer Support Group,Building Repairs & Maintenance,60074544,RGE SERVICES,235.13,23/03/2017
Commercial,Customer Support Group,Building Repairs & Maintenance,60074545,RGE SERVICES,238.53,29/03/2017
Commercial,Customer Support Group,Building Repairs & Maintenance,60074549,RGE SERVICES,124.00,10/03/2017
Commercial,Customer Support Group,Building Repairs & Maintenance,60074552,RGE SERVICES,258.53,23/03/2017
Commercial,Customer Support Group,Building Repairs & Maintenance,60074554,RGE SERVICES,128.25,23/03/2017
Commercial,Customer Support Group,Building Repairs & Maintenance,60074556,RGE SERVICES,562.44,16/03/2017
Commercial,Customer Support Group,Building Repairs & Maintenance,60074557,RGE SERVICES,493.49,21/03/2017
Commercial,Customer Support Group,Building Repairs & Maintenance,60074561,RGE SERVICES,235.13,23/03/2017
Commercial,Customer Support Group,Building Repairs & Maintenance,60074562,RGE SERVICES,94.05,23/03/2017
Commercial,Customer Support Group,Building Repairs & Maintenance,60074563,RGE SERVICES,299.77,23/03/2017
Commercial,Customer Support Group,Building Repairs & Maintenance,60074564,RGE SERVICES,296.69,23/03/2017
Commercial,Customer Support Group,Building Repairs & Maintenance,60074566,RGE SERVICES,"1,487.50",23/03/2017
Commercial,Customer Support Group,Building Repairs & Maintenance,60074569,RGE SERVICES,30.81,23/03/2017
Commercial,Customer Support Group,Building Repairs & Maintenance,60074571,RGE SERVICES,893.71,23/03/2017
Commercial,Customer Support Group,Building Repairs & Maintenance,60074572,RGE SERVICES,139.63,23/03/2017
Commercial,Customer Support Group,Building Repairs & Maintenance,60074573,RGE SERVICES,31.00,21/03/2017
Commercial,Customer Support Group,Building Repairs & Maintenance,60074575,RGE SERVICES,959.85,23/03/2017
Commercial,Customer Support Group,Building Repairs & Maintenance,60074581,RGE SERVICES,300.37,29/03/2017
Commercial,Customer Support Group,Building Repairs & Maintenance,60074582,RGE SERVICES,128.25,21/03/2017
Commercial,Customer Support Group,Building Repairs & Maintenance,60074591,RGE SERVICES,161.99,23/03/2017
Commercial,Customer Support Group,Building Repairs & Maintenance,60074592,RGE SERVICES,256.50,22/03/2017
Commercial,Customer Support Group,Building Repairs & Maintenance,60074594,RGE SERVICES,102.93,21/03/2017
Commercial,Customer Support Group,Building Repairs & Maintenance,60074599,RGE SERVICES,647.90,28/03/2017
Commercial,Customer Support Group,Building Repairs & Maintenance,60074600,RGE SERVICES,220.60,23/03/2017
Commercial,Customer Support Group,Building Repairs & Maintenance,60074602,RGE SERVICES,94.91,23/03/2017
Commercial,Customer Support Group,Building Repairs & Maintenance,60074604,RGE SERVICES,94.05,23/03/2017
Commercial,Customer Support Group,Building Repairs & Maintenance,60074609,RGE SERVICES,128.25,23/03/2017
Commercial,Customer Support Group,Building Repairs & Maintenance,60074610,RGE SERVICES,179.57,21/03/2017
Commercial,Customer Support Group,Building Repairs & Maintenance,60074612,RGE SERVICES,128.25,23/03/2017
Commercial,Customer Support Group,Building Repairs & Maintenance,60074615,RGE SERVICES,760.95,21/03/2017
Commercial,Customer Support Group,Building Repairs & Maintenance,60074617,RGE SERVICES,235.15,21/03/2017
Commercial,Customer Support Group,Building Repairs & Maintenance,60074619,RGE SERVICES,47.03,21/03/2017
Commercial,Customer Support Group,Building Repairs & Maintenance,60074622,RGE SERVICES,247.95,23/03/2017
Commercial,Customer Support Group,Building Repairs & Maintenance,60074623,RGE SERVICES,94.05,23/03/2017
Commercial,Customer Support Group,Building Repairs & Maintenance,60074631,RGE SERVICES,36.14,23/03/2017
Commercial,Customer Support Group,Building Repairs & Maintenance,60074632,RGE SERVICES,31.00,22/03/2017
Commercial,Customer Support Group,Building Repairs & Maintenance,60074633,RGE SERVICES,155.24,23/03/2017
Commercial,Customer Support Group,Building Repairs & Maintenance,60074635,RGE SERVICES,399.32,23/03/2017
Commercial,Customer Support Group,Building Repairs & Maintenance,60074638,RGE SERVICES,141.08,21/03/2017
Commercial,Customer Support Group,Building Repairs & Maintenance,60074639,RGE SERVICES,266.26,23/03/2017
Commercial,Customer Support Group,Building Repairs & Maintenance,60074647,RGE SERVICES,243.69,23/03/2017
Commercial,Customer Support Group,Building Repairs & Maintenance,60074650,RGE SERVICES,115.43,23/03/2017
Commercial,Customer Support Group,Building Repairs & Maintenance,60074844,RGE SERVICES,561.09,23/03/2017
Commercial,Customer Support Group,Building Repairs & Maintenance,60074919,RGE SERVICES,62.00,29/03/2017
Commercial,Customer Support Group,Building Repairs & Maintenance,60074971,RGE SERVICES,168.87,21/03/2017
Commercial,Customer Support Group,Building Repairs & Maintenance,60075138,RGE SERVICES,489.28,22/03/2017
Commercial,Customer Support Group,Building Repairs & Maintenance,60075163,RGE SERVICES,"2,294.60",21/03/2017
Commercial,Customer Support Group,Building Repairs & Maintenance,60075327,RGE SERVICES,235.68,20/03/2017
Commercial,Customer Support Group,Building Repairs & Maintenance,60076183,RGE SERVICES,500.01,31/03/2017
Commercial,Customer Support Group,Building Repairs & Maintenance,60076195,RGE SERVICES,393.30,31/03/2017
Commercial,Customer Support Group,Building Repairs & Maintenance,60046890,S W BRUCE & CO LTD,256.75,27/03/2017
Commercial,Customer Support Group,Building Repairs & Maintenance,60072302,S W BRUCE & CO LTD,128.70,10/03/2017
Commercial,Customer Support Group,Building Repairs & Maintenance,60072303,S W BRUCE & CO LTD,37.14,08/03/2017
Commercial,Customer Support Group,Building Repairs & Maintenance,60072307,S W BRUCE & CO LTD,85.50,10/03/2017
Commercial,Customer Support Group,Building Repairs & Maintenance,60072309,S W BRUCE & CO LTD,85.50,10/03/2017
Commercial,Customer Support Group,Building Repairs & Maintenance,60072310,S W BRUCE & CO LTD,63.43,09/03/2017
Commercial,Customer Support Group,Building Repairs & Maintenance,60072311,S W BRUCE & CO LTD,238.41,10/03/2017
Commercial,Customer Support Group,Building Repairs & Maintenance,60072315,S W BRUCE & CO LTD,57.00,10/03/2017
Commercial,Customer Support Group,Building Repairs & Maintenance,60072316,S W BRUCE & CO LTD,39.08,10/03/2017
Commercial,Customer Support Group,Building Repairs & Maintenance,60072317,S W BRUCE & CO LTD,33.72,09/03/2017
Commercial,Customer Support Group,Building Repairs & Maintenance,60072318,S W BRUCE & CO LTD,139.02,10/03/2017
Commercial,Customer Support Group,Building Repairs & Maintenance,60072319,S W BRUCE & CO LTD,138.00,10/03/2017
Commercial,Customer Support Group,Building Repairs & Maintenance,60072320,S W BRUCE & CO LTD,57.00,10/03/2017
Commercial,Customer Support Group,Building Repairs & Maintenance,60072321,S W BRUCE & CO LTD,63.27,10/03/2017
Commercial,Customer Support Group,Building Repairs & Maintenance,60072322,S W BRUCE & CO LTD,81.36,08/03/2017
Commercial,Customer Support Group,Building Repairs & Maintenance,60072323,S W BRUCE & CO LTD,57.00,10/03/2017
Commercial,Customer Support Group,Building Repairs & Maintenance,60072324,S W BRUCE & CO LTD,57.00,10/03/2017
Commercial,Customer Support Group,Building Repairs & Maintenance,60072325,S W BRUCE & CO LTD,64.29,10/03/2017
Commercial,Customer Support Group,Building Repairs & Maintenance,60072327,S W BRUCE & CO LTD,115.77,09/03/2017
Commercial,Customer Support Group,Building Repairs & Maintenance,60072328,S W BRUCE & CO LTD,85.50,10/03/2017
Commercial,Customer Support Group,Building Repairs & Maintenance,60072330,S W BRUCE & CO LTD,148.99,10/03/2017
Commercial,Customer Support Group,Building Repairs & Maintenance,60072331,S W BRUCE & CO LTD,114.00,08/03/2017
Commercial,Customer Support Group,Building Repairs & Maintenance,60072333,S W BRUCE & CO LTD,148.99,09/03/2017
Commercial,Customer Support Group,Building Repairs & Maintenance,60072334,S W BRUCE & CO LTD,258.25,20/03/2017
Commercial,Customer Support Group,Building Repairs & Maintenance,60072335,S W BRUCE & CO LTD,228.00,10/03/2017
Commercial,Customer Support Group,Building Repairs & Maintenance,60072336,S W BRUCE & CO LTD,202.88,08/03/2017
Commercial,Customer Support Group,Building Repairs & Maintenance,60072337,S W BRUCE & CO LTD,63.21,10/03/2017
Commercial,Customer Support Group,Building Repairs & Maintenance,60072338,S W BRUCE & CO LTD,57.00,10/03/2017
Commercial,Customer Support Group,Building Repairs & Maintenance,60072341,S W BRUCE & CO LTD,43.06,08/03/2017
Commercial,Customer Support Group,Building Repairs & Maintenance,60072342,S W BRUCE & CO LTD,57.00,15/03/2017
Commercial,Customer Support Group,Building Repairs & Maintenance,60072343,S W BRUCE & CO LTD,270.25,10/03/2017
Commercial,Customer Support Group,Building Repairs & Maintenance,60072346,S W BRUCE & CO LTD,201.82,09/03/2017
Commercial,Customer Support Group,Building Repairs & Maintenance,60072348,S W BRUCE & CO LTD,25.00,10/03/2017
Commercial,Customer Support Group,Building Repairs & Maintenance,60072349,S W BRUCE & CO LTD,192.35,10/03/2017
Commercial,Customer Support Group,Building Repairs & Maintenance,60072351,S W BRUCE & CO LTD,85.50,10/03/2017
Commercial,Customer Support Group,Building Repairs & Maintenance,60072352,S W BRUCE & CO LTD,224.60,10/03/2017
Commercial,Customer Support Group,Building Repairs & Maintenance,60072353,S W BRUCE & CO LTD,128.38,08/03/2017
Commercial,Customer Support Group,Building Repairs & Maintenance,60072354,S W BRUCE & CO LTD,57.00,09/03/2017
Commercial,Customer Support Group,Building Repairs & Maintenance,60072356,S W BRUCE & CO LTD,85.58,09/03/2017
Commercial,Customer Support Group,Building Repairs & Maintenance,60072358,S W BRUCE & CO LTD,82.99,08/03/2017
Commercial,Customer Support Group,Building Repairs & Maintenance,60072359,S W BRUCE & CO LTD,43.15,10/03/2017
Commercial,Customer Support Group,Building Repairs & Maintenance,60072362,S W BRUCE & CO LTD,159.40,10/03/2017
Commercial,Customer Support Group,Building Repairs & Maintenance,60072363,S W BRUCE & CO LTD,552.56,08/03/2017
Commercial,Customer Support Group,Building Repairs & Maintenance,60072364,S W BRUCE & CO LTD,133.99,10/03/2017
Commercial,Customer Support Group,Building Repairs & Maintenance,60072365,S W BRUCE & CO LTD,271.20,10/03/2017
Commercial,Customer Support Group,Building Repairs & Maintenance,60072367,S W BRUCE & CO LTD,57.00,09/03/2017
Commercial,Customer Support Group,Building Repairs & Maintenance,60072369,S W BRUCE & CO LTD,65.44,08/03/2017
Commercial,Customer Support Group,Building Repairs & Maintenance,60072370,S W BRUCE & CO LTD,198.57,10/03/2017
Commercial,Customer Support Group,Building Repairs & Maintenance,60072371,S W BRUCE & CO LTD,223.48,10/03/2017
Commercial,Customer Support Group,Building Repairs & Maintenance,60072372,S W BRUCE & CO LTD,153.50,10/03/2017
Commercial,Customer Support Group,Building Repairs & Maintenance,60072373,S W BRUCE & CO LTD,57.00,10/03/2017
Commercial,Customer Support Group,Building Repairs & Maintenance,60072375,S W BRUCE & CO LTD,113.06,10/03/2017
Commercial,Customer Support Group,Building Repairs & Maintenance,60072376,S W BRUCE & CO LTD,40.66,09/03/2017
Commercial,Customer Support Group,Building Repairs & Maintenance,60072377,S W BRUCE & CO LTD,35.48,10/03/2017
Commercial,Customer Support Group,Building Repairs & Maintenance,60072379,S W BRUCE & CO LTD,64.98,10/03/2017
Commercial,Customer Support Group,Building Repairs & Maintenance,60072382,S W BRUCE & CO LTD,57.00,10/03/2017
Commercial,Customer Support Group,Building Repairs & Maintenance,60072387,S W BRUCE & CO LTD,66.56,10/03/2017
Commercial,Customer Support Group,Building Repairs & Maintenance,60072388,S W BRUCE & CO LTD,114.68,10/03/2017
Commercial,Customer Support Group,Building Repairs & Maintenance,60072389,S W BRUCE & CO LTD,139.02,10/03/2017
Commercial,Customer Support Group,Building Repairs & Maintenance,60072390,S W BRUCE & CO LTD,"2,509.20",10/03/2017
Commercial,Customer Support Group,Building Repairs & Maintenance,60072391,S W BRUCE & CO LTD,57.00,10/03/2017
Commercial,Customer Support Group,Building Repairs & Maintenance,60072392,S W BRUCE & CO LTD,25.00,10/03/2017
Commercial,Customer Support Group,Building Repairs & Maintenance,60072394,S W BRUCE & CO LTD,112.56,10/03/2017
Commercial,Customer Support Group,Building Repairs & Maintenance,60072399,S W BRUCE & CO LTD,155.34,08/03/2017
Commercial,Customer Support Group,Building Repairs & Maintenance,60072400,S W BRUCE & CO LTD,171.22,10/03/2017
Commercial,Customer Support Group,Building Repairs & Maintenance,60072401,S W BRUCE & CO LTD,57.00,10/03/2017
Commercial,Customer Support Group,Building Repairs & Maintenance,60072402,S W BRUCE & CO LTD,57.00,10/03/2017
Commercial,Customer Support Group,Building Repairs & Maintenance,60072403,S W BRUCE & CO LTD,38.03,08/03/2017
Commercial,Customer Support Group,Building Repairs & Maintenance,60072404,S W BRUCE & CO LTD,57.00,09/03/2017
Commercial,Customer Support Group,Building Repairs & Maintenance,60072406,S W BRUCE & CO LTD,178.57,10/03/2017
Commercial,Customer Support Group,Building Repairs & Maintenance,60072408,S W BRUCE & CO LTD,408.92,10/03/2017
Commercial,Customer Support Group,Building Repairs & Maintenance,60072409,S W BRUCE & CO LTD,94.04,08/03/2017
Commercial,Customer Support Group,Building Repairs & Maintenance,60072410,S W BRUCE & CO LTD,57.00,09/03/2017
Commercial,Customer Support Group,Building Repairs & Maintenance,60072413,S W BRUCE & CO LTD,65.56,10/03/2017
Commercial,Customer Support Group,Building Repairs & Maintenance,60072414,S W BRUCE & CO LTD,28.50,10/03/2017
Commercial,Customer Support Group,Building Repairs & Maintenance,60072415,S W BRUCE & CO LTD,31.13,10/03/2017
Commercial,Customer Support Group,Building Repairs & Maintenance,60072416,S W BRUCE & CO LTD,57.00,08/03/2017
Commercial,Customer Support Group,Building Repairs & Maintenance,60072417,S W BRUCE & CO LTD,113.76,10/03/2017
Commercial,Customer Support Group,Building Repairs & Maintenance,60072418,S W BRUCE & CO LTD,30.39,10/03/2017
Commercial,Customer Support Group,Building Repairs & Maintenance,60072420,S W BRUCE & CO LTD,66.56,08/03/2017
Commercial,Customer Support Group,Building Repairs & Maintenance,60072425,S W BRUCE & CO LTD,"1,070.95",10/03/2017
Commercial,Customer Support Group,Building Repairs & Maintenance,60072427,S W BRUCE & CO LTD,100.10,09/03/2017
Commercial,Customer Support Group,Building Repairs & Maintenance,60072428,S W BRUCE & CO LTD,66.63,08/03/2017
Commercial,Customer Support Group,Building Repairs & Maintenance,60072430,S W BRUCE & CO LTD,39.08,10/03/2017
Commercial,Customer Support Group,Building Repairs & Maintenance,60072431,S W BRUCE & CO LTD,101.44,08/03/2017
Commercial,Customer Support Group,Building Repairs & Maintenance,60072432,S W BRUCE & CO LTD,67.63,10/03/2017
Commercial,Customer Support Group,Building Repairs & Maintenance,60072434,S W BRUCE & CO LTD,83.89,10/03/2017
Commercial,Customer Support Group,Building Repairs & Maintenance,60072435,S W BRUCE & CO LTD,74.81,10/03/2017
Commercial,Customer Support Group,Building Repairs & Maintenance,60072436,S W BRUCE & CO LTD,114.98,10/03/2017
Commercial,Customer Support Group,Building Repairs & Maintenance,60072438,S W BRUCE & CO LTD,57.00,10/03/2017
Commercial,Customer Support Group,Building Repairs & Maintenance,60072439,S W BRUCE & CO LTD,25.00,10/03/2017
Commercial,Customer Support Group,Building Repairs & Maintenance,60072441,S W BRUCE & CO LTD,85.50,10/03/2017
Commercial,Customer Support Group,Building Repairs & Maintenance,60072442,S W BRUCE & CO LTD,66.56,08/03/2017
Commercial,Customer Support Group,Building Repairs & Maintenance,60072443,S W BRUCE & CO LTD,57.00,09/03/2017
Commercial,Customer Support Group,Building Repairs & Maintenance,60072444,S W BRUCE & CO LTD,46.49,10/03/2017
Commercial,Customer Support Group,Building Repairs & Maintenance,60072446,S W BRUCE & CO LTD,66.56,08/03/2017
Commercial,Customer Support Group,Building Repairs & Maintenance,60072447,S W BRUCE & CO LTD,85.58,09/03/2017
Commercial,Customer Support Group,Building Repairs & Maintenance,60072448,S W BRUCE & CO LTD,63.27,10/03/2017
Commercial,Customer Support Group,Building Repairs & Maintenance,60072450,S W BRUCE & CO LTD,59.54,08/03/2017
Commercial,Customer Support Group,Building Repairs & Maintenance,60072451,S W BRUCE & CO LTD,57.00,08/03/2017
Commercial,Customer Support Group,Building Repairs & Maintenance,60072452,S W BRUCE & CO LTD,583.50,10/03/2017
Commercial,Customer Support Group,Building Repairs & Maintenance,60072454,S W BRUCE & CO LTD,101.44,10/03/2017
Commercial,Customer Support Group,Building Repairs & Maintenance,60072455,S W BRUCE & CO LTD,66.56,10/03/2017
Commercial,Customer Support Group,Building Repairs & Maintenance,60072457,S W BRUCE & CO LTD,85.50,10/03/2017
Commercial,Customer Support Group,Building Repairs & Maintenance,60072459,S W BRUCE & CO LTD,25.00,10/03/2017
Commercial,Customer Support Group,Building Repairs & Maintenance,60072460,S W BRUCE & CO LTD,"1,555.60",09/03/2017
Commercial,Customer Support Group,Building Repairs & Maintenance,60072461,S W BRUCE & CO LTD,42.75,09/03/2017
Commercial,Customer Support Group,Building Repairs & Maintenance,60072463,S W BRUCE & CO LTD,43.21,10/03/2017
Commercial,Customer Support Group,Building Repairs & Maintenance,60072464,S W BRUCE & CO LTD,245.34,08/03/2017
Commercial,Customer Support Group,Building Repairs & Maintenance,60072465,S W BRUCE & CO LTD,65.02,08/03/2017
Commercial,Customer Support Group,Building Repairs & Maintenance,60072466,S W BRUCE & CO LTD,25.00,08/03/2017
Commercial,Customer Support Group,Building Repairs & Maintenance,60072468,S W BRUCE & CO LTD,67.25,10/03/2017
Commercial,Customer Support Group,Building Repairs & Maintenance,60072469,S W BRUCE & CO LTD,67.63,08/03/2017
Commercial,Customer Support Group,Building Repairs & Maintenance,60072470,S W BRUCE & CO LTD,57.00,10/03/2017
Commercial,Customer Support Group,Building Repairs & Maintenance,60072472,S W BRUCE & CO LTD,85.50,08/03/2017
Commercial,Customer Support Group,Building Repairs & Maintenance,60072475,S W BRUCE & CO LTD,57.00,09/03/2017
Commercial,Customer Support Group,Building Repairs & Maintenance,60072477,S W BRUCE & CO LTD,95.67,08/03/2017
Commercial,Customer Support Group,Building Repairs & Maintenance,60072479,S W BRUCE & CO LTD,133.13,08/03/2017
Commercial,Customer Support Group,Building Repairs & Maintenance,60072481,S W BRUCE & CO LTD,63.43,10/03/2017
Commercial,Customer Support Group,Building Repairs & Maintenance,60072482,S W BRUCE & CO LTD,34.95,10/03/2017
Commercial,Customer Support Group,Building Repairs & Maintenance,60072483,S W BRUCE & CO LTD,64.72,08/03/2017
Commercial,Customer Support Group,Building Repairs & Maintenance,60072566,S W BRUCE & CO LTD,"16,956.40",14/03/2017
Commercial,Customer Support Group,Building Repairs & Maintenance,60073540,S W BRUCE & CO LTD,53.28,01/03/2017
Commercial,Customer Support Group,Building Repairs & Maintenance,60074275,S W BRUCE & CO LTD,85.58,30/03/2017
Commercial,Customer Support Group,Building Repairs & Maintenance,60074299,S W BRUCE & CO LTD,25.00,29/03/2017
Commercial,Customer Support Group,Building Repairs & Maintenance,60074312,S W BRUCE & CO LTD,28.50,29/03/2017
Commercial,Customer Support Group,Building Repairs & Maintenance,60074313,S W BRUCE & CO LTD,278.03,29/03/2017
Commercial,Customer Support Group,Building Repairs & Maintenance,60074315,S W BRUCE & CO LTD,28.50,29/03/2017
Commercial,Customer Support Group,Building Repairs & Maintenance,60074316,S W BRUCE & CO LTD,71.71,29/03/2017
Commercial,Customer Support Group,Building Repairs & Maintenance,60074324,S W BRUCE & CO LTD,71.86,30/03/2017
Commercial,Customer Support Group,Building Repairs & Maintenance,60074391,S W BRUCE & CO LTD,324.68,30/03/2017
Commercial,Customer Support Group,Building Repairs & Maintenance,60074398,S W BRUCE & CO LTD,42.75,29/03/2017
Commercial,Customer Support Group,Building Repairs & Maintenance,60074438,S W BRUCE & CO LTD,63.10,30/03/2017
Commercial,Customer Support Group,Building Repairs & Maintenance,60074488,S W BRUCE & CO LTD,25.00,30/03/2017
Commercial,Customer Support Group,Building Repairs & Maintenance,10013670,SECOM PLC,463.50,20/03/2017
Commercial,Customer Support Group,Building Repairs & Maintenance,60073734,SECOM PLC,"1,431.74",15/03/2017
Commercial,Customer Support Group,Building Repairs & Maintenance,60073831,SECOM PLC,470.95,15/03/2017
Commercial,Customer Support Group,Building Repairs & Maintenance,60074062,SECOM PLC,100.00,21/03/2017
Commercial,Customer Support Group,Building Repairs & Maintenance,60075149,SECOM PLC,"1,237.03",16/03/2017
Commercial,Customer Support Group,Building Repairs & Maintenance,60074521,UNITED FORKTRUCKS (1992) LTD,236.25,28/03/2017
Commercial,Customer Support Group,Building Repairs & Maintenance,60074815,WINTERS HAULAGE LTD,340.00,17/03/2017
Commercial,Customer Support Group,Cleaning and domestic material,60069710,CHURCHILL CONTRACT SERVICES,"11,562.54",01/03/2017
Commercial,Customer Support Group,Cleaning and domestic material,60071431,CHURCHILL CONTRACT SERVICES,661.80,02/03/2017
Commercial,Customer Support Group,Cleaning and domestic material,60071464,CHURCHILL CONTRACT SERVICES,"7,329.82",02/03/2017
Commercial,Customer Support Group,Cleaning and domestic material,60071480,CHURCHILL CONTRACT SERVICES,"11,562.54",02/03/2017
Commercial,Customer Support Group,Cleaning and domestic material,60071489,CHURCHILL CONTRACT SERVICES,"1,133.45",02/03/2017
Commercial,Customer Support Group,Cleaning and domestic material,60071501,CHURCHILL CONTRACT SERVICES,"1,032.37",02/03/2017
Commercial,Customer Support Group,Cleaning and domestic material,60074236,CHURCHILL CONTRACT SERVICES,"7,329.82",30/03/2017
Commercial,Customer Support Group,Cleaning and domestic material,60074666,HERTFORDSHIRE SUPPLIES   COUNTY CO,117.40,13/03/2017
Commercial,Customer Support Group,Cleaning and domestic material,60074681,HERTFORDSHIRE SUPPLIES   COUNTY CO,29.40,10/03/2017
Commercial,Customer Support Group,Cleaning and domestic material,60074683,HERTFORDSHIRE SUPPLIES   COUNTY CO,"2,139.05",13/03/2017
Commercial,Customer Support Group,Cleaning and domestic material,60074701,HERTFORDSHIRE SUPPLIES   COUNTY CO,325.30,10/03/2017
Commercial,Customer Support Group,Cleaning and domestic material,60074728,HERTFORDSHIRE SUPPLIES   COUNTY CO,"1,227.20",10/03/2017
Commercial,Customer Support Group,Cleaning and domestic material,60074731,HERTFORDSHIRE SUPPLIES   COUNTY CO,"1,279.79",31/03/2017
Commercial,Customer Support Group,Consultants Fees,80009046,JONES LANG LASALLE LIMITED,"5,000.00",16/03/2017
Commercial,Customer Support Group,Consultants Fees,60075158,VALUATION OFFICE AGENCY,"1,000.00",17/03/2017
Commercial,Customer Support Group,Consultants Fees,60075165,VALUATION OFFICE AGENCY,"1,500.00",17/03/2017
Commercial,Customer Support Group,Consultants Fees,60075172,VALUATION OFFICE AGENCY,288.63,17/03/2017
Commercial,Customer Support Group,Consultants Fees,60075177,VALUATION OFFICE AGENCY,"1,000.00",16/03/2017
Commercial,Customer Support Group,Contract Cleaning,60074422,CHURCHILL CONTRACT SERVICES,80.64,08/03/2017
Commercial,Customer Support Group,Contract Cleaning,60074482,CHURCHILL CONTRACT SERVICES,38.71,08/03/2017
Commercial,Customer Support Group,Contract Cleaning,60074500,CHURCHILL CONTRACT SERVICES,38.71,08/03/2017
Commercial,Customer Support Group,CSG Services Contract Payment,10013666,CAPITA BUSINESS SERVICES LTD,-200.00,22/03/2017
Commercial,Customer Support Group,CSG Services Contract Payment,60073250,CAPITA BUSINESS SERVICES LTD,"35,233.33",03/03/2017
Commercial,Customer Support Group,CSG Services Contract Payment,60073282,CAPITA BUSINESS SERVICES LTD,"49,491.33",03/03/2017
Commercial,Customer Support Group,CSG Services Contract Payment,60073309,CAPITA BUSINESS SERVICES LTD,"31,141.17",03/03/2017
Commercial,Customer Support Group,CSG Services Contract Payment,60074782,CAPITA BUSINESS SERVICES LTD,"48,510.36",22/03/2017
Commercial,Customer Support Group,CSG Services Contract Payment,60074859,CAPITA BUSINESS SERVICES LTD,"5,741.90",22/03/2017
Commercial,Customer Support Group,CSG Services Contract Payment,60075201,CAPITA BUSINESS SERVICES LTD,"107,556.00",29/03/2017
Commercial,Customer Support Group,CSG Services Contract Payment,60075298,CAPITA BUSINESS SERVICES LTD,"1,089,309.53",28/03/2017
Commercial,Customer Support Group,CSG Services Contract Payment,60075356,CAPITA BUSINESS SERVICES LTD,"171,552.58",28/03/2017
Commercial,Customer Support Group,Electricity,60073832,BRITISH GAS BUSINESS(ELEC),231.83,22/03/2017
Commercial,Customer Support Group,Electricity,60074046,BRITISH GAS BUSINESS(ELEC),"1,248.82",22/03/2017
Commercial,Customer Support Group,Electricity,60073005,E-ON ENERGY,10.00,16/03/2017
Commercial,Customer Support Group,Electricity,60073023,E-ON ENERGY,9.44,16/03/2017
Commercial,Customer Support Group,Electricity,60073057,E-ON ENERGY,6.50,16/03/2017
Commercial,Customer Support Group,Electricity,60073067,E-ON ENERGY,4.75,16/03/2017
Commercial,Customer Support Group,Electricity,60073071,E-ON ENERGY,1.55,16/03/2017
Commercial,Customer Support Group,Electricity,60073086,E-ON ENERGY,14.05,16/03/2017
Commercial,Customer Support Group,Electricity,60073109,E-ON ENERGY,8.60,16/03/2017
Commercial,Customer Support Group,Electricity,60073116,E-ON ENERGY,16.15,16/03/2017
Commercial,Customer Support Group,Electricity,60075267,E-ON ENERGY,8.05,31/03/2017
Commercial,Customer Support Group,Electricity,60072887,KENT COUNTY COUNCIL (KCS),"7,905.07",10/03/2017
Commercial,Customer Support Group,Electricity,60073588,KENT COUNTY COUNCIL (KCS),"6,322.79",17/03/2017
Commercial,Customer Support Group,Electricity,60073621,KENT COUNTY COUNCIL (KCS),423.03,17/03/2017
Commercial,Customer Support Group,Electricity,60074729,KENT COUNTY COUNCIL (KCS),106.67,17/03/2017
Commercial,Customer Support Group,Electricity,60074759,KENT COUNTY COUNCIL (KCS),113.38,17/03/2017
Commercial,Customer Support Group,Electricity,60075066,KENT COUNTY COUNCIL (KCS),"6,955.18",28/03/2017
Commercial,Customer Support Group,Electricity,60075167,KENT COUNTY COUNCIL (KCS),345.18,17/03/2017
Commercial,Customer Support Group,Electricity,60075480,KENT COUNTY COUNCIL (KCS),"1,287.23",31/03/2017
Commercial,Customer Support Group,Electricity,60075488,KENT COUNTY COUNCIL (KCS),"1,370.24",31/03/2017
Commercial,Customer Support Group,Electricity,60075503,KENT COUNTY COUNCIL (KCS),"1,162.72",31/03/2017
Commercial,Customer Support Group,Electricity,60075539,KENT COUNTY COUNCIL (KCS),"5,733.52",28/03/2017
Commercial,Customer Support Group,Electricity,60075541,KENT COUNTY COUNCIL (KCS),"1,424.20",30/03/2017
Commercial,Customer Support Group,Electricity,60075247,MIDDLESEX UNIVERSITY,"24,335.60",21/03/2017
Commercial,Customer Support Group,Electricity,60075273,MIDDLESEX UNIVERSITY,"19,587.54",21/03/2017
Commercial,Customer Support Group,Electricity,60075277,MIDDLESEX UNIVERSITY,"23,388.76",21/03/2017
Commercial,Customer Support Group,Electricity,60075287,MIDDLESEX UNIVERSITY,"1,235.44",21/03/2017
Commercial,Customer Support Group,Electricity,60075302,MIDDLESEX UNIVERSITY,"1,271.70",21/03/2017
Commercial,Customer Support Group,Electricity,60075306,MIDDLESEX UNIVERSITY,"17,594.75",21/03/2017
Commercial,Customer Support Group,Electricity,60075309,MIDDLESEX UNIVERSITY,"25,302.66",21/03/2017
Commercial,Customer Support Group,Electricity,60075333,MIDDLESEX UNIVERSITY,935.89,21/03/2017
Commercial,Customer Support Group,Electricity,60075347,MIDDLESEX UNIVERSITY,"1,394.33",21/03/2017
Commercial,Customer Support Group,Electricity,60075125,SOUTHERN ELECTRIC PLC,"2,014.69",17/03/2017
Commercial,Customer Support Group,Equipment and Materials Purcha,10013660,DAY PLANT HIRE CO LIMITED,151.34,02/03/2017
Commercial,Customer Support Group,Equipment and Materials Purcha,60073537,HERTEL (UK) LTD,34.91,16/03/2017
Commercial,Customer Support Group,Equipment and Materials Purcha,60073555,HERTEL (UK) LTD,34.91,16/03/2017
Commercial,Customer Support Group,Equipment and Materials Purcha,80009180,NEWGATE (NEWARK) LIMITED,108.00,21/03/2017
Commercial,Customer Support Group,Equipment and Materials Purcha,60075107,PEARCE RECYCLING CO. LTD,200.00,29/03/2017
Commercial,Customer Support Group,Equipment and Materials Purcha,60075665,REDACTED - PERSONAL DATA,150.00,31/03/2017
Commercial,Customer Support Group,Equipment and Materials Purcha,60072308,S W BRUCE & CO LTD,"1,687.40",10/03/2017
Commercial,Customer Support Group,Equipment and Materials Purcha,60075198,ZIPPORAH LTD,"4,173.04",17/03/2017
Commercial,Customer Support Group,Fixtures and fittings,10013665,PANORAMIC PROMOTIONS LIMITED,205.00,13/03/2017
Commercial,Customer Support Group,Furniture-Purchase-Repair,60073833,LYCO DIRECT LTD,46.04,22/03/2017
Commercial,Customer Support Group,Furniture-Purchase-Repair,60073094,OFFICE UPDATE LTD,"3,223.00",07/03/2017
Commercial,Customer Support Group,Furniture-Purchase-Repair,60075035,SCREWFIX DIRECT LTD,62.49,21/03/2017
Commercial,Customer Support Group,Furniture-Purchase-Repair,60075619,SCREWFIX DIRECT LTD,220.82,30/03/2017
Commercial,Customer Support Group,Furniture-Purchase-Repair,60072384,WAGSTAFF INTERIORS GROUP,25.00,10/03/2017
Commercial,Customer Support Group,Furniture-Purchase-Repair,60076068,WAGSTAFF INTERIORS GROUP,120.00,31/03/2017
Commercial,Customer Support Group,Furniture-Purchase-Repair,60076223,WAGSTAFF INTERIORS GROUP,520.00,31/03/2017
Commercial,Customer Support Group,Furniture-Purchase-Repair,60076295,WAGSTAFF INTERIORS GROUP,589.40,31/03/2017
Commercial,Customer Support Group,Gas,60073149,KENT COUNTY COUNCIL (KCS),"11,125.69",03/03/2017
Commercial,Customer Support Group,Gas,60073166,KENT COUNTY COUNCIL (KCS),557.54,03/03/2017
Commercial,Customer Support Group,Gas,60073169,KENT COUNTY COUNCIL (KCS),"5,486.73",03/03/2017
Commercial,Customer Support Group,Gas,60073186,KENT COUNTY COUNCIL (KCS),649.95,03/03/2017
Commercial,Customer Support Group,Gas,60073374,KENT COUNTY COUNCIL (KCS),173.20,03/03/2017
Commercial,Customer Support Group,Gas,60075482,KENT COUNTY COUNCIL (KCS),"5,156.35",30/03/2017
Commercial,Customer Support Group,Gas,60075491,KENT COUNTY COUNCIL (KCS),458.81,30/03/2017
Commercial,Customer Support Group,Gas,60075527,KENT COUNTY COUNCIL (KCS),"8,536.22",30/03/2017
Commercial,Customer Support Group,Gas,60075533,KENT COUNTY COUNCIL (KCS),142.82,30/03/2017
Commercial,Customer Support Group,Gas,60075535,KENT COUNTY COUNCIL (KCS),532.14,30/03/2017
Commercial,Customer Support Group,Gas,60075292,MIDDLESEX UNIVERSITY,703.33,21/03/2017
Commercial,Customer Support Group,Gas,60075331,MIDDLESEX UNIVERSITY,"1,183.35",21/03/2017
Commercial,Customer Support Group,Gas,60075332,MIDDLESEX UNIVERSITY,142.75,21/03/2017
Commercial,Customer Support Group,Gas,60075345,MIDDLESEX UNIVERSITY,132.65,21/03/2017
Commercial,Customer Support Group,Grounds maintenance,60073802,RIBBEX UK LTD,695.00,01/03/2017
Commercial,Customer Support Group,Grounds maintenance,60075096,RIBBEX UK LTD,764.75,22/03/2017
Commercial,Customer Support Group,Other Services,60073861,BLUE 9 SECURITY LIMITED,53.72,02/03/2017
Commercial,Customer Support Group,Other Services,60073874,BLUE 9 SECURITY LIMITED,214.88,02/03/2017
Commercial,Customer Support Group,Other Services,60074654,BLUE 9 SECURITY LIMITED,"6,103.44",10/03/2017
Commercial,Customer Support Group,Other Services,60074659,BLUE 9 SECURITY LIMITED,"21,016.64",10/03/2017
Commercial,Customer Support Group,Other Services,60074688,BLUE 9 SECURITY LIMITED,"17,657.79",10/03/2017
Commercial,Customer Support Group,Other Services,60074707,BLUE 9 SECURITY LIMITED,"10,463.04",10/03/2017
Commercial,Customer Support Group,Other Services,60074744,BLUE 9 SECURITY LIMITED,"5,042.44",10/03/2017
Commercial,Customer Support Group,Other Services,60074679,LEASING PROGRAMMES LIMITED,"1,235.00",30/03/2017
Commercial,Customer Support Group,Postage,60072145,ROYAL MAIL GROUP LIMITED,"5,624.20",09/03/2017
Commercial,Customer Support Group,Postage,60074170,ROYAL MAIL GROUP LIMITED,"5,538.95",07/03/2017
Commercial,Customer Support Group,Postage,60076125,ROYAL MAIL GROUP LIMITED,453.01,31/03/2017
Commercial,Customer Support Group,Postage,60076163,ROYAL MAIL GROUP LIMITED,"5,553.76",31/03/2017
Commercial,Customer Support Group,Postage,60076164,ROYAL MAIL GROUP LIMITED,"6,367.89",31/03/2017
Commercial,Customer Support Group,Publications,10013654,TV LICENSING,145.50,03/03/2017
Commercial,Customer Support Group,Rents,60073611,MIDDLESEX UNIVERSITY,"52,750.00",10/03/2017
Commercial,Customer Support Group,Rents,60075739,MIDDLESEX UNIVERSITY,"207,588.20",31/03/2017
Commercial,Customer Support Group,Rents,60075846,MIDDLESEX UNIVERSITY,"37,739.73",31/03/2017
Commercial,Customer Support Group,Rents,10013673,MONTAGU EVANS LLP,"186,250.00",27/03/2017
Commercial,Customer Support Group,Service Charges,60075632,BARNET & SOUTHGATE COLLEGE,"18,827.21",23/03/2017
Commercial,Customer Support Group,Service Charges,60074018,LAZARI INVESTMENTS LTD,"27,966.24",16/03/2017
Commercial,Customer Support Group,Service Charges,60074038,LAZARI INVESTMENTS LTD,183.36,16/03/2017
Commercial,Customer Support Group,Service Charges,60075806,MIDDLESEX UNIVERSITY,"4,395.18",31/03/2017
Commercial,Customer Support Group,Service Charges,60075831,MIDDLESEX UNIVERSITY,"22,723.69",31/03/2017
Commercial,Customer Support Group,Service Charges,60075898,MIDDLESEX UNIVERSITY,"109,399.49",31/03/2017
Commercial,Customer Support Group,Training,60075690,SKILLS TRAINING CENTRE LTD,250.00,30/03/2017
Commercial,Customer Support Group,Ttl IT & Comms,60072768,TELEFONICA UK LTD,"14,555.81",09/03/2017
Commercial,Customer Support Group,Ttl IT & Comms,60072783,TELEFONICA UK LTD,"1,086.39",09/03/2017
Commercial,Customer Support Group,Water Services,60075124,2468 LTD,"1,040.40",16/03/2017
Commercial,Customer Support Group,Water Services,60075139,AFFINITY WATER LIMITED,520.54,16/03/2017
Commercial,Customer Support Group,Water Services,60075699,AFFINITY WATER LIMITED,"4,013.30",31/03/2017
Commercial,Customer Support Group,Water Services,60070056,ANGEL SPRINGS LTD,192.00,22/03/2017
Commercial,Customer Support Group,Water Services,60071939,ANGEL SPRINGS LTD,15.50,01/03/2017
Commercial,Customer Support Group,Water Services,60071953,ANGEL SPRINGS LTD,144.00,01/03/2017
Commercial,Customer Support Group,Water Services,60071955,ANGEL SPRINGS LTD,50.00,01/03/2017
Commercial,Customer Support Group,Water Services,60071963,ANGEL SPRINGS LTD,122.00,01/03/2017
Commercial,Customer Support Group,Water Services,60071986,ANGEL SPRINGS LTD,200.00,01/03/2017
Commercial,Customer Support Group,Water Services,60074927,ANGEL SPRINGS LTD,60.00,29/03/2017
Commercial,Customer Support Group,Water Services,60075062,ANGEL SPRINGS LTD,226.97,29/03/2017
Commercial,Customer Support Group,Water Services,60075270,MIDDLESEX UNIVERSITY,253.64,21/03/2017
Commercial,HB LAW,Legal and Court Fees,60073982,LONDON BOROUGH OF HARROW,"183,260.00",06/03/2017
Commercial,HB LAW,Legal Disbursements,10013664,LONDON BOROUGH OF HARROW,"113,874.85",09/03/2017
Commercial,Housing Needs Resources,Miscellaneous Expenses,60074667,THE BARNETGROUP LIMITED,"12,711.00",10/03/2017
Commercial,Housing Needs Resources,Miscellaneous Expenses,60074675,THE BARNETGROUP LIMITED,"14,943.00",10/03/2017
Commercial,Housing Needs Resources,Miscellaneous Expenses,60074696,THE BARNETGROUP LIMITED,"4,338.00",10/03/2017
Commercial,Housing Needs Resources,Miscellaneous Expenses,60074705,THE BARNETGROUP LIMITED,"11,695.00",10/03/2017
Commercial,Housing Needs Resources,Miscellaneous Expenses,60076119,THE BARNETGROUP LIMITED,"36,443.17",31/03/2017
Commercial,Housing Needs Resources,Other Services,60065279,THE BARNETGROUP LIMITED,"1,546.20",20/03/2017
Commercial,Housing Needs Resources,Other Services,60065324,THE BARNETGROUP LIMITED,"15,992.42",20/03/2017
Commercial,Housing Needs Resources,Other Services,60065378,THE BARNETGROUP LIMITED,"1,330.62",20/03/2017
Commercial,Housing Needs Resources,Other Services,60065693,THE BARNETGROUP LIMITED,"2,580.00",20/03/2017
Commercial,Housing Needs Resources,Private Contractors - Third Pa,60065337,THE BARNETGROUP LIMITED,697.00,20/03/2017
Commercial,Housing Needs Resources,Private Contractors - Third Pa,60074723,THE BARNETGROUP LIMITED,"1,937,291.84",10/03/2017
Commercial,Housing Needs Resources,Private Contractors - Third Pa,60076159,THE BARNETGROUP LIMITED,"1,600,000.00",31/03/2017
Commercial,HRA,Consultants Fees,60075254,COPPING JOYCE SURVEYORS LIMITED,"1,700.00",20/03/2017
Commercial,HRA,Consultants Fees,60071165,P P C R ASSOCIATES LTD,368.35,30/03/2017
Commercial,HRA,Consultants Fees,60071168,P P C R ASSOCIATES LTD,499.69,30/03/2017
Commercial,HRA,Consultants Fees,60071199,P P C R ASSOCIATES LTD,368.35,31/03/2017
Commercial,HRA,Consultants Fees,60071903,PRIORITY ESTATES PROJECT LTD,"1,746.25",07/03/2017
Commercial,HRA,Consultants Fees,60060836,THE BARNETGROUP LIMITED,"1,262.68",20/03/2017
Commercial,HRA,Consultants Fees,60073013,TROWERS & HAMLINS,"3,250.00",02/03/2017
Commercial,HRA,Other Services,60074751,THE BARNETGROUP LIMITED,"9,000.00",10/03/2017
Commercial,HRA,Other Services,60076147,THE BARNETGROUP LIMITED,"346,662.50",31/03/2017
Commercial,HRA,Other Services,60076179,THE BARNETGROUP LIMITED,"2,046,752.76",31/03/2017
Commercial,Parking & Infrastructure,Electricity,60073827,BARNET LIGHTING SERVICES LTD,"496,199.19",03/03/2017
Commercial,Parking & Infrastructure,Equipment and Materials Purcha,60073972,COMPASS MINERALS,"1,250.41",03/03/2017
Commercial,Parking & Infrastructure,Equipment and Materials Purcha,60074006,COMPASS MINERALS,"3,605.30",03/03/2017
Commercial,Parking & Infrastructure,Equipment and Materials Purcha,60074052,GREENHAM TRADING LIMITED,276.66,28/03/2017
Commercial,Parking & Infrastructure,Equipment and Materials Purcha,60075018,INSTARMAC GROUP PLC,"3,506.88",14/03/2017
Commercial,Parking & Infrastructure,Equipment and Materials Purcha,60073624,KLOECKNER METALS UK,267.00,08/03/2017
Commercial,Parking & Infrastructure,Equipment and Materials Purcha,60073628,KLOECKNER METALS UK,70.00,15/03/2017
Commercial,Parking & Infrastructure,Equipment and Materials Purcha,60075030,KLOECKNER METALS UK,61.00,21/03/2017
Commercial,Parking & Infrastructure,Equipment and Materials Purcha,60072012,LAFARGE TARMAC TRADING LIMITED,122.98,01/03/2017
Commercial,Parking & Infrastructure,Equipment and Materials Purcha,60073636,LAFARGE TARMAC TRADING LIMITED,122.98,03/03/2017
Commercial,Parking & Infrastructure,Equipment and Materials Purcha,60073691,LAFARGE TARMAC TRADING LIMITED,97.60,14/03/2017
Commercial,Parking & Infrastructure,Equipment and Materials Purcha,60073699,LAFARGE TARMAC TRADING LIMITED,216.67,10/03/2017
Commercial,Parking & Infrastructure,Equipment and Materials Purcha,60073737,LAFARGE TARMAC TRADING LIMITED,120.05,10/03/2017
Commercial,Parking & Infrastructure,Equipment and Materials Purcha,60073753,LAFARGE TARMAC TRADING LIMITED,124.93,07/03/2017
Commercial,Parking & Infrastructure,Equipment and Materials Purcha,60073807,LAFARGE TARMAC TRADING LIMITED,97.60,03/03/2017
Commercial,Parking & Infrastructure,Equipment and Materials Purcha,60073834,LAFARGE TARMAC TRADING LIMITED,121.02,07/03/2017
Commercial,Parking & Infrastructure,Equipment and Materials Purcha,60074990,LAFARGE TARMAC TRADING LIMITED,134.69,16/03/2017
Commercial,Parking & Infrastructure,Equipment and Materials Purcha,60075003,LAFARGE TARMAC TRADING LIMITED,130.78,15/03/2017
Commercial,Parking & Infrastructure,Equipment and Materials Purcha,60075004,LAFARGE TARMAC TRADING LIMITED,99.55,15/03/2017
Commercial,Parking & Infrastructure,Equipment and Materials Purcha,60075019,LAFARGE TARMAC TRADING LIMITED,224.48,28/03/2017
Commercial,Parking & Infrastructure,Equipment and Materials Purcha,60075020,LAFARGE TARMAC TRADING LIMITED,117.12,16/03/2017
Commercial,Parking & Infrastructure,Equipment and Materials Purcha,60075021,LAFARGE TARMAC TRADING LIMITED,117.12,21/03/2017
Commercial,Parking & Infrastructure,Equipment and Materials Purcha,60075037,LAFARGE TARMAC TRADING LIMITED,105.41,21/03/2017
Commercial,Parking & Infrastructure,Equipment and Materials Purcha,60075040,LAFARGE TARMAC TRADING LIMITED,126.88,23/03/2017
Commercial,Parking & Infrastructure,Equipment and Materials Purcha,60075053,LAFARGE TARMAC TRADING LIMITED,126.88,29/03/2017
Commercial,Parking & Infrastructure,Equipment and Materials Purcha,60075058,LAFARGE TARMAC TRADING LIMITED,126.88,23/03/2017
Commercial,Parking & Infrastructure,Equipment and Materials Purcha,60075978,LAFARGE TARMAC TRADING LIMITED,121.02,30/03/2017
Commercial,Parking & Infrastructure,Equipment and Materials Purcha,60076025,LAFARGE TARMAC TRADING LIMITED,126.88,31/03/2017
Commercial,Parking & Infrastructure,Equipment and Materials Purcha,60074930,NSL LTD,"4,564.25",15/03/2017
Commercial,Parking & Infrastructure,Equipment and Materials Purcha,60074954,NSL LTD,"3,962.45",15/03/2017
Commercial,Parking & Infrastructure,Equipment and Materials Purcha,60072579,RENNICK UK LTD,105.65,10/03/2017
Commercial,Parking & Infrastructure,Equipment and Materials Purcha,60073008,RENNICK UK LTD,146.68,14/03/2017
Commercial,Parking & Infrastructure,Equipment and Materials Purcha,60075036,RENNICK UK LTD,146.68,30/03/2017
Commercial,Parking & Infrastructure,Equipment and Materials Purcha,60074135,TRANSLOADER SERVICES LTD,533.40,31/03/2017
Commercial,Parking & Infrastructure,Equipment and Materials Purcha,60070936,VAISALA LTD,"14,090.00",03/03/2017
Commercial,Parking & Infrastructure,Equipment and Materials Purcha,60074033,WM SMITH & SONS LIMITED,261.72,14/03/2017
Commercial,Parking & Infrastructure,Fees and Charges,60074716,REDCORN LTD,95.00,30/03/2017
Commercial,Parking & Infrastructure,Miscellaneous Expenses,60073866,NSL LTD,"1,133.84",03/03/2017
Commercial,Parking & Infrastructure,Other Services,60072126,LONDON COUNCILS,"51,425.50",03/03/2017
Commercial,Parking & Infrastructure,Other Services,60075119,NSL LTD,"1,307.85",23/03/2017
Commercial,Parking & Infrastructure,Other Services,60072486,PARKEON LIMITED,"7,620.00",03/03/2017
Commercial,Parking & Infrastructure,Other Services,60072505,PARKEON LIMITED,"2,097.92",14/03/2017
Commercial,Parking & Infrastructure,Other Services,60074002,PARKEON LIMITED,810.00,23/03/2017
Commercial,Parking & Infrastructure,Printing-Contract,40002129,OFFICE DEPOT UK LTD,35.66,28/03/2017
Commercial,Parking & Infrastructure,Professional Services,60075085,NSL LTD,"10,206.40",21/03/2017
Commercial,Parking & Infrastructure,Professional Services,60075086,NSL LTD,"10,926.80",22/03/2017
Commercial,Parking & Infrastructure,Professional Services,60075100,NSL LTD,"3,824.91",22/03/2017
Commercial,Parking & Infrastructure,Professional Services,60075106,NSL LTD,"40,289.39",20/03/2017
Commercial,Parking & Infrastructure,Professional Services,60075116,NSL LTD,27.00,22/03/2017
Commercial,Parking & Infrastructure,Professional Services,60075169,NSL LTD,"287,741.39",20/03/2017
Commercial,Parking & Infrastructure,Professional Services,60075181,NSL LTD,"10,926.80",22/03/2017
Commercial,Parking & Infrastructure,Software Licences & Support,60075084,NSL LTD,"6,609.50",23/03/2017
Commercial,Parking & Infrastructure,Software Licences & Support,60075168,NSL LTD,"31,729.23",23/03/2017
Commercial,Parking & Infrastructure,Stationery,40001999,OFFICE DEPOT UK LTD,161.75,28/03/2017
Commercial,Parking & Infrastructure,Stationery,40002069,OFFICE DEPOT UK LTD,11.46,28/03/2017
Commercial,Parking & Infrastructure,Subscriptions,60071975,BRITISH PARKING ASSOCIATION,"1,109.00",03/03/2017
Commercial,Parking & Infrastructure,Subscriptions,60074080,INST OF LIGHTING PROFESSIONALS,160.00,06/03/2017
Commercial,Parking & Infrastructure,Ttl IT & Comms,60073853,NSL LTD,"11,700.00",06/03/2017
Commercial,Parking & Infrastructure,Water Services,60073074,ANGEL SPRINGS LTD,32.00,01/03/2017
Commercial,Public Health,Other Transfer Payments to Soc,60073748,CENTRAL LONDONCOMMUNITY HEALTHCARE,"16,667.00",02/03/2017
Commercial,Public Health,Other Transfer Payments to Soc,60073750,CENTRAL LONDONCOMMUNITY HEALTHCARE,"356,000.00",02/03/2017
Commercial,Public Health,Professional Services,60073730,CENTRAL LONDONCOMMUNITY HEALTHCARE,"9,583.00",02/03/2017
Commercial,Public Health,Professional Services,60073804,CENTRAL LONDONCOMMUNITY HEALTHCARE,"85,834.00",02/03/2017
Commercial,Public Health,Professional Services,60073851,CENTRAL LONDONCOMMUNITY HEALTHCARE,"4,917.00",02/03/2017
Commercial,Regional Enterprise,Advertising,60072141,TMP (UK) LTD,144.16,13/03/2017
Commercial,Regional Enterprise,Advertising,60073585,TMP (UK) LTD,112.08,20/03/2017
Commercial,Regional Enterprise,Advertising,60073608,TMP (UK) LTD,144.16,16/03/2017
Commercial,Regional Enterprise,Advertising,60073683,TMP (UK) LTD,115.64,20/03/2017
Commercial,Regional Enterprise,Advertising,60073685,TMP (UK) LTD,151.28,16/03/2017
Commercial,Regional Enterprise,Advertising,60073698,TMP (UK) LTD,216.33,22/03/2017
Commercial,Regional Enterprise,Advertising,60073733,TMP (UK) LTD,112.08,17/03/2017
Commercial,Regional Enterprise,Advertising,60073757,TMP (UK) LTD,122.77,17/03/2017
Commercial,Regional Enterprise,Advertising,60073825,TMP (UK) LTD,32.08,20/03/2017
Commercial,Regional Enterprise,Advertising,60073841,TMP (UK) LTD,35.64,20/03/2017
Commercial,Regional Enterprise,Advertising,60074998,TMP (UK) LTD,158.40,16/03/2017
Commercial,Regional Enterprise,Advertising,60075006,TMP (UK) LTD,144.16,16/03/2017
Commercial,Regional Enterprise,Advertising,60075029,TMP (UK) LTD,112.08,16/03/2017
Commercial,Regional Enterprise,Advertising,60075048,TMP (UK) LTD,122.77,16/03/2017
Commercial,Regional Enterprise,Advertising,60075070,TMP (UK) LTD,115.64,16/03/2017
Commercial,Regional Enterprise,Advertising,60075077,TMP (UK) LTD,32.08,17/03/2017
Commercial,Regional Enterprise,Advertising,60075080,TMP (UK) LTD,42.77,17/03/2017
Commercial,Regional Enterprise,Advertising,60075479,TMP (UK) LTD,32.08,22/03/2017
Commercial,Regional Enterprise,Advertising,60075492,TMP (UK) LTD,129.10,22/03/2017
Commercial,Regional Enterprise,Advertising,60075522,TMP (UK) LTD,35.64,22/03/2017
Commercial,Regional Enterprise,Advertising,60075526,TMP (UK) LTD,42.77,22/03/2017
Commercial,Regional Enterprise,Capital Construction and Works,60075581,ADAMS ENVIRONMENTAL LTD,"1,600.00",23/03/2017
Commercial,Regional Enterprise,Capital Construction and Works,60073567,RGE SERVICES,935.19,14/03/2017
Commercial,Regional Enterprise,Capital Construction and Works,60074279,S W BRUCE & CO LTD,850.00,30/03/2017
Commercial,Regional Enterprise,Cleaning and domestic material,60071450,CHURCHILL CONTRACT SERVICES,488.56,02/03/2017
Commercial,Regional Enterprise,Cleaning and domestic material,60074200,CHURCHILL CONTRACT SERVICES,488.56,30/03/2017
Commercial,Regional Enterprise,Consultants Fees,60074087,DELOITTE LLP,"12,000.00",10/03/2017
Commercial,Regional Enterprise,Consultants Fees,60073388,GOWLING WLG,"1,800.00",02/03/2017
Commercial,Regional Enterprise,Consultants Fees,60073445,GOWLING WLG,"1,967.72",23/03/2017
Commercial,Regional Enterprise,Consultants Fees,60073461,GOWLING WLG,"16,491.55",02/03/2017
Commercial,Regional Enterprise,Consultants Fees,60073462,GOWLING WLG,"9,326.78",02/03/2017
Commercial,Regional Enterprise,Consultants Fees,60073464,GOWLING WLG,"1,808.04",23/03/2017
Commercial,Regional Enterprise,Consultants Fees,60073468,GOWLING WLG,"3,694.26",02/03/2017
Commercial,Regional Enterprise,Consultants Fees,60073474,GOWLING WLG,"1,436.67",02/03/2017
Commercial,Regional Enterprise,Consultants Fees,60073484,GOWLING WLG,"10,091.56",02/03/2017
Commercial,Regional Enterprise,Consultants Fees,60073486,GOWLING WLG,"6,720.43",23/03/2017
Commercial,Regional Enterprise,Consultants Fees,60073489,GOWLING WLG,"18,285.54",23/03/2017
Commercial,Regional Enterprise,Consultants Fees,60073493,GOWLING WLG,766.57,23/03/2017
Commercial,Regional Enterprise,Consultants Fees,60073497,GOWLING WLG,"4,677.38",02/03/2017
Commercial,Regional Enterprise,Consultants Fees,60073526,GOWLING WLG,"6,075.60",02/03/2017
Commercial,Regional Enterprise,Consultants Fees,60073534,GOWLING WLG,"10,047.49",23/03/2017
Commercial,Regional Enterprise,Consultants Fees,60073546,GOWLING WLG,"5,826.80",02/03/2017
Commercial,Regional Enterprise,Consultants Fees,60073563,GOWLING WLG,"8,937.71",02/03/2017
Commercial,Regional Enterprise,Consultants Fees,60073586,GOWLING WLG,"1,213.06",02/03/2017
Commercial,Regional Enterprise,Consultants Fees,60073593,GOWLING WLG,"4,351.82",23/03/2017
Commercial,Regional Enterprise,Consultants Fees,60073597,GOWLING WLG,"2,379.49",02/03/2017
Commercial,Regional Enterprise,Consultants Fees,60073627,GOWLING WLG,"2,339.52",02/03/2017
Commercial,Regional Enterprise,Consultants Fees,60073639,GOWLING WLG,"5,861.69",02/03/2017
Commercial,Regional Enterprise,Consultants Fees,60073672,GOWLING WLG,"2,752.73",02/03/2017
Commercial,Regional Enterprise,Consultants Fees,60073673,GOWLING WLG,"7,310.04",02/03/2017
Commercial,Regional Enterprise,Consultants Fees,60073687,GOWLING WLG,"3,695.99",02/03/2017
Commercial,Regional Enterprise,Consultants Fees,60073705,GOWLING WLG,"1,176.50",02/03/2017
Commercial,Regional Enterprise,Consultants Fees,60071065,NETWORK RAIL INFRASTRUCTURE LTD,"-23,749.56",29/03/2017
Commercial,Regional Enterprise,Consultants Fees,60074298,NETWORK RAIL INFRASTRUCTURE LTD,"224,898.65",29/03/2017
Commercial,Regional Enterprise,Consultants Fees,60070325,NORTH LONDON ESTATE PARTNERSHIPS LTD,"8,166.28",16/03/2017
Commercial,Regional Enterprise,Consultants Fees,60071094,QUANTUM GEOTECHNICAL LTD,"55,499.13",02/03/2017
Commercial,Regional Enterprise,Consultants Fees,60075122,RAILFREIGHT CONSULTING LTD,"6,600.00",16/03/2017
Commercial,Regional Enterprise,Consultants Fees,60071981,SAPIENS CONSULTANCY,892.00,14/03/2017
Commercial,Regional Enterprise,Consultants Fees,60063865,SUN HILL SURVEYS,"1,225.00",08/03/2017
Commercial,Regional Enterprise,Consultants Fees,60072232,WE MADE THAT LLP,"3,877.25",20/03/2017
Commercial,Regional Enterprise,Equipment and Materials Purcha,60075249,BARNET LIGHTING SERVICES LTD,"5,715.61",20/03/2017
Commercial,Regional Enterprise,Equipment and Materials Purcha,80007985,REDACTED - PERSONAL DATA,175.00,10/03/2017
Commercial,Regional Enterprise,Equipment and Materials Purcha,80008206,REDACTED - PERSONAL DATA,"1,120.00",10/03/2017
Commercial,Regional Enterprise,Equipment and Materials Purcha,80009485,REDACTED - PERSONAL DATA,"1,225.00",31/03/2017
Commercial,Regional Enterprise,Fees and Charges,60075745,LONDON BOROUGH OF ISLINGTON,"68,466.26",31/03/2017
Commercial,Regional Enterprise,Grant Payments,80008482,AMWELL CONSTRUCTION LTD,"8,276.00",27/03/2017
Commercial,Regional Enterprise,Grant Payments,80008876,AMWELL CONSTRUCTION LTD,"5,675.00",09/03/2017
Commercial,Regional Enterprise,Grant Payments,80008900,AMWELL CONSTRUCTION LTD,"5,697.00",13/03/2017
Commercial,Regional Enterprise,Grant Payments,80009116,AMWELL CONSTRUCTION LTD,"5,114.00",22/03/2017
Commercial,Regional Enterprise,Grant Payments,80009225,AMWELL CONSTRUCTION LTD,422.33,27/03/2017
Commercial,Regional Enterprise,Grant Payments,80009229,AMWELL CONSTRUCTION LTD,218.40,27/03/2017
Commercial,Regional Enterprise,Grant Payments,80009231,AMWELL CONSTRUCTION LTD,514.82,27/03/2017
Commercial,Regional Enterprise,Grant Payments,80008690,ARTHUR J. FERRYMAN ASSOCIATES,480.00,02/03/2017
Commercial,Regional Enterprise,Grant Payments,80008765,ARTHUR J. FERRYMAN ASSOCIATES,562.00,07/03/2017
Commercial,Regional Enterprise,Grant Payments,80008908,ARTHUR J. FERRYMAN ASSOCIATES,"1,329.24",13/03/2017
Commercial,Regional Enterprise,Grant Payments,80008528,CAPITAL  LOCKSMITHS,360.00,01/03/2017
Commercial,Regional Enterprise,Grant Payments,80008529,CAPITAL  LOCKSMITHS,237.60,01/03/2017
Commercial,Regional Enterprise,Grant Payments,80008530,CAPITAL  LOCKSMITHS,255.60,01/03/2017
Commercial,Regional Enterprise,Grant Payments,80008531,CAPITAL  LOCKSMITHS,96.00,01/03/2017
Commercial,Regional Enterprise,Grant Payments,80008658,CAPITAL  LOCKSMITHS,310.20,08/03/2017
Commercial,Regional Enterprise,Grant Payments,80008659,CAPITAL  LOCKSMITHS,306.00,08/03/2017
Commercial,Regional Enterprise,Grant Payments,80008660,CAPITAL  LOCKSMITHS,315.60,08/03/2017
Commercial,Regional Enterprise,Grant Payments,80008662,CAPITAL  LOCKSMITHS,96.00,08/03/2017
Commercial,Regional Enterprise,Grant Payments,80008663,CAPITAL  LOCKSMITHS,96.00,08/03/2017
Commercial,Regional Enterprise,Grant Payments,80008733,CAPITAL  LOCKSMITHS,159.36,10/03/2017
Commercial,Regional Enterprise,Grant Payments,80008755,CAPITAL  LOCKSMITHS,360.00,10/03/2017
Commercial,Regional Enterprise,Grant Payments,80008953,CAPITAL  LOCKSMITHS,96.00,27/03/2017
Commercial,Regional Enterprise,Grant Payments,80008954,CAPITAL  LOCKSMITHS,359.40,27/03/2017
Commercial,Regional Enterprise,Grant Payments,80008955,CAPITAL  LOCKSMITHS,96.00,27/03/2017
Commercial,Regional Enterprise,Grant Payments,80009039,CAPITAL  LOCKSMITHS,356.40,23/03/2017
Commercial,Regional Enterprise,Grant Payments,80009135,CAPITAL  LOCKSMITHS,360.00,23/03/2017
Commercial,Regional Enterprise,Grant Payments,80009139,CAPITAL  LOCKSMITHS,360.00,23/03/2017
Commercial,Regional Enterprise,Grant Payments,80009326,DJ&L BUILDERS LTD,"3,285.00",24/03/2017
Commercial,Regional Enterprise,Grant Payments,80009301,DOLPHIN MOBILITY LTD.,"2,840.00",24/03/2017
Commercial,Regional Enterprise,Grant Payments,80009340,DOLPHIN MOBILITY LTD.,"5,830.00",31/03/2017
Commercial,Regional Enterprise,Grant Payments,80009036,DOMESTIC LIFT SERVICES LTD,"2,224.00",15/03/2017
Commercial,Regional Enterprise,Grant Payments,80008501,DP BUILDERS DISABLED ADAPTATIONS,"5,268.00",01/03/2017
Commercial,Regional Enterprise,Grant Payments,80008556,DP BUILDERS DISABLED ADAPTATIONS,"5,960.00",03/03/2017
Commercial,Regional Enterprise,Grant Payments,80008558,DP BUILDERS DISABLED ADAPTATIONS,"5,945.00",03/03/2017
Commercial,Regional Enterprise,Grant Payments,80008581,DP BUILDERS DISABLED ADAPTATIONS,"5,640.00",03/03/2017
Commercial,Regional Enterprise,Grant Payments,80008696,DP BUILDERS DISABLED ADAPTATIONS,"4,716.00",10/03/2017
Commercial,Regional Enterprise,Grant Payments,80009037,DP BUILDERS DISABLED ADAPTATIONS,790.00,22/03/2017
Commercial,Regional Enterprise,Grant Payments,80009038,DP BUILDERS DISABLED ADAPTATIONS,"4,172.96",23/03/2017
Commercial,Regional Enterprise,Grant Payments,80009081,DP BUILDERS DISABLED ADAPTATIONS,"14,996.00",28/03/2017
Commercial,Regional Enterprise,Grant Payments,80009286,EMS LIFTS LTD,"4,557.66",27/03/2017
Commercial,Regional Enterprise,Grant Payments,80008707,H D PROPERTY SERVICES LTD,"5,025.00",03/03/2017
Commercial,Regional Enterprise,Grant Payments,80008905,H D PROPERTY SERVICES LTD,"11,077.00",13/03/2017
Commercial,Regional Enterprise,Grant Payments,80009228,H D PROPERTY SERVICES LTD,414.75,27/03/2017
Commercial,Regional Enterprise,Grant Payments,80009270,H D PROPERTY SERVICES LTD,"5,051.00",27/03/2017
Commercial,Regional Enterprise,Grant Payments,80009300,H D PROPERTY SERVICES LTD,"8,855.35",24/03/2017
Commercial,Regional Enterprise,Grant Payments,80009341,H D PROPERTY SERVICES LTD,"4,540.63",31/03/2017
Commercial,Regional Enterprise,Grant Payments,80009097,JAMES AUTOMATION,"8,538.30",17/03/2017
Commercial,Regional Enterprise,Grant Payments,80009238,N W LONDON GARDENING,500.00,24/03/2017
Commercial,Regional Enterprise,Grant Payments,80009240,NW LONDON GARDENING,350.00,24/03/2017
Commercial,Regional Enterprise,Grant Payments,80008451,REDACTED - PERSONAL DATA,76.00,10/03/2017
Commercial,Regional Enterprise,Grant Payments,80008669,REDACTED - PERSONAL DATA,"2,246.40",01/03/2017
Commercial,Regional Enterprise,Grant Payments,80008727,REDACTED - PERSONAL DATA,"1,000.00",03/03/2017
Commercial,Regional Enterprise,Grant Payments,80008735,REDACTED - PERSONAL DATA,"4,406.37",02/03/2017
Commercial,Regional Enterprise,Grant Payments,80009095,REDACTED - PERSONAL DATA,750.00,28/03/2017
Commercial,Regional Enterprise,Grant Payments,80009232,REDACTED - PERSONAL DATA,"3,360.00",27/03/2017
Commercial,Regional Enterprise,Grant Payments,80009235,REDACTED - PERSONAL DATA,"3,360.00",27/03/2017
Commercial,Regional Enterprise,Grant Payments,80009257,REDACTED - PERSONAL DATA,"5,618.00",28/03/2017
Commercial,Regional Enterprise,Grant Payments,80009261,REDACTED - PERSONAL DATA,"5,970.00",24/03/2017
Commercial,Regional Enterprise,Grant Payments,80009328,REDACTED - PERSONAL DATA,"10,099.00",27/03/2017
Commercial,Regional Enterprise,Grant Payments,80008768,SOUTH HERTFORDSHIRE,"4,821.00",07/03/2017
Commercial,Regional Enterprise,Grant Payments,80008980,STANNAH STAIRLIFTS LTD,"13,199.00",28/03/2017
Commercial,Regional Enterprise,Grant Payments,80009256,STANNAH STAIRLIFTS LTD,"5,837.00",28/03/2017
Commercial,Regional Enterprise,Grant Payments,80009285,STANNAH STAIRLIFTS LTD,"15,249.00",24/03/2017
Commercial,Regional Enterprise,Grant Payments,80008178,WESSEX LIFT CO. LTD,430.00,02/03/2017
Commercial,Regional Enterprise,Legal and Court Fees,80008509,THE HUB PHARMACY LTD,"6,300.00",01/03/2017
Commercial,Regional Enterprise,Other Services,60074931,AFFINITY WATER LIMITED,"4,244.88",14/03/2017
Commercial,Regional Enterprise,Other Services,60073152,ANNEMOUNT NURSERY SCHOOL,"1,000.00",01/03/2017
Commercial,Regional Enterprise,Other Services,60073529,AYESHA COMMUNITY EDUCATION,800.00,03/03/2017
Commercial,Regional Enterprise,Other Services,60072271,BEIS CHINUCH PRIMARY SCHOOL,"1,700.00",10/03/2017
Commercial,Regional Enterprise,Other Services,60074287,BRIGHT KIDZ,"1,923.00",23/03/2017
Commercial,Regional Enterprise,Other Services,60055761,CONWAY AECOM LTD,"2,407.60",08/03/2017
Commercial,Regional Enterprise,Other Services,60072180,CONWAY AECOM LTD,339.71,08/03/2017
Commercial,Regional Enterprise,Other Services,60072350,CONWAY AECOM LTD,560.01,09/03/2017
Commercial,Regional Enterprise,Other Services,60072360,CONWAY AECOM LTD,560.01,09/03/2017
Commercial,Regional Enterprise,Other Services,60072361,CONWAY AECOM LTD,"1,046.71",09/03/2017
Commercial,Regional Enterprise,Other Services,60072381,CONWAY AECOM LTD,"1,400.03",09/03/2017
Commercial,Regional Enterprise,Other Services,60072383,CONWAY AECOM LTD,560.01,09/03/2017
Commercial,Regional Enterprise,Other Services,60072393,CONWAY AECOM LTD,560.01,09/03/2017
Commercial,Regional Enterprise,Other Services,60072421,CONWAY AECOM LTD,"1,960.04",09/03/2017
Commercial,Regional Enterprise,Other Services,60072424,CONWAY AECOM LTD,"2,800.05",09/03/2017
Commercial,Regional Enterprise,Other Services,60072449,CONWAY AECOM LTD,560.01,09/03/2017
Commercial,Regional Enterprise,Other Services,60072473,CONWAY AECOM LTD,"2,800.05",09/03/2017
Commercial,Regional Enterprise,Other Services,60072484,CONWAY AECOM LTD,949.50,09/03/2017
Commercial,Regional Enterprise,Other Services,60072485,CONWAY AECOM LTD,645.66,09/03/2017
Commercial,Regional Enterprise,Other Services,60072487,CONWAY AECOM LTD,"1,196.37",29/03/2017
Commercial,Regional Enterprise,Other Services,60072491,CONWAY AECOM LTD,39.33,09/03/2017
Commercial,Regional Enterprise,Other Services,60072492,CONWAY AECOM LTD,"1,215.36",09/03/2017
Commercial,Regional Enterprise,Other Services,60072493,CONWAY AECOM LTD,392.46,09/03/2017
Commercial,Regional Enterprise,Other Services,60072498,CONWAY AECOM LTD,"1,063.44",24/03/2017
Commercial,Regional Enterprise,Other Services,60072499,CONWAY AECOM LTD,"1,019.13",09/03/2017
Commercial,Regional Enterprise,Other Services,60072504,CONWAY AECOM LTD,"1,367.28",09/03/2017
Commercial,Regional Enterprise,Other Services,60072506,CONWAY AECOM LTD,39.41,09/03/2017
Commercial,Regional Enterprise,Other Services,60072514,CONWAY AECOM LTD,911.52,09/03/2017
Commercial,Regional Enterprise,Other Services,60072516,CONWAY AECOM LTD,854.55,09/03/2017
Commercial,Regional Enterprise,Other Services,60072517,CONWAY AECOM LTD,"1,065.55",20/03/2017
Commercial,Regional Enterprise,Other Services,60072526,CONWAY AECOM LTD,"1,620.48",09/03/2017
Commercial,Regional Enterprise,Other Services,60072528,CONWAY AECOM LTD,405.12,09/03/2017
Commercial,Regional Enterprise,Other Services,60072532,CONWAY AECOM LTD,40.02,09/03/2017
Commercial,Regional Enterprise,Other Services,60072535,CONWAY AECOM LTD,759.60,09/03/2017
Commercial,Regional Enterprise,Other Services,60072536,CONWAY AECOM LTD,591.96,09/03/2017
Commercial,Regional Enterprise,Other Services,60072542,CONWAY AECOM LTD,40.02,09/03/2017
Commercial,Regional Enterprise,Other Services,60072545,CONWAY AECOM LTD,"23,500.00",09/03/2017
Commercial,Regional Enterprise,Other Services,60072546,CONWAY AECOM LTD,84.08,09/03/2017
Commercial,Regional Enterprise,Other Services,60072547,CONWAY AECOM LTD,"1,012.80",09/03/2017
Commercial,Regional Enterprise,Other Services,60072551,CONWAY AECOM LTD,797.58,09/03/2017
Commercial,Regional Enterprise,Other Services,60072554,CONWAY AECOM LTD,41.74,09/03/2017
Commercial,Regional Enterprise,Other Services,60072556,CONWAY AECOM LTD,708.96,09/03/2017
Commercial,Regional Enterprise,Other Services,60072558,CONWAY AECOM LTD,664.65,09/03/2017
Commercial,Regional Enterprise,Other Services,60072559,CONWAY AECOM LTD,557.04,20/03/2017
Commercial,Regional Enterprise,Other Services,60072560,CONWAY AECOM LTD,40.02,09/03/2017
Commercial,Regional Enterprise,Other Services,60072561,CONWAY AECOM LTD,779.86,09/03/2017
Commercial,Regional Enterprise,Other Services,60072563,CONWAY AECOM LTD,"1,215.36",09/03/2017
Commercial,Regional Enterprise,Other Services,60072567,CONWAY AECOM LTD,582.36,09/03/2017
Commercial,Regional Enterprise,Other Services,60072573,CONWAY AECOM LTD,519.06,09/03/2017
Commercial,Regional Enterprise,Other Services,60072575,CONWAY AECOM LTD,658.32,09/03/2017
Commercial,Regional Enterprise,Other Services,60072576,CONWAY AECOM LTD,97.80,09/03/2017
Commercial,Regional Enterprise,Other Services,60072581,CONWAY AECOM LTD,113.94,09/03/2017
Commercial,Regional Enterprise,Other Services,60072585,CONWAY AECOM LTD,886.20,09/03/2017
Commercial,Regional Enterprise,Other Services,60072589,CONWAY AECOM LTD,679.42,09/03/2017
Commercial,Regional Enterprise,Other Services,60072590,CONWAY AECOM LTD,"1,001.20",09/03/2017
Commercial,Regional Enterprise,Other Services,60072593,CONWAY AECOM LTD,930.51,09/03/2017
Commercial,Regional Enterprise,Other Services,60072594,CONWAY AECOM LTD,"1,063.44",09/03/2017
Commercial,Regional Enterprise,Other Services,60072598,CONWAY AECOM LTD,506.40,09/03/2017
Commercial,Regional Enterprise,Other Services,60072602,CONWAY AECOM LTD,"1,012.80",09/03/2017
Commercial,Regional Enterprise,Other Services,60072603,CONWAY AECOM LTD,"1,063.44",09/03/2017
Commercial,Regional Enterprise,Other Services,60072611,CONWAY AECOM LTD,974.82,09/03/2017
Commercial,Regional Enterprise,Other Services,60072616,CONWAY AECOM LTD,"1,012.80",09/03/2017
Commercial,Regional Enterprise,Other Services,60072618,CONWAY AECOM LTD,620.34,09/03/2017
Commercial,Regional Enterprise,Other Services,60073619,CONWAY AECOM LTD,14.62,09/03/2017
Commercial,Regional Enterprise,Other Services,60073656,CONWAY AECOM LTD,"2,496.27",15/03/2017
Commercial,Regional Enterprise,Other Services,60073693,CONWAY AECOM LTD,40.02,09/03/2017
Commercial,Regional Enterprise,Other Services,60073719,CONWAY AECOM LTD,15.66,09/03/2017
Commercial,Regional Enterprise,Other Services,60073973,CONWAY AECOM LTD,40.28,16/03/2017
Commercial,Regional Enterprise,Other Services,60073975,CONWAY AECOM LTD,40.02,16/03/2017
Commercial,Regional Enterprise,Other Services,60073979,CONWAY AECOM LTD,41.21,06/03/2017
Commercial,Regional Enterprise,Other Services,60073981,CONWAY AECOM LTD,39.17,16/03/2017
Commercial,Regional Enterprise,Other Services,60073984,CONWAY AECOM LTD,41.21,06/03/2017
Commercial,Regional Enterprise,Other Services,60073985,CONWAY AECOM LTD,41.21,06/03/2017
Commercial,Regional Enterprise,Other Services,60073991,CONWAY AECOM LTD,41.21,06/03/2017
Commercial,Regional Enterprise,Other Services,60073992,CONWAY AECOM LTD,41.21,06/03/2017
Commercial,Regional Enterprise,Other Services,60073994,CONWAY AECOM LTD,41.21,06/03/2017
Commercial,Regional Enterprise,Other Services,60073999,CONWAY AECOM LTD,40.28,16/03/2017
Commercial,Regional Enterprise,Other Services,60074004,CONWAY AECOM LTD,76.41,06/03/2017
Commercial,Regional Enterprise,Other Services,60074007,CONWAY AECOM LTD,38.76,06/03/2017
Commercial,Regional Enterprise,Other Services,60074012,CONWAY AECOM LTD,38.30,06/03/2017
Commercial,Regional Enterprise,Other Services,60074023,CONWAY AECOM LTD,40.02,16/03/2017
Commercial,Regional Enterprise,Other Services,60074026,CONWAY AECOM LTD,41.21,06/03/2017
Commercial,Regional Enterprise,Other Services,60074037,CONWAY AECOM LTD,18.27,09/03/2017
Commercial,Regional Enterprise,Other Services,60074039,CONWAY AECOM LTD,41.21,06/03/2017
Commercial,Regional Enterprise,Other Services,60074054,CONWAY AECOM LTD,41.21,06/03/2017
Commercial,Regional Enterprise,Other Services,60074055,CONWAY AECOM LTD,41.21,06/03/2017
Commercial,Regional Enterprise,Other Services,60074063,CONWAY AECOM LTD,40.28,16/03/2017
Commercial,Regional Enterprise,Other Services,60074065,CONWAY AECOM LTD,40.84,06/03/2017
Commercial,Regional Enterprise,Other Services,60074067,CONWAY AECOM LTD,40.66,16/03/2017
Commercial,Regional Enterprise,Other Services,60074074,CONWAY AECOM LTD,38.81,16/03/2017
Commercial,Regional Enterprise,Other Services,60074078,CONWAY AECOM LTD,40.28,16/03/2017
Commercial,Regional Enterprise,Other Services,60074094,CONWAY AECOM LTD,40.66,16/03/2017
Commercial,Regional Enterprise,Other Services,60074096,CONWAY AECOM LTD,41.21,06/03/2017
Commercial,Regional Enterprise,Other Services,60074097,CONWAY AECOM LTD,40.66,16/03/2017
Commercial,Regional Enterprise,Other Services,60074121,CONWAY AECOM LTD,"1,088.76",06/03/2017
Commercial,Regional Enterprise,Other Services,60074138,CONWAY AECOM LTD,40.88,16/03/2017
Commercial,Regional Enterprise,Other Services,60074142,CONWAY AECOM LTD,17.75,16/03/2017
Commercial,Regional Enterprise,Other Services,60074146,CONWAY AECOM LTD,"1,012.80",06/03/2017
Commercial,Regional Enterprise,Other Services,60074154,CONWAY AECOM LTD,42.28,16/03/2017
Commercial,Regional Enterprise,Other Services,60074294,CONWAY AECOM LTD,"15,028.03",07/03/2017
Commercial,Regional Enterprise,Other Services,60074309,CONWAY AECOM LTD,"24,139.14",28/03/2017
Commercial,Regional Enterprise,Other Services,60074311,CONWAY AECOM LTD,37.84,07/03/2017
Commercial,Regional Enterprise,Other Services,60074317,CONWAY AECOM LTD,"9,851.52",28/03/2017
Commercial,Regional Enterprise,Other Services,60074331,CONWAY AECOM LTD,"10,288.81",07/03/2017
Commercial,Regional Enterprise,Other Services,60074334,CONWAY AECOM LTD,"56,884.52",07/03/2017
Commercial,Regional Enterprise,Other Services,60074337,CONWAY AECOM LTD,"30,000.00",28/03/2017
Commercial,Regional Enterprise,Other Services,60074360,CONWAY AECOM LTD,"78,514.91",31/03/2017
Commercial,Regional Enterprise,Other Services,60074376,CONWAY AECOM LTD,"10,037.12",28/03/2017
Commercial,Regional Enterprise,Other Services,60074380,CONWAY AECOM LTD,"85,418.43",28/03/2017
Commercial,Regional Enterprise,Other Services,60074394,CONWAY AECOM LTD,"35,601.36",07/03/2017
Commercial,Regional Enterprise,Other Services,60074655,CONWAY AECOM LTD,"44,098.00",23/03/2017
Commercial,Regional Enterprise,Other Services,60074657,CONWAY AECOM LTD,"5,045.77",29/03/2017
Commercial,Regional Enterprise,Other Services,60074661,CONWAY AECOM LTD,974.82,28/03/2017
Commercial,Regional Enterprise,Other Services,60074663,CONWAY AECOM LTD,"26,299.00",23/03/2017
Commercial,Regional Enterprise,Other Services,60074685,CONWAY AECOM LTD,"1,973.60",23/03/2017
Commercial,Regional Enterprise,Other Services,60074689,CONWAY AECOM LTD,"45,424.00",23/03/2017
Commercial,Regional Enterprise,Other Services,60074690,CONWAY AECOM LTD,"25,913.00",23/03/2017
Commercial,Regional Enterprise,Other Services,60074694,CONWAY AECOM LTD,"58,627.85",23/03/2017
Commercial,Regional Enterprise,Other Services,60074695,CONWAY AECOM LTD,658.32,28/03/2017
Commercial,Regional Enterprise,Other Services,60074702,CONWAY AECOM LTD,854.55,28/03/2017
Commercial,Regional Enterprise,Other Services,60074715,CONWAY AECOM LTD,"108,944.00",29/03/2017
Commercial,Regional Enterprise,Other Services,60074718,CONWAY AECOM LTD,"1,202.70",28/03/2017
Commercial,Regional Enterprise,Other Services,60074722,CONWAY AECOM LTD,"44,100.00",23/03/2017
Commercial,Regional Enterprise,Other Services,60074727,CONWAY AECOM LTD,"6,613.94",28/03/2017
Commercial,Regional Enterprise,Other Services,60074733,CONWAY AECOM LTD,"16,476.40",23/03/2017
Commercial,Regional Enterprise,Other Services,60074741,CONWAY AECOM LTD,873.54,28/03/2017
Commercial,Regional Enterprise,Other Services,60074742,CONWAY AECOM LTD,"4,870.66",29/03/2017
Commercial,Regional Enterprise,Other Services,60074745,CONWAY AECOM LTD,"59,214.40",23/03/2017
Commercial,Regional Enterprise,Other Services,60074748,CONWAY AECOM LTD,"23,500.00",28/03/2017
Commercial,Regional Enterprise,Other Services,60074750,CONWAY AECOM LTD,608.55,10/03/2017
Commercial,Regional Enterprise,Other Services,60074760,CONWAY AECOM LTD,"3,559.55",29/03/2017
Commercial,Regional Enterprise,Other Services,60074762,CONWAY AECOM LTD,854.55,28/03/2017
Commercial,Regional Enterprise,Other Services,60074773,CONWAY AECOM LTD,"37,009.00",13/03/2017
Commercial,Regional Enterprise,Other Services,60074778,CONWAY AECOM LTD,"34,300.00",13/03/2017
Commercial,Regional Enterprise,Other Services,60074783,CONWAY AECOM LTD,"31,538.40",14/03/2017
Commercial,Regional Enterprise,Other Services,60074785,CONWAY AECOM LTD,"45,424.00",13/03/2017
Commercial,Regional Enterprise,Other Services,60074789,CONWAY AECOM LTD,"20,563.20",13/03/2017
Commercial,Regional Enterprise,Other Services,60074790,CONWAY AECOM LTD,"38,720.43",14/03/2017
Commercial,Regional Enterprise,Other Services,60074797,CONWAY AECOM LTD,"57,857.80",13/03/2017
Commercial,Regional Enterprise,Other Services,60074803,CONWAY AECOM LTD,179.49,28/03/2017
Commercial,Regional Enterprise,Other Services,60074829,CONWAY AECOM LTD,759.60,28/03/2017
Commercial,Regional Enterprise,Other Services,60074853,CONWAY AECOM LTD,"41,191.00",13/03/2017
Commercial,Regional Enterprise,Other Services,60074872,CONWAY AECOM LTD,"34,991.05",23/03/2017
Commercial,Regional Enterprise,Other Services,60074880,CONWAY AECOM LTD,468.57,28/03/2017
Commercial,Regional Enterprise,Other Services,60075240,CONWAY AECOM LTD,257.40,29/03/2017
Commercial,Regional Enterprise,Other Services,60075241,CONWAY AECOM LTD,"1,126.84",29/03/2017
Commercial,Regional Enterprise,Other Services,60075251,CONWAY AECOM LTD,114.40,29/03/2017
Commercial,Regional Enterprise,Other Services,60075255,CONWAY AECOM LTD,297.44,29/03/2017
Commercial,Regional Enterprise,Other Services,60075259,CONWAY AECOM LTD,257.40,29/03/2017
Commercial,Regional Enterprise,Other Services,60075264,CONWAY AECOM LTD,287.43,23/03/2017
Commercial,Regional Enterprise,Other Services,60075265,CONWAY AECOM LTD,743.60,29/03/2017
Commercial,Regional Enterprise,Other Services,60075269,CONWAY AECOM LTD,320.32,29/03/2017
Commercial,Regional Enterprise,Other Services,60075271,CONWAY AECOM LTD,297.44,29/03/2017
Commercial,Regional Enterprise,Other Services,60075279,CONWAY AECOM LTD,949.50,23/03/2017
Commercial,Regional Enterprise,Other Services,60075281,CONWAY AECOM LTD,869.44,29/03/2017
Commercial,Regional Enterprise,Other Services,60075282,CONWAY AECOM LTD,287.33,23/03/2017
Commercial,Regional Enterprise,Other Services,60075283,CONWAY AECOM LTD,629.20,29/03/2017
Commercial,Regional Enterprise,Other Services,60075296,CONWAY AECOM LTD,429.00,29/03/2017
Commercial,Regional Enterprise,Other Services,60075304,CONWAY AECOM LTD,514.80,29/03/2017
Commercial,Regional Enterprise,Other Services,60075310,CONWAY AECOM LTD,657.80,29/03/2017
Commercial,Regional Enterprise,Other Services,60075315,CONWAY AECOM LTD,829.40,29/03/2017
Commercial,Regional Enterprise,Other Services,60075317,CONWAY AECOM LTD,514.80,29/03/2017
Commercial,Regional Enterprise,Other Services,60075320,CONWAY AECOM LTD,400.40,29/03/2017
Commercial,Regional Enterprise,Other Services,60075325,CONWAY AECOM LTD,715.00,29/03/2017
Commercial,Regional Enterprise,Other Services,60075329,CONWAY AECOM LTD,143.00,29/03/2017
Commercial,Regional Enterprise,Other Services,60075334,CONWAY AECOM LTD,629.20,29/03/2017
Commercial,Regional Enterprise,Other Services,60075338,CONWAY AECOM LTD,343.20,29/03/2017
Commercial,Regional Enterprise,Other Services,60075342,CONWAY AECOM LTD,205.92,29/03/2017
Commercial,Regional Enterprise,Other Services,60075359,CONWAY AECOM LTD,"1,114.08",23/03/2017
Commercial,Regional Enterprise,Other Services,60075383,CONWAY AECOM LTD,191.62,23/03/2017
Commercial,Regional Enterprise,Other Services,60075401,CONWAY AECOM LTD,579.75,21/03/2017
Commercial,Regional Enterprise,Other Services,60075402,CONWAY AECOM LTD,"14,404.56",21/03/2017
Commercial,Regional Enterprise,Other Services,60075409,CONWAY AECOM LTD,"1,019.13",23/03/2017
Commercial,Regional Enterprise,Other Services,60075452,CONWAY AECOM LTD,886.20,23/03/2017
Commercial,Regional Enterprise,Other Services,60075618,CONWAY AECOM LTD,559.15,27/03/2017
Commercial,Regional Enterprise,Other Services,60075923,CONWAY AECOM LTD,"10,876.38",30/03/2017
Commercial,Regional Enterprise,Other Services,60076022,CONWAY AECOM LTD,766.62,30/03/2017
Commercial,Regional Enterprise,Other Services,60074293,COPPETTS WOOD PRIMARY SCHOOL,500.00,10/03/2017
Commercial,Regional Enterprise,Other Services,60072628,CYCLE CONFIDENT LTD,"10,262.92",02/03/2017
Commercial,Regional Enterprise,Other Services,60074964,CYCLE CONFIDENT LTD,"16,731.25",30/03/2017
Commercial,Regional Enterprise,Other Services,60074314,KENT COUNTY COUNCIL (KCS),24.18,31/03/2017
Commercial,Regional Enterprise,Other Services,60074318,KENT COUNTY COUNCIL (KCS),27.91,31/03/2017
Commercial,Regional Enterprise,Other Services,60074362,KENT COUNTY COUNCIL (KCS),25.07,31/03/2017
Commercial,Regional Enterprise,Other Services,60068440,LANTERN RECOVERY SPECIALISTS PLC,242.50,31/03/2017
Commercial,Regional Enterprise,Other Services,60073316,LONDON BUSES SERVICES LIMITED,"1,533.43",30/03/2017
Commercial,Regional Enterprise,Other Services,60073216,PARKFIELD ACADEMY,"1,400.00",02/03/2017
Commercial,Regional Enterprise,Other Services,60072287,STREET TREE CARE LTD,"15,320.60",09/03/2017
Commercial,Regional Enterprise,Other Services,60057056,SUN HILL SURVEYS,"2,050.00",08/03/2017
Commercial,Regional Enterprise,Other Services,60072015,SUN HILL SURVEYS,"2,375.00",09/03/2017
Commercial,Regional Enterprise,Other Services,60072046,SUN HILL SURVEYS,"2,700.00",09/03/2017
Commercial,Regional Enterprise,Other Services,60072099,SUN HILL SURVEYS,"1,800.00",09/03/2017
Commercial,Regional Enterprise,Other Services,60074781,SUN HILL SURVEYS,"4,995.00",13/03/2017
Commercial,Regional Enterprise,Other Services,60074798,SUN HILL SURVEYS,900.00,13/03/2017
Commercial,Regional Enterprise,Other Services,60074821,SUN HILL SURVEYS,"3,850.00",13/03/2017
Commercial,Regional Enterprise,Other Services,60074832,SUN HILL SURVEYS,"5,525.00",13/03/2017
Commercial,Regional Enterprise,Other Services,60074846,SUN HILL SURVEYS,"6,475.00",13/03/2017
Commercial,Regional Enterprise,Other Services,60074858,SUN HILL SURVEYS,"1,475.00",13/03/2017
Commercial,Regional Enterprise,Other Services,60074326,THAMES WATER UTILITIES LIMITED,23.08,09/03/2017
Commercial,Regional Enterprise,Other Services,60072066,THE PARDES HOUSE GRAMMAR SCHOOL,700.00,02/03/2017
Commercial,Regional Enterprise,Other Services,60072445,THE PARDES HOUSE GRAMMAR SCHOOL,"1,000.00",20/03/2017
Commercial,Regional Enterprise,Other Services,60071233,TRAFFIC SURVEY PARTNERS (TSP) LTD,300.00,14/03/2017
Commercial,Regional Enterprise,Other Services,60071286,TRAFFIC SURVEY PARTNERS (TSP) LTD,280.00,14/03/2017
Commercial,Regional Enterprise,Other Services,60072021,TRAFFIC SURVEY PARTNERS (TSP) LTD,225.00,17/03/2017
Commercial,Regional Enterprise,Other Services,60075097,TRAFFIC SURVEY PARTNERS (TSP) LTD,360.00,16/03/2017
Commercial,Regional Enterprise,Other Services,60075109,TRAFFIC SURVEY PARTNERS (TSP) LTD,250.00,16/03/2017
Commercial,Regional Enterprise,Other Services,60075173,TRAFFIC SURVEY PARTNERS (TSP) LTD,250.00,16/03/2017
Commercial,Regional Enterprise,Other Services,60073562,XAIS ASSET MANAGEMENT LTD,"4,000.00",16/03/2017
Commercial,Regional Enterprise,Professional Services,60072770,WATES LIVING SPACE,"1,952.68",15/03/2017
Commercial,Regional Enterprise,Professional Services,60072813,WATES LIVING SPACE,"1,350.08",15/03/2017
Commercial,Regional Enterprise,Professional Services,60072817,WATES LIVING SPACE,"4,283.43",15/03/2017
Commercial,Regional Enterprise,Professional Services,60072845,WATES LIVING SPACE,"2,562.79",15/03/2017
Commercial,Regional Enterprise,Professional Services,60075793,WATES LIVING SPACE,"18,920.62",31/03/2017
Commercial,Regional Enterprise,RE Services Contract Payment,60074541,RE (REGIONAL ENTERPRISE) LIMITED,"4,047,341.00",29/03/2017
Commissioning,Commissioning,Agency/Interim Hays,60072055,SUE HILL RECRUITMENT & SERVICES LTD,925.13,10/03/2017
Commissioning,Commissioning,Agency/Interim Hays,60072131,SUE HILL RECRUITMENT & SERVICES LTD,925.13,03/03/2017
Commissioning,Commissioning,Agency/Interim Hays,60073606,SUE HILL RECRUITMENT & SERVICES LTD,879.53,16/03/2017
Commissioning,Commissioning,Building Repairs & Maintenance,60074066,ADAMS ENVIRONMENTAL LTD,"1,200.00",28/03/2017
Commissioning,Commissioning,Building Repairs & Maintenance,60073718,HARROW GREEN LTD,592.08,23/03/2017
Commissioning,Commissioning,Building Repairs & Maintenance,60073664,MIDDLESEX UNIVERSITY,"-140,000.00",21/03/2017
Commissioning,Commissioning,Building Repairs & Maintenance,60073515,RGE SERVICES,"3,538.80",10/03/2017
Commissioning,Commissioning,Building Repairs & Maintenance,60074589,RGE SERVICES,"1,908.00",29/03/2017
Commissioning,Commissioning,Building Repairs & Maintenance,60075189,RGE SERVICES,155.00,16/03/2017
Commissioning,Commissioning,Building Repairs & Maintenance,60066704,S W BRUCE & CO LTD,"2,317.25",24/03/2017
Commissioning,Commissioning,Building Repairs & Maintenance,60066716,S W BRUCE & CO LTD,"1,170.00",24/03/2017
Commissioning,Commissioning,Building Repairs & Maintenance,60066727,S W BRUCE & CO LTD,"10,200.00",08/03/2017
Commissioning,Commissioning,Building Repairs & Maintenance,60072862,S W BRUCE & CO LTD,"19,480.27",14/03/2017
Commissioning,Commissioning,Building Repairs & Maintenance,60073594,S W BRUCE & CO LTD,196.06,16/03/2017
Commissioning,Commissioning,Building Repairs & Maintenance,60073668,S W BRUCE & CO LTD,"1,251.08",21/03/2017
Commissioning,Commissioning,Building Repairs & Maintenance,60073697,S W BRUCE & CO LTD,"101,910.94",16/03/2017
Commissioning,Commissioning,Building Repairs & Maintenance,60074276,S W BRUCE & CO LTD,"3,545.50",29/03/2017
Commissioning,Commissioning,Building Repairs & Maintenance,60074283,S W BRUCE & CO LTD,891.25,30/03/2017
Commissioning,Commissioning,Building Repairs & Maintenance,60074290,S W BRUCE & CO LTD,468.47,29/03/2017
Commissioning,Commissioning,Building Repairs & Maintenance,60074302,S W BRUCE & CO LTD,"2,362.36",29/03/2017
Commissioning,Commissioning,Building Repairs & Maintenance,60074322,S W BRUCE & CO LTD,"1,358.44",29/03/2017
Commissioning,Commissioning,Building Repairs & Maintenance,60074336,S W BRUCE & CO LTD,"3,047.50",29/03/2017
Commissioning,Commissioning,Building Repairs & Maintenance,60074358,S W BRUCE & CO LTD,357.00,29/03/2017
Commissioning,Commissioning,Building Repairs & Maintenance,60074359,S W BRUCE & CO LTD,"1,007.08",29/03/2017
Commissioning,Commissioning,Building Repairs & Maintenance,60074386,S W BRUCE & CO LTD,"1,888.29",29/03/2017
Commissioning,Commissioning,Building Repairs & Maintenance,60074396,S W BRUCE & CO LTD,"1,358.44",29/03/2017
Commissioning,Commissioning,Building Repairs & Maintenance,60074400,S W BRUCE & CO LTD,"7,056.12",30/03/2017
Commissioning,Commissioning,Building Repairs & Maintenance,60075142,SECOM PLC,996.00,20/03/2017
Commissioning,Commissioning,Building Repairs & Maintenance,60075156,SECOM PLC,296.00,20/03/2017
Commissioning,Commissioning,Building Repairs & Maintenance,60075160,SECOM PLC,831.00,20/03/2017
Commissioning,Commissioning,Clothing - Uniforms,60073617,THE ULTIMATE PROMOTION CO LTD,353.00,01/03/2017
Commissioning,Commissioning,Consultants Fees,80009361,ADCS,"3,135.00",27/03/2017
Commissioning,Commissioning,Consultants Fees,80008861,AON UK LIMITED,360.00,13/03/2017
Commissioning,Commissioning,Consultants Fees,80009414,BUFFALO 7 LTD,"1,360.00",30/03/2017
Commissioning,Commissioning,Consultants Fees,60068427,COMMUNITY BARNET,"7,500.00",21/03/2017
Commissioning,Commissioning,Consultants Fees,60072518,CONSULTCIH (T/A CIH CONSULTANCY),"1,975.00",10/03/2017
Commissioning,Commissioning,Consultants Fees,10013658,FMG CONSULTING LTD,"2,716.20",06/03/2017
Commissioning,Commissioning,Consultants Fees,60074586,FMG CONSULTING LTD,658.96,29/03/2017
Commissioning,Commissioning,Consultants Fees,60072230,FOCUS CONSULTANTS 2010 LLP,"1,782.50",08/03/2017
Commissioning,Commissioning,Consultants Fees,60074576,GALLIFORD TRY,"883,539.27",17/03/2017
Commissioning,Commissioning,Consultants Fees,60075477,JON SHEAFF AND ASSOCIATES,"4,716.00",30/03/2017
Commissioning,Commissioning,Consultants Fees,60073906,KAZOU CONSULTANCY LTD,168.00,10/03/2017
Commissioning,Commissioning,Consultants Fees,60073930,KAZOU CONSULTANCY LTD,"2,200.00",10/03/2017
Commissioning,Commissioning,Consultants Fees,60074173,LEIDOS INNOVATIONS UK LTD,"6,327.00",06/03/2017
Commissioning,Commissioning,Consultants Fees,80008677,MERCER MYERS ASSOCIATES LTD,"1,200.00",01/03/2017
Commissioning,Commissioning,Consultants Fees,60074574,PENNA PLC,"2,500.00",09/03/2017
Commissioning,Commissioning,Consultants Fees,60075545,PROJECT CENTRE LTD,"10,900.00",27/03/2017
Commissioning,Commissioning,Consultants Fees,60075221,QUALITY FIELDWORK & RESEARCH,"6,400.00",27/03/2017
Commissioning,Commissioning,Consultants Fees,60075575,RAINCHARM COMMUNICATIONS LTD,360.00,23/03/2017
Commissioning,Commissioning,Consultants Fees,60076181,WATES CONSTRUCTION LTD,"2,347.50",31/03/2017
Commissioning,Commissioning,Consultants Fees,60075222,WILLMOTT DIXON CONSTRUCTION LTD,"1,061,879.00",23/03/2017
Commissioning,Commissioning,Employee Expenses,60069185,TMP (UK) LTD,841.00,01/03/2017
Commissioning,Commissioning,Employee Expenses,60076037,TMP (UK) LTD,"1,676.00",31/03/2017
Commissioning,Commissioning,Equipment and Materials Purcha,60073333,OCS GROUP UK LIMITED,"46,521.00",02/03/2017
Commissioning,Commissioning,Equipment and Materials Purcha,60074739,OCS GROUP UK LIMITED,"46,521.00",30/03/2017
Commissioning,Commissioning,Equipment and Materials Purcha,60072326,S W BRUCE & CO LTD,"4,547.87",10/03/2017
Commissioning,Commissioning,General Office Expenses,40002174,OFFICE DEPOT UK LTD,14.73,28/03/2017
Commissioning,Commissioning,Grant Payments,80009182,ACTION ON HEARING LOSS,"2,400.00",21/03/2017
Commissioning,Commissioning,Grant Payments,80008622,AVENUE HOUSE ESTATE TRUST,"5,000.00",06/03/2017
Commissioning,Commissioning,Grant Payments,80008552,BARNET COMMUNITY TRANSPORT,"4,788.00",06/03/2017
Commissioning,Commissioning,Grant Payments,80008785,CENTREPOINT,"4,775.00",06/03/2017
Commissioning,Commissioning,Grant Payments,80009129,INCLUSION BARNET,"2,500.00",21/03/2017
Commissioning,Commissioning,Grant Payments,80009122,ST PETER'S BOURNE MAN. COMPANY,"2,500.00",21/03/2017
Commissioning,Commissioning,Grant Payments,80008788,THE AXIS EDUCATIONAL TRUST,"2,500.00",27/03/2017
Commissioning,Commissioning,Grant Payments,80009218,THE JEWISH DEAF ASSOCIATION,"9,884.00",21/03/2017
Commissioning,Commissioning,Health authorities - Third Par,60074346,NHS BARNET CCG,"15,390.00",07/03/2017
Commissioning,Commissioning,Health authorities - Third Par,60072490,REDACTED - PERSONAL DATA,50.00,10/03/2017
Commissioning,Commissioning,Miscellaneous Expenses,60075515,BARNET LIGHTING SERVICES LTD,500.00,28/03/2017
Commissioning,Commissioning,Other Services,60074776,BLUE 9 SECURITY LIMITED,"3,230.78",14/03/2017
Commissioning,Commissioning,Other Services,60071802,HARROW GREEN LTD,"7,839.60",01/03/2017
Commissioning,Commissioning,Other Services,60072294,HARROW GREEN LTD,432.00,10/03/2017
Commissioning,Commissioning,Other Services,60074249,HARROW GREEN LTD,"5,647.34",29/03/2017
Commissioning,Commissioning,Other Services,60075250,PELL FRISCHMAN CONSULTING ENGINEERS LTD,"2,590.65",29/03/2017
Commissioning,Commissioning,Other Services,80008057,REDACTED - PERSONAL DATA,5.52,10/03/2017
Commissioning,Commissioning,Other Services,60072396,SELECTAMARK SECURITY SYSTEMS PLC,997.50,09/03/2017
Commissioning,Commissioning,Other Services,60072058,SUN HILL SURVEYS,900.00,09/03/2017
Commissioning,Commissioning,Other Services,60072188,SUN HILL SURVEYS,950.00,09/03/2017
Commissioning,Commissioning,Other Services,60073011,THE PARDES HOUSE GRAMMAR SCHOOL,"1,000.00",02/03/2017
Commissioning,Commissioning,Other Services,80009469,TONY LAMPERT CONSULTING,547.00,31/03/2017
Commissioning,Commissioning,Other Services,60071304,TRAFFIC SURVEY PARTNERS (TSP) LTD,280.00,14/03/2017
Commissioning,Commissioning,Other Services,60074020,WHITEFIELD SCHOOL ACADEMY TRUST CO.,"1,000.00",06/03/2017
Commissioning,Commissioning,Other Transfer Payments to Soc,60073940,COMMUNITY BARNET,"30,000.00",03/03/2017
Commissioning,Commissioning,Other Transfer Payments to Soc,60075061,EMPOWERING COMMUNITIES,"5,949.00",16/03/2017
Commissioning,Commissioning,Other Transfer Payments to Soc,60075530,RISE MUTUAL CIC,"16,600.00",23/03/2017
Commissioning,Commissioning,Private Contractors - Third Pa,60075297,GREENWICH LEISURE LTD,"41,841.51",29/03/2017
Commissioning,Commissioning,Professional Services,60072068,ALPHA RESEARCH LIMITED,"4,825.00",07/03/2017
Commissioning,Commissioning,Professional Services,60071584,EJH TRAINING SERVICES LTD,"2,461.25",03/03/2017
Commissioning,Commissioning,Professional Services,10013648,GENERAL DYNAMICS INFORMATION TECHNOLOGY,"5,506.36",07/03/2017
Commissioning,Commissioning,Professional Services,60075511,GREENWICH LEISURE LTD,214.80,29/03/2017
Commissioning,Commissioning,Professional Services,60072678,QUALITY FIELDWORK & RESEARCH,"1,532.00",27/03/2017
Commissioning,Commissioning,Professional Services,60073456,QUALITY FIELDWORK & RESEARCH,"2,743.00",06/03/2017
Commissioning,Commissioning,Professional Services,60075111,RE (REGIONAL ENTERPRISE) LIMITED,"4,000.00",30/03/2017
Commissioning,Commissioning,Professional Services,60072011,REDACTED - PERSONAL DATA,"1,288.75",10/03/2017
Commissioning,Commissioning,Professional Services,60040386,ROSSENDALES (COLLECT) LTD,20.66,16/03/2017
Commissioning,Commissioning,Professional Services,60040396,ROSSENDALES (COLLECT) LTD,20.66,16/03/2017
Commissioning,Commissioning,Professional Services,60040404,ROSSENDALES (COLLECT) LTD,20.66,16/03/2017
Commissioning,Commissioning,Professional Services,60040472,ROSSENDALES (COLLECT) LTD,20.66,16/03/2017
Commissioning,Commissioning,Professional Services,60060695,ROSSENDALES (COLLECT) LTD,-23.25,16/03/2017
Commissioning,Commissioning,Professional Services,60072764,ROSSENDALES (COLLECT) LTD,24.82,16/03/2017
Commissioning,Commissioning,Professional Services,60072788,ROSSENDALES (COLLECT) LTD,39.72,16/03/2017
Commissioning,Commissioning,Professional Services,60072801,ROSSENDALES (COLLECT) LTD,7.82,16/03/2017
Commissioning,Commissioning,Professional Services,60072826,ROSSENDALES (COLLECT) LTD,21.97,16/03/2017
Commissioning,Commissioning,Professional Services,60072841,ROSSENDALES (COLLECT) LTD,24.56,16/03/2017
Commissioning,Commissioning,Professional Services,80009084,TEACHERS PENSIONS,"1,945.70",27/03/2017
Commissioning,Commissioning,Professional Services,60071397,TRACEY HILL TRAINING & CONSULTANCY LTD,262.50,03/03/2017
Commissioning,Commissioning,Professional Services,60074833,TRACEY HILL TRAINING & CONSULTANCY LTD,"2,490.90",14/03/2017
Commissioning,Commissioning,Publications,60074455,ACCESS INTELLIGENCE MEDIA & COMM.LT,"4,620.00",31/03/2017
Commissioning,Commissioning,Publications,60074083,DIGITALISSUE LIMITED,150.00,22/03/2017
Commissioning,Commissioning,Publications,60075368,PRCA,"1,000.00",21/03/2017
Commissioning,Commissioning,Publications,60075658,REDACTED - PERSONAL DATA,250.00,31/03/2017
Commissioning,Commissioning,Publications,60071428,TMP (UK) LTD,"1,370.50",20/03/2017
Commissioning,Commissioning,Publicity,60072110,LIVEO,40.00,01/03/2017
Commissioning,Commissioning,Publicity,60074766,TXTLOCAL LTD,90.00,14/03/2017
Commissioning,Commissioning,Stationery,40001872,OFFICE DEPOT UK LTD,68.67,28/03/2017
Commissioning,Commissioning,Stationery,40001936,OFFICE DEPOT UK LTD,13.83,28/03/2017
Commissioning,Commissioning,Stationery,40001961,OFFICE DEPOT UK LTD,132.65,28/03/2017
Commissioning,Commissioning,Stationery,40001966,OFFICE DEPOT UK LTD,186.15,28/03/2017
Commissioning,Commissioning,Stationery,40001998,OFFICE DEPOT UK LTD,13.34,28/03/2017
Commissioning,Commissioning,Stationery,40002002,OFFICE DEPOT UK LTD,7.51,28/03/2017
Commissioning,Commissioning,Subscriptions,80008858,ALARM,527.00,20/03/2017
Commissioning,Commissioning,Subscriptions,60074501,LONDON BOROUGH OF EALING,"5,833.00",31/03/2017
Commissioning,Commissioning,Subscriptions,10013672,NATIONAL ASSOC OF DATA PROTECTION OFFICE,130.00,27/03/2017
Commissioning,Commissioning,Training,60073765,THE KNOWLEDGE ACADEMY LTD,"1,467.00",01/03/2017
Commissioning,Commissioning,Training,60073842,THE KNOWLEDGE ACADEMY LTD,799.00,01/03/2017
Commissioning,Commissioning,Ttl IT & Comms,60071748,STOR-A FILE LTD,488.19,01/03/2017
Commissioning,Commissioning,Venue Hire,60072313,ARIANA BANQUETING HALL,"5,250.00",10/03/2017
Corporate Accounting,Corporate Accounting,Other Agencies - Third Party P,60074548,THE BARNETGROUP LIMITED,"900,000.00",09/03/2017
Corporate Accounting,Corporate Accounting,Other Agencies - Third Party P,60074608,THE BARNETGROUP LIMITED,"125,000.00",09/03/2017
Corporate Accounting,Corporate Accounting,Other Agencies - Third Party P,60075151,THE BARNETGROUP LIMITED,"2,507,624.00",29/03/2017
Corporate Accounting,Corporate Accounting,Other Agencies - Third Party P,60076141,THE BARNETGROUP LIMITED,"250,000.00",31/03/2017
Corporate Accounting,Corporate Accounting,Other Establishments - Third P,30159273,CLAREMONT PRIMARY SCHOOL ACADEMY,840.67,27/03/2017
Corporate Accounting,Corporate Accounting,Other Establishments - Third P,30159276,COPTHALL SCHOOL (ACADEMY),"12,512.90",27/03/2017
Corporate Accounting,Corporate Accounting,Other Establishments - Third P,30159281,COPTHALL SCHOOL (ACADEMY),"1,164.12",27/03/2017
Corporate Accounting,Corporate Accounting,Other Establishments - Third P,30159275,PARKFIELD ACADEMY,"1,052.88",30/03/2017
Corporate Accounting,Corporate Accounting,Other Establishments - Third P,30159278,PARKFIELD ACADEMY,"22,490.00",30/03/2017
Corporate Accounting,Corporate Accounting,Other Establishments - Third P,30159280,PARKFIELD ACADEMY,317.09,30/03/2017
Corporate Accounting,Corporate Accounting,Other Establishments - Third P,30159277,QUEEN ELIZABETH'S GIRLS ACADEMY,"6,705.25",27/03/2017
Corporate Accounting,Corporate Accounting,Other Establishments - Third P,30159279,QUEEN ELIZABETH'S GIRLS ACADEMY,"2,422.00",27/03/2017
Corporate Accounting,Corporate Accounting,Other Establishments - Third P,30159274,THE HYDE EF ACADEMY,"1,024.18",27/03/2017
Corporate Accounting,Corporate Accounting,Other Local Authorities - Thir,EBX0160539,GREATER LONDON AUTHORITY,"3,891,785.34",06/03/2017
Corporate Accounting,Corporate Accounting,Other Local Authorities - Thir,EBX0160632,GREATER LONDON AUTHORITY,"230,279.74",07/03/2017
Corporate Accounting,Corporate Accounting,Other Local Authorities - Thir,EBX0161163,GREATER LONDON AUTHORITY,"1,521,309.00",10/03/2017
Corporate Accounting,Corporate Accounting,Other Transfer Payments to Soc,20033595,CITIBANK NA LONDON,"3,901.65",28/03/2017
Corporate Accounting,Corporate Accounting,Other Transfer Payments to Soc,20033596,CITIBANK NA LONDON,"1,859.40",28/03/2017
Corporate Accounting,Corporate Accounting,Other Transfer Payments to Soc,20033597,CITIBANK NA LONDON,"1,527.20",28/03/2017
Corporate Accounting,Corporate Accounting,Other Transfer Payments to Soc,20033598,CITIBANK NA LONDON,"1,468.44",28/03/2017
Corporate Accounting,Corporate Accounting,Other Transfer Payments to Soc,20033599,CITIBANK NA LONDON,"1,618.70",28/03/2017
Corporate Accounting,Corporate Accounting,Other Transfer Payments to Soc,20033600,CITIBANK NA LONDON,955.50,28/03/2017
Corporate Accounting,Corporate Accounting,Other Transfer Payments to Soc,20033601,CITIBANK NA LONDON,503.00,28/03/2017
Corporate Accounting,Corporate Accounting,Other Transfer Payments to Soc,20033602,CITIBANK NA LONDON,"4,145.00",28/03/2017
Corporate Accounting,Corporate Accounting,Other Transfer Payments to Soc,20033603,CITIBANK NA LONDON,"1,283.70",28/03/2017
Corporate Accounting,Corporate Accounting,Other Transfer Payments to Soc,20033604,CITIBANK NA LONDON,520.50,28/03/2017
Corporate Accounting,Corporate Accounting,Other Transfer Payments to Soc,20033605,CITIBANK NA LONDON,648.50,28/03/2017
Corporate Accounting,Corporate Accounting,Other Transfer Payments to Soc,20033606,CITIBANK NA LONDON,563.36,28/03/2017
Corporate Accounting,Corporate Accounting,Other Transfer Payments to Soc,20033607,CITIBANK NA LONDON,689.44,28/03/2017
Corporate Accounting,Corporate Accounting,Other Transfer Payments to Soc,20033608,CITIBANK NA LONDON,726.30,28/03/2017
Corporate Accounting,Corporate Accounting,Other Transfer Payments to Soc,20033609,CITIBANK NA LONDON,975.90,28/03/2017
Corporate Accounting,Corporate Accounting,Other Transfer Payments to Soc,20033610,CITIBANK NA LONDON,539.80,28/03/2017
Corporate Accounting,Corporate Accounting,Other Transfer Payments to Soc,20033611,CITIBANK NA LONDON,831.60,28/03/2017
Corporate Accounting,Corporate Accounting,Other Transfer Payments to Soc,60073862,CITIBANK NA LONDON,"3,275.70",02/03/2017
Corporate Accounting,Corporate Accounting,Other Transfer Payments to Soc,60073882,CITIBANK NA LONDON,500.00,02/03/2017
Corporate Accounting,Corporate Accounting,Other Transfer Payments to Soc,60073891,CITIBANK NA LONDON,121.30,10/03/2017
Corporate Accounting,Corporate Accounting,Other Transfer Payments to Soc,60073892,CITIBANK NA LONDON,50.00,02/03/2017
Corporate Accounting,Corporate Accounting,Other Transfer Payments to Soc,60073902,CITIBANK NA LONDON,200.00,02/03/2017
Corporate Accounting,Corporate Accounting,Other Transfer Payments to Soc,60073905,CITIBANK NA LONDON,500.00,02/03/2017
Corporate Accounting,Corporate Accounting,Other Transfer Payments to Soc,60073908,CITIBANK NA LONDON,"3,367.00",02/03/2017
Corporate Accounting,Corporate Accounting,Other Transfer Payments to Soc,60073916,CITIBANK NA LONDON,115.80,02/03/2017
Corporate Accounting,Corporate Accounting,Other Transfer Payments to Soc,60073939,CITIBANK NA LONDON,"3,036.10",02/03/2017
Corporate Accounting,Corporate Accounting,Other Transfer Payments to Soc,60073950,CITIBANK NA LONDON,57.90,02/03/2017
Corporate Accounting,Corporate Accounting,Other Transfer Payments to Soc,60074282,CITIBANK NA LONDON,57.90,07/03/2017
Corporate Accounting,Corporate Accounting,Other Transfer Payments to Soc,60074325,CITIBANK NA LONDON,"1,010.40",07/03/2017
Corporate Accounting,Corporate Accounting,Other Transfer Payments to Soc,60074341,CITIBANK NA LONDON,356.80,07/03/2017
Corporate Accounting,Corporate Accounting,Other Transfer Payments to Soc,60074357,CITIBANK NA LONDON,"1,085.92",07/03/2017
Corporate Accounting,Corporate Accounting,Other Transfer Payments to Soc,60074368,CITIBANK NA LONDON,634.93,07/03/2017
Corporate Accounting,Corporate Accounting,Other Transfer Payments to Soc,60074377,CITIBANK NA LONDON,308.70,07/03/2017
Corporate Accounting,Corporate Accounting,Other Transfer Payments to Soc,60074397,CITIBANK NA LONDON,687.50,07/03/2017
Corporate Accounting,Corporate Accounting,Other Transfer Payments to Soc,60074527,CITIBANK NA LONDON,238.50,10/03/2017
Corporate Accounting,Corporate Accounting,Other Transfer Payments to Soc,60074700,CITIBANK NA LONDON,275.00,10/03/2017
Delivery Units,Adults and Communities,Capital Construction and Works,60076210,BARNET & SOUTHGATE COLLEGE,"545,541.50",31/03/2017
Delivery Units,Adults and Communities,Cleaning and domestic material,60069680,CHURCHILL CONTRACT SERVICES,377.81,01/03/2017
Delivery Units,Adults and Communities,Cleaning and domestic material,60069696,CHURCHILL CONTRACT SERVICES,391.37,01/03/2017
Delivery Units,Adults and Communities,Cleaning and domestic material,60071459,CHURCHILL CONTRACT SERVICES,377.81,02/03/2017
Delivery Units,Adults and Communities,Cleaning and domestic material,60071488,CHURCHILL CONTRACT SERVICES,391.37,02/03/2017
Delivery Units,Adults and Communities,Cleaning and domestic material,40001869,OFFICE DEPOT UK LTD,112.44,28/03/2017
Delivery Units,Adults and Communities,Consultants Fees,60074648,VOICEABILITY,"2,080.00",10/03/2017
Delivery Units,Adults and Communities,Consumable Catering Supplies,40002226,OFFICE DEPOT UK LTD,40.68,28/03/2017
Delivery Units,Adults and Communities,Employee Expenses,60073818,CENTRAL LONDONCOMMUNITY HEALTHCARE,"88,097.00",20/03/2017
Delivery Units,Adults and Communities,Employee Expenses,60075199,CENTRAL LONDONCOMMUNITY HEALTHCARE,"88,099.00",20/03/2017
Delivery Units,Adults and Communities,Equipment and Materials Purcha,60075164,BLAZIE ENGINEERING LTD,600.00,16/03/2017
Delivery Units,Adults and Communities,Equipment and Materials Purcha,80009386,BRITISH TELECOM PLC,"2,032.05",30/03/2017
Delivery Units,Adults and Communities,Equipment and Materials Purcha,80009388,BRITISH TELECOM PLC,"2,706.48",30/03/2017
Delivery Units,Adults and Communities,Equipment and Materials Purcha,80009389,BRITISH TELECOM PLC,"1,756.14",30/03/2017
Delivery Units,Adults and Communities,Equipment and Materials Purcha,60072174,DON RUFFLES LIMITED,"1,949.90",06/03/2017
Delivery Units,Adults and Communities,Equipment and Materials Purcha,60075556,JOHN GRAHAM CONSTRUCTION LTD,"192,803.00",27/03/2017
Delivery Units,Adults and Communities,Equipment and Materials Purcha,60075616,JOHN GRAHAM CONSTRUCTION LTD,"139,723.00",27/03/2017
Delivery Units,Adults and Communities,Equipment and Materials Purcha,60075374,MEDEQUIP ASSISTIVE TECHNOLOGY LTD,491.50,21/03/2017
Delivery Units,Adults and Communities,Equipment and Materials Purcha,60075390,MEDEQUIP ASSISTIVE TECHNOLOGY LTD,"231,064.59",21/03/2017
Delivery Units,Adults and Communities,Equipment and Materials Purcha,60075397,MEDEQUIP ASSISTIVE TECHNOLOGY LTD,"12,210.00",29/03/2017
Delivery Units,Adults and Communities,Equipment and Materials Purcha,60075440,MEDEQUIP ASSISTIVE TECHNOLOGY LTD,161.40,21/03/2017
Delivery Units,Adults and Communities,Equipment and Materials Purcha,60075457,MEDEQUIP ASSISTIVE TECHNOLOGY LTD,257.92,21/03/2017
Delivery Units,Adults and Communities,Equipment and Materials Purcha,60075466,MEDEQUIP ASSISTIVE TECHNOLOGY LTD,318.00,21/03/2017
Delivery Units,Adults and Communities,Equipment and Materials Purcha,60075473,MEDEQUIP ASSISTIVE TECHNOLOGY LTD,"196,892.39",21/03/2017
Delivery Units,Adults and Communities,Equipment and Materials Purcha,40002180,OFFICE DEPOT UK LTD,30.15,28/03/2017
Delivery Units,Adults and Communities,Equipment and Materials Purcha,40002221,OFFICE DEPOT UK LTD,165.00,28/03/2017
Delivery Units,Adults and Communities,Food Costs,60073708,MULLER MILK & INGREDIENTS,1.62,03/03/2017
Delivery Units,Adults and Communities,Food Costs,60074389,MULLER MILK & INGREDIENTS,1.65,10/03/2017
Delivery Units,Adults and Communities,Food Costs,60074926,MULLER MILK & INGREDIENTS,1.65,24/03/2017
Delivery Units,Adults and Communities,Food Costs,60075594,MULLER MILK & INGREDIENTS,1.65,31/03/2017
Delivery Units,Adults and Communities,Furniture-Purchase-Repair,60074962,REDACTED - PERSONAL DATA,200.00,15/03/2017
Delivery Units,Adults and Communities,Gas,60073641,BRITISH GAS BUSINESS,"1,476.92",17/03/2017
Delivery Units,Adults and Communities,Gas,60073955,KENT COUNTY COUNCIL (KCS),259.93,03/03/2017
Delivery Units,Adults and Communities,Gas,60076034,KENT COUNTY COUNCIL (KCS),213.39,31/03/2017
Delivery Units,Adults and Communities,General Office Expenses,40001938,OFFICE DEPOT UK LTD,30.48,28/03/2017
Delivery Units,Adults and Communities,General Office Expenses,40002103,OFFICE DEPOT UK LTD,44.40,28/03/2017
Delivery Units,Adults and Communities,Grant Payments,80008651,AMWELL CONSTRUCTION LTD,319.20,30/03/2017
Delivery Units,Adults and Communities,Grant Payments,80008657,AMWELL CONSTRUCTION LTD,513.00,30/03/2017
Delivery Units,Adults and Communities,Grant Payments,80008652,DP BUILDERS DISABLED ADAPTATIONS,"1,029.00",30/03/2017
Delivery Units,Adults and Communities,Grant Payments,80008655,DP BUILDERS DISABLED ADAPTATIONS,672.00,30/03/2017
Delivery Units,Adults and Communities,Grant Payments,80009309,DP BUILDERS DISABLED ADAPTATIONS,126.00,30/03/2017
Delivery Units,Adults and Communities,Grant Payments,80008481,ECOLOGIC ENERGY,72.00,30/03/2017
Delivery Units,Adults and Communities,Grant Payments,80008656,ECOLOGIC ENERGY,309.75,30/03/2017
Delivery Units,Adults and Communities,Grant Payments,80009133,ECOLOGIC ENERGY,72.00,22/03/2017
Delivery Units,Adults and Communities,Grant Payments,80008479,H D PROPERTY SERVICES LTD,331.80,30/03/2017
Delivery Units,Adults and Communities,Grant Payments,80008480,SOUTH HERTFORDSHIRE,231.00,30/03/2017
Delivery Units,Adults and Communities,I18 - Additional Grants for Sc,60073739,BEECHES HR CONSULTANCY,"1,000.00",22/03/2017
Delivery Units,Adults and Communities,Non Education Staff GPay,60075550,BARNET ENFIELD & HARINGEY MENTAL,"51,174.00",28/03/2017
Delivery Units,Adults and Communities,Non Education Staff GPay,60075551,BARNET ENFIELD & HARINGEY MENTAL,"51,174.00",28/03/2017
Delivery Units,Adults and Communities,Non Education Staff GPay,60075562,BARNET ENFIELD & HARINGEY MENTAL,"51,174.00",28/03/2017
Delivery Units,Adults and Communities,Non Education Staff GPay,60075569,BARNET ENFIELD & HARINGEY MENTAL,"51,174.00",28/03/2017
Delivery Units,Adults and Communities,Non Education Staff GPay,60075593,BARNET ENFIELD & HARINGEY MENTAL,"51,174.00",28/03/2017
Delivery Units,Adults and Communities,Non Education Staff GPay,60075598,BARNET ENFIELD & HARINGEY MENTAL,"51,174.00",28/03/2017
Delivery Units,Adults and Communities,Non Education Staff GPay,60075603,BARNET ENFIELD & HARINGEY MENTAL,"51,174.00",28/03/2017
Delivery Units,Adults and Communities,Non Education Staff GPay,60075610,BARNET ENFIELD & HARINGEY MENTAL,"51,174.00",28/03/2017
Delivery Units,Adults and Communities,Non Education Staff GPay,60075612,BARNET ENFIELD & HARINGEY MENTAL,"51,174.00",28/03/2017
Delivery Units,Adults and Communities,Non Education Staff GPay,60075621,BARNET ENFIELD & HARINGEY MENTAL,"51,174.00",28/03/2017
Delivery Units,Adults and Communities,Non Education Staff GPay,60075623,BARNET ENFIELD & HARINGEY MENTAL,"51,174.00",28/03/2017
Delivery Units,Adults and Communities,Other Agencies - Third Party P,30157359,3A CARE (LONDON) LTD,"7,176.00",06/03/2017
Delivery Units,Adults and Communities,Other Agencies - Third Party P,30158096,AARANDALE LODGE,"2,878.57",16/03/2017
Delivery Units,Adults and Communities,Other Agencies - Third Party P,30161006,AARON COURT CARE HOME,"2,216.14",30/03/2017
Delivery Units,Adults and Communities,Other Agencies - Third Party P,30156935,ABBEY RAVENSCROFT PARK NURSING HOME,"2,940.00",02/03/2017
Delivery Units,Adults and Communities,Other Agencies - Third Party P,30156936,ABBEY RAVENSCROFT PARK NURSING HOME,"3,000.00",02/03/2017
Delivery Units,Adults and Communities,Other Agencies - Third Party P,30157324,ABBEY RAVENSCROFT PARK NURSING HOME,"10,200.00",06/03/2017
Delivery Units,Adults and Communities,Other Agencies - Third Party P,30157784,ABBEY RAVENSCROFT PARK NURSING HOME,"1,485.71",15/03/2017
Delivery Units,Adults and Communities,Other Agencies - Third Party P,30158073,ABBEY RAVENSCROFT PARK NURSING HOME,"3,100.00",16/03/2017
Delivery Units,Adults and Communities,Other Agencies - Third Party P,30158074,ABBEY RAVENSCROFT PARK NURSING HOME,"3,542.86",16/03/2017
Delivery Units,Adults and Communities,Other Agencies - Third Party P,30158075,ABBEY RAVENSCROFT PARK NURSING HOME,"3,255.00",16/03/2017
Delivery Units,Adults and Communities,Other Agencies - Third Party P,30158076,ABBEY RAVENSCROFT PARK NURSING HOME,"3,255.00",16/03/2017
Delivery Units,Adults and Communities,Other Agencies - Third Party P,30158077,ABBEY RAVENSCROFT PARK NURSING HOME,"3,255.00",16/03/2017
Delivery Units,Adults and Communities,Other Agencies - Third Party P,30158078,ABBEY RAVENSCROFT PARK NURSING HOME,"2,788.32",16/03/2017
Delivery Units,Adults and Communities,Other Agencies - Third Party P,30158079,ABBEY RAVENSCROFT PARK NURSING HOME,"2,788.32",16/03/2017
Delivery Units,Adults and Communities,Other Agencies - Third Party P,30158080,ABBEY RAVENSCROFT PARK NURSING HOME,"2,788.32",16/03/2017
Delivery Units,Adults and Communities,Other Agencies - Third Party P,30158081,ABBEY RAVENSCROFT PARK NURSING HOME,"2,788.32",16/03/2017
Delivery Units,Adults and Communities,Other Agencies - Third Party P,30158082,ABBEY RAVENSCROFT PARK NURSING HOME,"3,255.00",16/03/2017
Delivery Units,Adults and Communities,Other Agencies - Third Party P,30158083,ABBEY RAVENSCROFT PARK NURSING HOME,"3,255.00",16/03/2017
Delivery Units,Adults and Communities,Other Agencies - Third Party P,30158084,ABBEY RAVENSCROFT PARK NURSING HOME,"3,255.00",16/03/2017
Delivery Units,Adults and Communities,Other Agencies - Third Party P,30158085,ABBEY RAVENSCROFT PARK NURSING HOME,"2,788.32",16/03/2017
Delivery Units,Adults and Communities,Other Agencies - Third Party P,30158086,ABBEY RAVENSCROFT PARK NURSING HOME,"2,788.32",16/03/2017
Delivery Units,Adults and Communities,Other Agencies - Third Party P,30158087,ABBEY RAVENSCROFT PARK NURSING HOME,"3,255.00",16/03/2017
Delivery Units,Adults and Communities,Other Agencies - Third Party P,30158088,ABBEY RAVENSCROFT PARK NURSING HOME,"3,255.00",16/03/2017
Delivery Units,Adults and Communities,Other Agencies - Third Party P,30158089,ABBEY RAVENSCROFT PARK NURSING HOME,"2,788.32",16/03/2017
Delivery Units,Adults and Communities,Other Agencies - Third Party P,30158090,ABBEY RAVENSCROFT PARK NURSING HOME,"2,788.32",16/03/2017
Delivery Units,Adults and Communities,Other Agencies - Third Party P,30158091,ABBEY RAVENSCROFT PARK NURSING HOME,"3,255.00",16/03/2017
Delivery Units,Adults and Communities,Other Agencies - Third Party P,30158092,ABBEY RAVENSCROFT PARK NURSING HOME,"2,788.32",16/03/2017
Delivery Units,Adults and Communities,Other Agencies - Third Party P,30158093,ABBEY RAVENSCROFT PARK NURSING HOME,"2,517.60",16/03/2017
Delivery Units,Adults and Communities,Other Agencies - Third Party P,30158094,ABBEY RAVENSCROFT PARK NURSING HOME,"3,100.00",16/03/2017
Delivery Units,Adults and Communities,Other Agencies - Third Party P,30160445,ABBEY RAVENSCROFT PARK NURSING HOME,"3,100.00",30/03/2017
Delivery Units,Adults and Communities,Other Agencies - Third Party P,30157310,ACCEDO CARE LTD,"5,956.00",06/03/2017
Delivery Units,Adults and Communities,Other Agencies - Third Party P,30160425,ACCEDO CARE LTD,"6,594.14",30/03/2017
Delivery Units,Adults and Communities,Other Agencies - Third Party P,30158244,AGUDAS ISRAEL HOUSING ASSCTN LTD,"2,849.00",16/03/2017
Delivery Units,Adults and Communities,Other Agencies - Third Party P,30158245,AGUDAS ISRAEL HOUSING ASSCTN LTD,"4,375.00",16/03/2017
Delivery Units,Adults and Communities,Other Agencies - Third Party P,30158246,AGUDAS ISRAEL HOUSING ASSCTN LTD,"2,472.00",16/03/2017
Delivery Units,Adults and Communities,Other Agencies - Third Party P,30159940,AGUDAS ISRAEL HOUSING ASSCTN LTD,"3,154.25",27/03/2017
Delivery Units,Adults and Communities,Other Agencies - Third Party P,30159941,AGUDAS ISRAEL HOUSING ASSCTN LTD,"4,843.75",27/03/2017
Delivery Units,Adults and Communities,Other Agencies - Third Party P,30159942,AGUDAS ISRAEL HOUSING ASSCTN LTD,"2,736.86",27/03/2017
Delivery Units,Adults and Communities,Other Agencies - Third Party P,30156932,ALDWYCK HOUSING GROUP,"2,031.76",02/03/2017
Delivery Units,Adults and Communities,Other Agencies - Third Party P,30156933,ALDWYCK HOUSING GROUP,"2,031.76",02/03/2017
Delivery Units,Adults and Communities,Other Agencies - Third Party P,30160430,ALDWYCK HOUSING GROUP,"2,249.45",30/03/2017
Delivery Units,Adults and Communities,Other Agencies - Third Party P,30160431,ALDWYCK HOUSING GROUP,"2,249.45",30/03/2017
Delivery Units,Adults and Communities,Other Agencies - Third Party P,30157926,ALEXANDRA HOUSE (RUNWOOD HOMES),"2,043.72",15/03/2017
Delivery Units,Adults and Communities,Other Agencies - Third Party P,30160398,ALLIED HEALTHCARE LTD,"2,440.66",29/03/2017
Delivery Units,Adults and Communities,Other Agencies - Third Party P,30160399,ALLIED HEALTHCARE LTD,"2,715.52",29/03/2017
Delivery Units,Adults and Communities,Other Agencies - Third Party P,30158057,AN DIANDAN HOUSE,"20,034.64",16/03/2017
Delivery Units,Adults and Communities,Other Agencies - Third Party P,30157671,ANA HOMECARE LTD,311.14,14/03/2017
Delivery Units,Adults and Communities,Other Agencies - Third Party P,30157672,ANA HOMECARE LTD,116.20,14/03/2017
Delivery Units,Adults and Communities,Other Agencies - Third Party P,30157164,ANASTASIA LODGE,"3,000.00",03/03/2017
Delivery Units,Adults and Communities,Other Agencies - Third Party P,30158796,ANASTASIA LODGE,"3,000.00",22/03/2017
Delivery Units,Adults and Communities,Other Agencies - Third Party P,30158797,ANASTASIA LODGE,"2,800.00",22/03/2017
Delivery Units,Adults and Communities,Other Agencies - Third Party P,30160538,ANASTASIA LODGE,"2,300.00",30/03/2017
Delivery Units,Adults and Communities,Other Agencies - Third Party P,30157174,ANGEL HEALTHCARE LTD - GLENMUIR HOUSE,"2,211.72",03/03/2017
Delivery Units,Adults and Communities,Other Agencies - Third Party P,30156980,APPLE TREE COURT CARE HOME,"2,321.92",02/03/2017
Delivery Units,Adults and Communities,Other Agencies - Third Party P,30159944,APPLE TREE COURT CARE HOME,-829.26,27/03/2017
Delivery Units,Adults and Communities,Other Agencies - Third Party P,30159945,APPLE TREE COURT CARE HOME,"2,570.70",27/03/2017
Delivery Units,Adults and Communities,Other Agencies - Third Party P,30159946,APPLE TREE COURT CARE HOME,"2,570.70",27/03/2017
Delivery Units,Adults and Communities,Other Agencies - Third Party P,30159947,APPLE TREE COURT CARE HOME,"2,418.04",27/03/2017
Delivery Units,Adults and Communities,Other Agencies - Third Party P,30159948,APPLE TREE COURT CARE HOME,"2,570.70",27/03/2017
Delivery Units,Adults and Communities,Other Agencies - Third Party P,30159949,APPLE TREE COURT CARE HOME,"3,542.86",27/03/2017
Delivery Units,Adults and Communities,Other Agencies - Third Party P,30159950,APPLE TREE COURT CARE HOME,"4,207.14",27/03/2017
Delivery Units,Adults and Communities,Other Agencies - Third Party P,30159951,APPLE TREE COURT CARE HOME,"3,016.49",27/03/2017
Delivery Units,Adults and Communities,Other Agencies - Third Party P,30159952,APPLE TREE COURT CARE HOME,"2,397.72",27/03/2017
Delivery Units,Adults and Communities,Other Agencies - Third Party P,30159953,APPLE TREE COURT CARE HOME,"6,042.85",27/03/2017
Delivery Units,Adults and Communities,Other Agencies - Third Party P,30157325,AREA 51 EDUCATION LTD,"1,580.00",06/03/2017
Delivery Units,Adults and Communities,Other Agencies - Third Party P,30157326,AREA 51 EDUCATION LTD,632.00,06/03/2017
Delivery Units,Adults and Communities,Other Agencies - Third Party P,30157327,AREA 51 EDUCATION LTD,632.00,06/03/2017
Delivery Units,Adults and Communities,Other Agencies - Third Party P,30157604,AREA 51 EDUCATION LTD,948.00,14/03/2017
Delivery Units,Adults and Communities,Other Agencies - Third Party P,30160046,AREA 51 EDUCATION LTD,395.00,29/03/2017
Delivery Units,Adults and Communities,Other Agencies - Third Party P,30160047,AREA 51 EDUCATION LTD,316.00,29/03/2017
Delivery Units,Adults and Communities,Other Agencies - Third Party P,30160048,AREA 51 EDUCATION LTD,316.00,29/03/2017
Delivery Units,Adults and Communities,Other Agencies - Third Party P,30156988,ASH COURT CARE CENTRE,"3,400.00",02/03/2017
Delivery Units,Adults and Communities,Other Agencies - Third Party P,30158121,ASH COURT CARE CENTRE,"3,764.29",30/03/2017
Delivery Units,Adults and Communities,Other Agencies - Third Party P,30156996,ASHFIELDS RESIDENTIAL CARE HOME,"2,211.80",02/03/2017
Delivery Units,Adults and Communities,Other Agencies - Third Party P,30156997,ASHFIELDS RESIDENTIAL CARE HOME,"2,211.80",02/03/2017
Delivery Units,Adults and Communities,Other Agencies - Third Party P,30156998,ASHFIELDS RESIDENTIAL CARE HOME,"2,400.00",02/03/2017
Delivery Units,Adults and Communities,Other Agencies - Third Party P,30156999,ASHFIELDS RESIDENTIAL CARE HOME,"2,211.80",02/03/2017
Delivery Units,Adults and Communities,Other Agencies - Third Party P,30157000,ASHFIELDS RESIDENTIAL CARE HOME,"2,211.80",02/03/2017
Delivery Units,Adults and Communities,Other Agencies - Third Party P,30158897,ASHFIELDS RESIDENTIAL CARE HOME,941.57,22/03/2017
Delivery Units,Adults and Communities,Other Agencies - Third Party P,30158898,ASHFIELDS RESIDENTIAL CARE HOME,"2,448.78",22/03/2017
Delivery Units,Adults and Communities,Other Agencies - Third Party P,30158899,ASHFIELDS RESIDENTIAL CARE HOME,"2,448.78",22/03/2017
Delivery Units,Adults and Communities,Other Agencies - Third Party P,30158900,ASHFIELDS RESIDENTIAL CARE HOME,"2,448.78",22/03/2017
Delivery Units,Adults and Communities,Other Agencies - Third Party P,30158901,ASHFIELDS RESIDENTIAL CARE HOME,"2,448.78",22/03/2017
Delivery Units,Adults and Communities,Other Agencies - Third Party P,30158902,ASHFIELDS RESIDENTIAL CARE HOME,"2,657.14",22/03/2017
Delivery Units,Adults and Communities,Other Agencies - Third Party P,30158903,ASHFIELDS RESIDENTIAL CARE HOME,"2,448.78",22/03/2017
Delivery Units,Adults and Communities,Other Agencies - Third Party P,30158904,ASHFIELDS RESIDENTIAL CARE HOME,"2,249.27",22/03/2017
Delivery Units,Adults and Communities,Other Agencies - Third Party P,30158905,ASHFIELDS RESIDENTIAL CARE HOME,"2,448.78",22/03/2017
Delivery Units,Adults and Communities,Other Agencies - Third Party P,30159956,ASHFIELDS RESIDENTIAL CARE HOME,"3,949.65",27/03/2017
Delivery Units,Adults and Communities,Other Agencies - Third Party P,80008567,ASHFIELDS RESIDENTIAL CARE HOME,"2,369.79",30/03/2017
Delivery Units,Adults and Communities,Other Agencies - Third Party P,30157050,ASHTON LODGE CARE CENTRE,"-1,288.39",16/03/2017
Delivery Units,Adults and Communities,Other Agencies - Third Party P,30158132,ASHTON LODGE CARE CENTRE,"2,655.55",16/03/2017
Delivery Units,Adults and Communities,Other Agencies - Third Party P,30158152,ASHTON LODGE CARE CENTRE,"2,788.32",16/03/2017
Delivery Units,Adults and Communities,Other Agencies - Third Party P,30158159,ASHTON LODGE CARE CENTRE,"3,321.43",16/03/2017
Delivery Units,Adults and Communities,Other Agencies - Third Party P,30158160,ASHTON LODGE CARE CENTRE,"3,321.43",16/03/2017
Delivery Units,Adults and Communities,Other Agencies - Third Party P,30158161,ASHTON LODGE CARE CENTRE,"2,655.55",16/03/2017
Delivery Units,Adults and Communities,Other Agencies - Third Party P,30158163,ASHTON LODGE CARE CENTRE,"2,397.72",16/03/2017
Delivery Units,Adults and Communities,Other Agencies - Third Party P,30158166,ASHTON LODGE CARE CENTRE,"2,657.14",16/03/2017
Delivery Units,Adults and Communities,Other Agencies - Third Party P,30158183,ASHTON LODGE CARE CENTRE,"2,448.78",16/03/2017
Delivery Units,Adults and Communities,Other Agencies - Third Party P,30158189,ASHTON LODGE CARE CENTRE,"3,072.32",16/03/2017
Delivery Units,Adults and Communities,Other Agencies - Third Party P,30158191,ASHTON LODGE CARE CENTRE,"2,397.72",16/03/2017
Delivery Units,Adults and Communities,Other Agencies - Third Party P,30158195,ASHTON LODGE CARE CENTRE,"2,448.78",16/03/2017
Delivery Units,Adults and Communities,Other Agencies - Third Party P,30158198,ASHTON LODGE CARE CENTRE,"3,268.29",16/03/2017
Delivery Units,Adults and Communities,Other Agencies - Third Party P,30158204,ASHTON LODGE CARE CENTRE,"2,878.57",16/03/2017
Delivery Units,Adults and Communities,Other Agencies - Third Party P,30158205,ASHTON LODGE CARE CENTRE,"3,072.32",16/03/2017
Delivery Units,Adults and Communities,Other Agencies - Third Party P,30158206,ASHTON LODGE CARE CENTRE,"2,397.72",16/03/2017
Delivery Units,Adults and Communities,Other Agencies - Third Party P,30158209,ASHTON LODGE CARE CENTRE,"2,448.78",16/03/2017
Delivery Units,Adults and Communities,Other Agencies - Third Party P,30158327,ASHTON LODGE CARE CENTRE,"2,657.14",16/03/2017
Delivery Units,Adults and Communities,Other Agencies - Third Party P,30159955,ASHTON LODGE CARE CENTRE,"1,798.92",27/03/2017
Delivery Units,Adults and Communities,Other Agencies - Third Party P,30157878,ASPEN VILLAGES LTD,"3,764.29",15/03/2017
Delivery Units,Adults and Communities,Other Agencies - Third Party P,30158140,ASPEN VILLAGES LTD,"2,216.41",16/03/2017
Delivery Units,Adults and Communities,Other Agencies - Third Party P,30158141,ASPEN VILLAGES LTD,"4,871.43",16/03/2017
Delivery Units,Adults and Communities,Other Agencies - Third Party P,30158142,ASPEN VILLAGES LTD,"3,321.43",16/03/2017
Delivery Units,Adults and Communities,Other Agencies - Third Party P,30158143,ASPEN VILLAGES LTD,"3,542.86",16/03/2017
Delivery Units,Adults and Communities,Other Agencies - Third Party P,30158144,ASPEN VILLAGES LTD,"5,978.57",16/03/2017
Delivery Units,Adults and Communities,Other Agencies - Third Party P,30158145,ASPEN VILLAGES LTD,"2,418.04",16/03/2017
Delivery Units,Adults and Communities,Other Agencies - Third Party P,30158146,ASPEN VILLAGES LTD,"4,871.43",16/03/2017
Delivery Units,Adults and Communities,Other Agencies - Third Party P,30158147,ASPEN VILLAGES LTD,"4,207.14",16/03/2017
Delivery Units,Adults and Communities,Other Agencies - Third Party P,30158148,ASPEN VILLAGES LTD,"3,542.86",16/03/2017
Delivery Units,Adults and Communities,Other Agencies - Third Party P,30158149,ASPEN VILLAGES LTD,"4,871.43",16/03/2017
Delivery Units,Adults and Communities,Other Agencies - Third Party P,30157181,AUTUMN GARDENS,"3,160.00",03/03/2017
Delivery Units,Adults and Communities,Other Agencies - Third Party P,30157182,AUTUMN GARDENS,"4,800.00",03/03/2017
Delivery Units,Adults and Communities,Other Agencies - Third Party P,30157183,AUTUMN GARDENS,"2,880.00",03/03/2017
Delivery Units,Adults and Communities,Other Agencies - Third Party P,30157184,AUTUMN GARDENS,"2,800.00",03/03/2017
Delivery Units,Adults and Communities,Other Agencies - Third Party P,30157185,AUTUMN GARDENS,"2,184.04",03/03/2017
Delivery Units,Adults and Communities,Other Agencies - Third Party P,30158815,AUTUMN GARDENS,"3,160.00",22/03/2017
Delivery Units,Adults and Communities,Other Agencies - Third Party P,30158816,AUTUMN GARDENS,"3,160.00",22/03/2017
Delivery Units,Adults and Communities,Other Agencies - Third Party P,30158817,AUTUMN GARDENS,"2,400.00",22/03/2017
Delivery Units,Adults and Communities,Other Agencies - Third Party P,30158818,AUTUMN GARDENS,"2,708.57",22/03/2017
Delivery Units,Adults and Communities,Other Agencies - Third Party P,30158819,AUTUMN GARDENS,"4,800.00",22/03/2017
Delivery Units,Adults and Communities,Other Agencies - Third Party P,30158820,AUTUMN GARDENS,"2,880.00",22/03/2017
Delivery Units,Adults and Communities,Other Agencies - Third Party P,30158821,AUTUMN GARDENS,"2,800.00",22/03/2017
Delivery Units,Adults and Communities,Other Agencies - Third Party P,30158822,AUTUMN GARDENS,"3,160.00",22/03/2017
Delivery Units,Adults and Communities,Other Agencies - Third Party P,30158823,AUTUMN GARDENS,"2,184.04",22/03/2017
Delivery Units,Adults and Communities,Other Agencies - Third Party P,30158824,AUTUMN GARDENS,"4,800.00",22/03/2017
Delivery Units,Adults and Communities,Other Agencies - Third Party P,30157031,B & M CARE,"2,031.76",02/03/2017
Delivery Units,Adults and Communities,Other Agencies - Third Party P,30157032,B & M CARE,"2,784.00",02/03/2017
Delivery Units,Adults and Communities,Other Agencies - Third Party P,30157033,B & M CARE,"2,211.80",02/03/2017
Delivery Units,Adults and Communities,Other Agencies - Third Party P,30157034,B & M CARE,"2,211.80",02/03/2017
Delivery Units,Adults and Communities,Other Agencies - Third Party P,30157035,B & M CARE,"3,400.00",02/03/2017
Delivery Units,Adults and Communities,Other Agencies - Third Party P,30157036,B & M CARE,"3,400.00",02/03/2017
Delivery Units,Adults and Communities,Other Agencies - Third Party P,30157619,B & M CARE,"3,764.29",14/03/2017
Delivery Units,Adults and Communities,Other Agencies - Third Party P,30158318,B & M CARE,"2,249.45",16/03/2017
Delivery Units,Adults and Communities,Other Agencies - Third Party P,30158319,B & M CARE,"2,448.78",16/03/2017
Delivery Units,Adults and Communities,Other Agencies - Third Party P,30158320,B & M CARE,"2,448.78",16/03/2017
Delivery Units,Adults and Communities,Other Agencies - Third Party P,30158321,B & M CARE,"3,764.29",16/03/2017
Delivery Units,Adults and Communities,Other Agencies - Third Party P,80009470,B & M CARE,"3,082.29",31/03/2017
Delivery Units,Adults and Communities,Other Agencies - Third Party P,80009334,BARNET ENFIELD & HARINGEY,"32,160.00",28/03/2017
Delivery Units,Adults and Communities,Other Agencies - Third Party P,30158975,BARNET EXECUTIVE CAR SERVICE,240.00,22/03/2017
Delivery Units,Adults and Communities,Other Agencies - Third Party P,30158977,BARNET EXECUTIVE CAR SERVICE,480.00,22/03/2017
Delivery Units,Adults and Communities,Other Agencies - Third Party P,30158978,BARNET EXECUTIVE CAR SERVICE,480.00,22/03/2017
Delivery Units,Adults and Communities,Other Agencies - Third Party P,30158979,BARNET EXECUTIVE CAR SERVICE,480.00,22/03/2017
Delivery Units,Adults and Communities,Other Agencies - Third Party P,30158980,BARNET EXECUTIVE CAR SERVICE,240.00,22/03/2017
Delivery Units,Adults and Communities,Other Agencies - Third Party P,30158981,BARNET EXECUTIVE CAR SERVICE,480.00,22/03/2017
Delivery Units,Adults and Communities,Other Agencies - Third Party P,30158982,BARNET EXECUTIVE CAR SERVICE,480.00,23/03/2017
Delivery Units,Adults and Communities,Other Agencies - Third Party P,30158983,BARNET EXECUTIVE CAR SERVICE,400.00,22/03/2017
Delivery Units,Adults and Communities,Other Agencies - Third Party P,30158984,BARNET EXECUTIVE CAR SERVICE,400.00,22/03/2017
Delivery Units,Adults and Communities,Other Agencies - Third Party P,30158985,BARNET EXECUTIVE CAR SERVICE,400.00,22/03/2017
Delivery Units,Adults and Communities,Other Agencies - Third Party P,30158986,BARNET EXECUTIVE CAR SERVICE,400.00,22/03/2017
Delivery Units,Adults and Communities,Other Agencies - Third Party P,30158279,BAYTREE COMMUNITY CARE (LONDON) LTD,"2,890.26",16/03/2017
Delivery Units,Adults and Communities,Other Agencies - Third Party P,30158280,BAYTREE COMMUNITY CARE (LONDON) LTD,"2,686.64",16/03/2017
Delivery Units,Adults and Communities,Other Agencies - Third Party P,30158281,BAYTREE COMMUNITY CARE (LONDON) LTD,"2,081.97",16/03/2017
Delivery Units,Adults and Communities,Other Agencies - Third Party P,30158282,BAYTREE COMMUNITY CARE (LONDON) LTD,"3,538.37",16/03/2017
Delivery Units,Adults and Communities,Other Agencies - Third Party P,30157095,BELMONT LODGE CARE CENTRE,"2,172.00",02/03/2017
Delivery Units,Adults and Communities,Other Agencies - Third Party P,30158124,BELMONT LODGE CARE CENTRE,"2,404.71",16/03/2017
Delivery Units,Adults and Communities,Other Agencies - Third Party P,30156994,BIRCHWOOD GRANGE CARE HOME,"2,400.00",02/03/2017
Delivery Units,Adults and Communities,Other Agencies - Third Party P,30158126,BIRCHWOOD GRANGE CARE HOME,"2,657.14",16/03/2017
Delivery Units,Adults and Communities,Other Agencies - Third Party P,30126607,BLUEBIRD CARE (BARNET),291.50,13/03/2017
Delivery Units,Adults and Communities,Other Agencies - Third Party P,30157101,BLUEBIRD CARE (BARNET),96.00,13/03/2017
Delivery Units,Adults and Communities,Other Agencies - Third Party P,30157102,BLUEBIRD CARE (BARNET),170.80,13/03/2017
Delivery Units,Adults and Communities,Other Agencies - Third Party P,30157103,BLUEBIRD CARE (BARNET),115.80,13/03/2017
Delivery Units,Adults and Communities,Other Agencies - Third Party P,30157117,BLUEBIRD CARE (BARNET),"-1,107.00",13/03/2017
Delivery Units,Adults and Communities,Other Agencies - Third Party P,30157118,BLUEBIRD CARE (BARNET),513.50,13/03/2017
Delivery Units,Adults and Communities,Other Agencies - Third Party P,30157119,BLUEBIRD CARE (BARNET),288.00,13/03/2017
Delivery Units,Adults and Communities,Other Agencies - Third Party P,30157120,BLUEBIRD CARE (BARNET),312.60,13/03/2017
Delivery Units,Adults and Communities,Other Agencies - Third Party P,30157968,BLUEBIRD CARE (BARNET),355.50,15/03/2017
Delivery Units,Adults and Communities,Other Agencies - Third Party P,30157969,BLUEBIRD CARE (BARNET),504.00,15/03/2017
Delivery Units,Adults and Communities,Other Agencies - Third Party P,30157970,BLUEBIRD CARE (BARNET),41.80,15/03/2017
Delivery Units,Adults and Communities,Other Agencies - Third Party P,30157971,BLUEBIRD CARE (BARNET),120.00,15/03/2017
Delivery Units,Adults and Communities,Other Agencies - Third Party P,30157972,BLUEBIRD CARE (BARNET),180.00,15/03/2017
Delivery Units,Adults and Communities,Other Agencies - Third Party P,30157973,BLUEBIRD CARE (BARNET),383.30,15/03/2017
Delivery Units,Adults and Communities,Other Agencies - Third Party P,30157974,BLUEBIRD CARE (BARNET),465.00,15/03/2017
Delivery Units,Adults and Communities,Other Agencies - Third Party P,30157975,BLUEBIRD CARE (BARNET),418.45,15/03/2017
Delivery Units,Adults and Communities,Other Agencies - Third Party P,30157976,BLUEBIRD CARE (BARNET),13.90,15/03/2017
Delivery Units,Adults and Communities,Other Agencies - Third Party P,30157977,BLUEBIRD CARE (BARNET),618.00,15/03/2017
Delivery Units,Adults and Communities,Other Agencies - Third Party P,30157978,BLUEBIRD CARE (BARNET),204.00,15/03/2017
Delivery Units,Adults and Communities,Other Agencies - Third Party P,30157979,BLUEBIRD CARE (BARNET),337.60,15/03/2017
Delivery Units,Adults and Communities,Other Agencies - Third Party P,30158254,BLUEBIRD CARE (BARNET),208.20,16/03/2017
Delivery Units,Adults and Communities,Other Agencies - Third Party P,30158255,BLUEBIRD CARE (BARNET),70.50,16/03/2017
Delivery Units,Adults and Communities,Other Agencies - Third Party P,30160528,BLUEBIRD CARE (BARNET),200.00,30/03/2017
Delivery Units,Adults and Communities,Other Agencies - Third Party P,30160529,BLUEBIRD CARE (BARNET),370.00,30/03/2017
Delivery Units,Adults and Communities,Other Agencies - Third Party P,30160530,BLUEBIRD CARE (BARNET),370.00,30/03/2017
Delivery Units,Adults and Communities,Other Agencies - Third Party P,30160531,BLUEBIRD CARE (BARNET),355.00,30/03/2017
Delivery Units,Adults and Communities,Other Agencies - Third Party P,30160532,BLUEBIRD CARE (BARNET),344.00,30/03/2017
Delivery Units,Adults and Communities,Other Agencies - Third Party P,30160533,BLUEBIRD CARE (BARNET),400.00,30/03/2017
Delivery Units,Adults and Communities,Other Agencies - Third Party P,30160534,BLUEBIRD CARE (BARNET),341.00,30/03/2017
Delivery Units,Adults and Communities,Other Agencies - Third Party P,30160535,BLUEBIRD CARE (BARNET),353.50,30/03/2017
Delivery Units,Adults and Communities,Other Agencies - Third Party P,30160536,BLUEBIRD CARE (BARNET),482.00,30/03/2017
Delivery Units,Adults and Communities,Other Agencies - Third Party P,30157308,BROOKDALE HEALTHCARE,"3,759.36",06/03/2017
Delivery Units,Adults and Communities,Other Agencies - Third Party P,30158051,BROOKDALE HEALTHCARE,"9,300.00",16/03/2017
Delivery Units,Adults and Communities,Other Agencies - Third Party P,30158052,BROOKDALE HEALTHCARE,"9,610.00",16/03/2017
Delivery Units,Adults and Communities,Other Agencies - Third Party P,30158053,BROOKDALE HEALTHCARE,"9,995.33",16/03/2017
Delivery Units,Adults and Communities,Other Agencies - Third Party P,30159741,BROOKDALE HEALTHCARE,"24,027.64",27/03/2017
Delivery Units,Adults and Communities,Other Agencies - Third Party P,30160417,BROOKDALE HEALTHCARE,"9,028.04",30/03/2017
Delivery Units,Adults and Communities,Other Agencies - Third Party P,30157998,BRUNSWICK SUPPORTED LIVING SERVICES,"1,412.68",16/03/2017
Delivery Units,Adults and Communities,Other Agencies - Third Party P,30157999,BRUNSWICK SUPPORTED LIVING SERVICES,"1,942.84",16/03/2017
